SERVICE_CODE,ORGANISATION_UNIT,EXPENDITURE_CATEGORY,EXPENDITURE_DESCRIPTION,EXPENDITURE_CODE,NARRATIVE,DATE,TRANSATION_CODE,NET_AMOUNT,SUPPLIER_CODE,SUPPLIER_NAME,FROM_DATE,TO_DATE,FINANCIAL_PERIOD_YEAR
P&V,SOUTH AREA RANGERS,PREMISES RELATED EXPENDITURE,GM NON MAIN CONT UNSCHEDULED,2147,P117374-SERVICE-Fill in Potholes along Sandy Lane,04/05/2022 00:00,262382,700,JO0019,R G JOYCE,25/04/2022 00:00,29/05/2022 00:00,P02-2023
P&V,SOUTH AREA RANGERS,PREMISES RELATED EXPENDITURE,GM NON MAIN CONT UNSCHEDULED,2147,P117860-SERVICE-Sandy Lane Works - Fill in Potholes,17/05/2022 00:00,263156,650,JO0019,R G JOYCE,25/04/2022 00:00,29/05/2022 00:00,P02-2023
P&V,SOUTH AREA RANGERS,PREMISES RELATED EXPENDITURE,GM NON MAIN CONT UNSCHEDULED,2147,CAPSER,29/05/2022 00:00,263655,-600,MO0041,CAPSER,25/04/2022 00:00,29/05/2022 00:00,P02-2023
P&V,SOUTH AREA RANGERS,PREMISES RELATED EXPENDITURE,GM NON MAIN CONT UNSCHEDULED,2147,CAPSER,29/05/2022 00:00,263655,150,MO0041,CAPSER,25/04/2022 00:00,29/05/2022 00:00,P02-2023
P&V,SOUTH AREA RANGERS,PREMISES RELATED EXPENDITURE,GM NON MAIN CONT UNSCHEDULED,2147,P117702-SERVICE-Benches and Posts at Tottenham Marshes,29/05/2022 00:00,263655,600,MO0041,CAPSER,25/04/2022 00:00,29/05/2022 00:00,P02-2023
P&V,SOUTH AREA RANGERS,PREMISES RELATED EXPENDITURE,GM NON MAIN CONT UNSCHEDULED,2147,CAPSER,29/05/2022 00:00,263655,450,MO0041,CAPSER,25/04/2022 00:00,29/05/2022 00:00,P02-2023
P&V,ABBEY GARDENS,PREMISES RELATED EXPENDITURE,GM NON MAIN CONT UNSCHEDULED,2147,P118024-SERVICE-To Install Replacement Benches after vandalis,29/05/2022 00:00,263515,850,JO0019,R G JOYCE,25/04/2022 00:00,29/05/2022 00:00,P02-2023
P&V,GUNPOWDER PARK,PREMISES RELATED EXPENDITURE,GM NON MAIN CONT UNSCHEDULED,2147,P116557-SERVICE-Repair Bench at Swan & Pike Pool,04/05/2022 00:00,262681,230,JO0019,R G JOYCE,25/04/2022 00:00,29/05/2022 00:00,P02-2023
P&V,RIVER LEE COUNTRY PARK,PREMISES RELATED EXPENDITURE,GM NON MAIN CONT UNSCHEDULED,2147,P117504-SERVICE-Grass Path Reinstatement at Bowyers,28/04/2022 00:00,262185,800,BU0090,BUSH WHEELER SERVICES LTD,25/04/2022 00:00,29/05/2022 00:00,P02-2023
P&V,SOUTH AREA RANGERS,PREMISES RELATED EXPENDITURE,HABITAT MANAGEMENT WORKS,2149,P117679-SERVICE-Tree Works at Tottenham Marshes,09/05/2022 00:00,262970,450,PA0222,PARKIN & PARKER TREE SPECIALISTS,25/04/2022 00:00,29/05/2022 00:00,P02-2023
P&V,SOUTH AREA RANGERS,PREMISES RELATED EXPENDITURE,HABITAT MANAGEMENT WORKS,2149,P117111-SERVICE-25x Borage Plug Plants,09/05/2022 00:00,262973,24.17,BO0630,BOSTON SEEDS LIMITED,25/04/2022 00:00,29/05/2022 00:00,P02-2023
P&V,SOUTH AREA RANGERS,PREMISES RELATED EXPENDITURE,HABITAT MANAGEMENT WORKS,2149,P117111-SERVICE-25x Red Campion Plug Plants,09/05/2022 00:00,262973,24.17,BO0630,BOSTON SEEDS LIMITED,25/04/2022 00:00,29/05/2022 00:00,P02-2023
P&V,SOUTH AREA RANGERS,PREMISES RELATED EXPENDITURE,HABITAT MANAGEMENT WORKS,2149,P117111-SERVICE-Delivery,09/05/2022 00:00,262973,5.41,BO0630,BOSTON SEEDS LIMITED,25/04/2022 00:00,29/05/2022 00:00,P02-2023
,LEE VALLEY MARINA SPRINGFIELD,PREMISES RELATED EXPENDITURE,GENERAL WASTE,2211,"P117556-SERVICE-General Waste & Recyling for April,May,June",09/05/2022 00:00,262884,766.32,CL0037,VEOLIA ES (UK) LTD,25/04/2022 00:00,29/05/2022 00:00,P02-2023
,LEE VALLEY MARINA SPRINGFIELD,PREMISES RELATED EXPENDITURE,GENERAL WASTE,2211,P118099-SERVICE-collection 3 x fridge,29/05/2022 00:00,263501,225,OD0010,O'DONOVAN (WASTE DISPOSAL) LTD,25/04/2022 00:00,29/05/2022 00:00,P02-2023
,LEE VALLEY MARINA STANSTEAD,PREMISES RELATED EXPENDITURE,GENERAL WASTE,2211,P117691-SERVICE-Annual useage Veolia -bins 4 Rye and Stan Mar,09/05/2022 00:00,262745,453,CL0037,VEOLIA ES (UK) LTD,25/04/2022 00:00,29/05/2022 00:00,P02-2023
,LEE VALLEY MARINA STANSTEAD,PREMISES RELATED EXPENDITURE,GENERAL WASTE,2211,P117691-SERVICE-Annual useage Veolia -bins 4 Rye and Stan Mar,09/05/2022 00:00,262748,155.88,CL0037,VEOLIA ES (UK) LTD,25/04/2022 00:00,29/05/2022 00:00,P02-2023
,LEE VALLEY MARINA STANSTEAD,PREMISES RELATED EXPENDITURE,GENERAL WASTE,2211,P117691-SERVICE-Annual useage Veolia -bins 4 Rye and Stan Mar,09/05/2022 00:00,262750,13.47,CL0037,VEOLIA ES (UK) LTD,25/04/2022 00:00,29/05/2022 00:00,P02-2023
,LEE VALLEY MARINA STANSTEAD,PREMISES RELATED EXPENDITURE,GENERAL WASTE,2211,P118080-SERVICE-Sanitary Bins Disposal and Exchange,23/05/2022 00:00,263425,48.6,PE0015,PHS GROUP PLC,25/04/2022 00:00,29/05/2022 00:00,P02-2023
P&V,LEE VALLEY FARM HOLYFIELDHALL,PREMISES RELATED EXPENDITURE,GENERAL WASTE,2211,P117995-SERVICE-Waste for Incineration,17/05/2022 00:00,263157,411.24,BY0049,BYWATERS (LEYTON) LTD,25/04/2022 00:00,29/05/2022 00:00,P02-2023
,LEE VALLEY CAMPSITE,PREMISES RELATED EXPENDITURE,GENERAL WASTE,2211,P117905-SERVICE-SKIP COLLECTION April 22,09/05/2022 00:00,262746,478.53,CL0037,VEOLIA ES (UK) LTD,25/04/2022 00:00,29/05/2022 00:00,P02-2023
,LEE VALLEY CARAVAN PARK,PREMISES RELATED EXPENDITURE,GENERAL WASTE,2211,P117904-SERVICE-Monthly care & skip rental,09/05/2022 00:00,262747,938.79,CL0037,VEOLIA ES (UK) LTD,25/04/2022 00:00,29/05/2022 00:00,P02-2023
P&V,SOUTH AREA RANGERS,PREMISES RELATED EXPENDITURE,GENERAL WASTE,2211,P117695-SERVICE-Skip at WaterWorks Centre,29/05/2022 00:00,263143,368.5,GB0239,GBN SERVICES LTD,25/04/2022 00:00,29/05/2022 00:00,P02-2023
P&V,RIVER LEE COUNTRY PARK,PREMISES RELATED EXPENDITURE,GENERAL WASTE,2211,P117694-SERVICE-12yd General Rubbish Skip at Holyfield Hall F,04/05/2022 00:00,262629,364,GB0239,GBN SERVICES LTD,25/04/2022 00:00,29/05/2022 00:00,P02-2023
P&V,RIVER LEE COUNTRY PARK,PREMISES RELATED EXPENDITURE,GENERAL WASTE,2211,P117237-SERVICE-12yd General Rubbish Skip at Holyfield Hall F,04/05/2022 00:00,262629,252,GB0239,GBN SERVICES LTD,25/04/2022 00:00,29/05/2022 00:00,P02-2023
P&V,RIVER LEE COUNTRY PARK,PREMISES RELATED EXPENDITURE,GENERAL WASTE,2211,P117498-SERVICE-12yd General Rubbish Skip at Holyfield Hall F,24/05/2022 00:00,263508,308,GB0239,GBN SERVICES LTD,25/04/2022 00:00,29/05/2022 00:00,P02-2023
P&V,ALMOST WILD CAMPSITE,PREMISES RELATED EXPENDITURE,GENERAL WASTE,2211,P118138-SERVICE-Empty Toilet Tanks @ Almost Wild Campsite,29/05/2022 00:00,263630,250,CO0550,CONVERT WATER LTD,25/04/2022 00:00,29/05/2022 00:00,P02-2023
,LV LEISURE CENTRE CAMPSITE,PREMISES RELATED EXPENDITURE,GENERAL WASTE,2211,P118003-SERVICE-Skip recycling compactor,18/05/2022 00:00,262922,297.12,BY0049,BYWATERS (LEYTON) LTD,25/04/2022 00:00,29/05/2022 00:00,P02-2023
P&V,MYDDELTON HOUSE,PREMISES RELATED EXPENDITURE,RECYCLING,2214,P117532-SERVICE-Recycling,09/05/2022 00:00,262962,179.02,CA0341,F & R CAWLEY LTD,25/04/2022 00:00,29/05/2022 00:00,P02-2023
P&V,MYDDELTON HOUSE,PREMISES RELATED EXPENDITURE,BUILDING SERVICE AGREEMENTS,2220,P117789-SERVICE-Weekday Collection Fee,28/04/2022 00:00,262438,825,RO0022,ROYAL MAIL GROUP PLC,25/04/2022 00:00,29/05/2022 00:00,P02-2023
P&V,MYDDELTON HOUSE,PREMISES RELATED EXPENDITURE,BUILDING SERVICE AGREEMENTS,2220,P117526-SERVICE-Santiary Services,28/04/2022 00:00,262457,167.05,PE0015,PHS GROUP PLC,25/04/2022 00:00,29/05/2022 00:00,P02-2023
P&V,MYDDELTON HOUSE,PREMISES RELATED EXPENDITURE,BUILDING SERVICE AGREEMENTS,2220,P117526-SERVICE-Santiary Services,28/04/2022 00:00,262476,8.25,PE0015,PHS GROUP PLC,25/04/2022 00:00,29/05/2022 00:00,P02-2023
P&V,MYDDELTON HOUSE,PREMISES RELATED EXPENDITURE,BUILDING SERVICE AGREEMENTS,2220,P117526-SERVICE-Santiary Services,16/05/2022 00:00,263150,22.52,PE0015,PHS GROUP PLC,25/04/2022 00:00,29/05/2022 00:00,P02-2023
P&V,MYDDELTON HOUSE,PREMISES RELATED EXPENDITURE,BUILDING SERVICE AGREEMENTS,2220,P118085-SERVICE-Call Out for Fire Alarm,23/05/2022 00:00,263185,153.45,AD0015,ADT FIRE & SECURITY PLC,25/04/2022 00:00,29/05/2022 00:00,P02-2023
P&V,MYDDELTON HOUSE,PREMISES RELATED EXPENDITURE,BUILDING SERVICE AGREEMENTS,2220,P117526-SERVICE-Santiary Services,24/05/2022 00:00,263484,53.44,PE0015,PHS GROUP PLC,25/04/2022 00:00,29/05/2022 00:00,P02-2023
P&V,MYDDELTON HOUSE,PREMISES RELATED EXPENDITURE,BUILDING SERVICE AGREEMENTS,2220,P117526-SERVICE-Santiary Services,29/05/2022 00:00,263712,22.52,PE0015,PHS GROUP PLC,25/04/2022 00:00,29/05/2022 00:00,P02-2023
P&V,MYDDELTON HOUSE,PREMISES RELATED EXPENDITURE,BUILDING SERVICE AGREEMENTS,2220,P117526-SERVICE-Santiary Services,29/05/2022 00:00,263713,8.25,PE0015,PHS GROUP PLC,25/04/2022 00:00,29/05/2022 00:00,P02-2023
P&V,MYDDELTON HOUSE,PREMISES RELATED EXPENDITURE,BUILDING SERVICE AGREEMENTS,2220,P117526-SERVICE-Santiary Services,29/05/2022 00:00,263714,167.05,PE0015,PHS GROUP PLC,25/04/2022 00:00,29/05/2022 00:00,P02-2023
P&V,"ASSET PROTECTION, MAINT, DEVEL",PREMISES RELATED EXPENDITURE,BUILDING SERVICE AGREEMENTS,2220,P118149-SERVICE-Preventative maintenance 1/4/22 - 30/6/22,29/05/2022 00:00,263642,2028.99,ST0642,STANLEY SECURITY SOLUTIONS LTD,25/04/2022 00:00,29/05/2022 00:00,P02-2023
,LEE VALLEY WATERWORKS CENTRE,PREMISES RELATED EXPENDITURE,BUILDING SERVICE AGREEMENTS,2220,P117528-SERVICE-Investigate Heating Issues at WaterWorks,04/05/2022 00:00,262467,230.98,CO0199,EQUANS FM LIMITED (frmlyENGIE FM LIMITED),25/04/2022 00:00,29/05/2022 00:00,P02-2023
,LEE VALLEY WATERWORKS CENTRE,PREMISES RELATED EXPENDITURE,BUILDING SERVICE AGREEMENTS,2220,P118066-SERVICE-Engineering Service to Carry out PPM - Feb 21,23/05/2022 00:00,263276,186,CO0199,EQUANS FM LIMITED (frmlyENGIE FM LIMITED),25/04/2022 00:00,29/05/2022 00:00,P02-2023
,LEE VALLEY WATERWORKS CENTRE,PREMISES RELATED EXPENDITURE,BUILDING SERVICE AGREEMENTS,2220,P118066-SERVICE-Engineering Service to Carry out PPM - Mar 21,23/05/2022 00:00,263277,287.45,CO0199,EQUANS FM LIMITED (frmlyENGIE FM LIMITED),25/04/2022 00:00,29/05/2022 00:00,P02-2023
,LEE VALLEY WATERWORKS CENTRE,PREMISES RELATED EXPENDITURE,BUILDING SERVICE AGREEMENTS,2220,P118066-SERVICE-Engineering Service to Carry out PPM - Apr 21,23/05/2022 00:00,263278,439.63,CO0199,EQUANS FM LIMITED (frmlyENGIE FM LIMITED),25/04/2022 00:00,29/05/2022 00:00,P02-2023
,LEE VALLEY CAMPSITE,PREMISES RELATED EXPENDITURE,BUILDING SERVICE AGREEMENTS,2220,P118102-SERVICE-April 22,24/05/2022 00:00,263454,70,VE0006,VERMINATE CITY & RURAL PEST CONTROL LTD,25/04/2022 00:00,29/05/2022 00:00,P02-2023
,LEE VALLEY CAMPSITE,PREMISES RELATED EXPENDITURE,BUILDING SERVICE AGREEMENTS,2220,P118102-SERVICE-May 22,24/05/2022 00:00,263455,70,VE0006,VERMINATE CITY & RURAL PEST CONTROL LTD,25/04/2022 00:00,29/05/2022 00:00,P02-2023
,LEE VALLEY CARAVAN PARK,PREMISES RELATED EXPENDITURE,BUILDING SERVICE AGREEMENTS,2220,P118162-SERVICE-Monthly pest control,29/05/2022 00:00,263456,70,VE0006,VERMINATE CITY & RURAL PEST CONTROL LTD,25/04/2022 00:00,29/05/2022 00:00,P02-2023
,LEE VALLEY CARAVAN PARK,PREMISES RELATED EXPENDITURE,BUILDING SERVICE AGREEMENTS,2220,P118163-SERVICE-Monthly pest control,29/05/2022 00:00,263457,70,VE0006,VERMINATE CITY & RURAL PEST CONTROL LTD,25/04/2022 00:00,29/05/2022 00:00,P02-2023
P&V,NORTH AREA RANGERS,PREMISES RELATED EXPENDITURE,BUILDING SERVICE AGREEMENTS,2220,P117223-SERVICE-Sanitary Disposal - Old Mill & Meadows Toilet,24/05/2022 00:00,263485,17.58,PE0015,PHS GROUP PLC,25/04/2022 00:00,29/05/2022 00:00,P02-2023
P&V,SOUTH AREA RANGERS,PREMISES RELATED EXPENDITURE,BUILDING SERVICE AGREEMENTS,2220,P113617-SERVICE-Lea Bridge Underpass Service Inspection x 2,04/05/2022 00:00,262469,646.78,CO0199,EQUANS FM LIMITED (frmlyENGIE FM LIMITED),25/04/2022 00:00,29/05/2022 00:00,P02-2023
P&V,GUNPOWDER PARK,PREMISES RELATED EXPENDITURE,BUILDING SERVICE AGREEMENTS,2220,P116312-SERVICE-Building Servcie Agreement - Gunpowder Park,04/05/2022 00:00,262468,145.96,CO0199,EQUANS FM LIMITED (frmlyENGIE FM LIMITED),25/04/2022 00:00,29/05/2022 00:00,P02-2023
P&V,GUNPOWDER PARK,PREMISES RELATED EXPENDITURE,BUILDING SERVICE AGREEMENTS,2220,P116312-SERVICE-Building Servcie Agreement - Gunpowder Park,04/05/2022 00:00,262470,145.96,CO0199,EQUANS FM LIMITED (frmlyENGIE FM LIMITED),25/04/2022 00:00,29/05/2022 00:00,P02-2023
R&B,INFORMATION TECHNOLOGY,EMPLOYEES,APPOINTMENT EXPENSES,1301,P117998-SERVICE-IT Apprentice Advert Costs,16/05/2022 00:00,263159,40,LO0426,LOVE YOUR DOORSTEP LTD,25/04/2022 00:00,29/05/2022 00:00,P02-2023
P&V,FISHERIES MANAGEMENT,EMPLOYEES,APPOINTMENT EXPENSES,1301,P118063-SERVICE-Angling & Waterbodies Officer advert costs,23/05/2022 00:00,263443,1039.1,SA0133,SOWERBY ADVERTISING AND COMMUNICATIONS,25/04/2022 00:00,29/05/2022 00:00,P02-2023
P&V,YOUTH AND SCHOOLS,EMPLOYEES,APPOINTMENT EXPENSES,1301,P117784-SERVICE-LEARNING & ENGAGEMENT OFFICER ADVERT COSTS,16/05/2022 00:00,262674,1039.1,SA0133,SOWERBY ADVERTISING AND COMMUNICATIONS,25/04/2022 00:00,29/05/2022 00:00,P02-2023
P&V,YOUTH AND SCHOOLS,EMPLOYEES,APPOINTMENT EXPENSES,1301,P117943-SERVICE-L&D Officer advert costs,24/05/2022 00:00,263042,454,SA0133,SOWERBY ADVERTISING AND COMMUNICATIONS,25/04/2022 00:00,29/05/2022 00:00,P02-2023
P&V,POLICY & PERFORMANCE (L&E),EMPLOYEES,APPOINTMENT EXPENSES,1301,P118057-SERVICE-Procurement Officer Advert Costs,23/05/2022 00:00,263442,1408,SA0133,SOWERBY ADVERTISING AND COMMUNICATIONS,25/04/2022 00:00,29/05/2022 00:00,P02-2023
P&V,YOUTH AND SCHOOLS,EMPLOYEES,TRAINING EXPENSES,1305,P117985-SERVICE-Annual Fee for access to Mindfulness in Schoo,17/05/2022 00:00,263037,150,MI0459,MINDFULNESS IN SCHOOLS PROJECT,25/04/2022 00:00,29/05/2022 00:00,P02-2023
P&V,SOUTH AREA RANGERS,EMPLOYEES,TRAINING EXPENSES,1305,P117809-SERVICE-Survey with Plant Identification Course,10/05/2022 00:00,262720,150,FI0134,FIELD STUDIES COUNCIL,25/04/2022 00:00,29/05/2022 00:00,P02-2023
R&B,CORPORATE TRAINING,EMPLOYEES,TRAINING PANEL,1306,P117479-SERVICE-STRAGETY & POLICY DEVELOPMENT TRAINING KK,16/05/2022 00:00,263188,765,CH0002,CIPFA BUSINESS LTD,25/04/2022 00:00,29/05/2022 00:00,P02-2023
R&B,NON DISTRIBUTED COSTS,EMPLOYEES,SUPERANNUATION ADDED YEARS,1310,LONDON PENSIONS FUND AUTHORITY,04/05/2022 00:00,262482,5322.66,LO0031,LONDON PENSIONS FUND AUTHORITY,25/04/2022 00:00,29/05/2022 00:00,P02-2023
,LV CAMPSITE CARAVAN SALES,EMPLOYEES,CRB CHECKS,1330,DBS CHECK,10/05/2022 00:00,262941,18,DD0119,DUE DILIGENCE CHECKING LIMITED,25/04/2022 00:00,29/05/2022 00:00,P02-2023
,LV CAMPSITE CARAVAN SALES,EMPLOYEES,CRB CHECKS,1330,ADMIN FEE,10/05/2022 00:00,262941,18,DD0119,DUE DILIGENCE CHECKING LIMITED,25/04/2022 00:00,29/05/2022 00:00,P02-2023
,LEE VALLEY VELOPARK,EMPLOYEES,CRB CHECKS,1330,DBS CHECK CREDIT,10/05/2022 00:00,262940,-92,DD0119,DUE DILIGENCE CHECKING LIMITED,25/04/2022 00:00,29/05/2022 00:00,P02-2023
,LV HOCKEY AND TENNIS CENTRE,EMPLOYEES,CRB CHECKS,1330,DBS CHECK CREDIT,10/05/2022 00:00,262940,-80,DD0119,DUE DILIGENCE CHECKING LIMITED,25/04/2022 00:00,29/05/2022 00:00,P02-2023
,LEE VALLEY RIDING CENTRE,EMPLOYEES,CRB CHECKS,1330,DBS CHECK CREDIT,10/05/2022 00:00,262940,-240,DD0119,DUE DILIGENCE CHECKING LIMITED,25/04/2022 00:00,29/05/2022 00:00,P02-2023
,LEE VALLEY ICE CENTRE,EMPLOYEES,CRB CHECKS,1330,DBS CHECK CREDIT,10/05/2022 00:00,262940,-40,DD0119,DUE DILIGENCE CHECKING LIMITED,25/04/2022 00:00,29/05/2022 00:00,P02-2023
,LV LEISURE CENTRE CAMPSITE,EMPLOYEES,CRB CHECKS,1330,DBS CHECK,10/05/2022 00:00,262941,18,DD0119,DUE DILIGENCE CHECKING LIMITED,25/04/2022 00:00,29/05/2022 00:00,P02-2023
,LV LEISURE CENTRE CAMPSITE,EMPLOYEES,CRB CHECKS,1330,ADMIN FEE,10/05/2022 00:00,262941,18,DD0119,DUE DILIGENCE CHECKING LIMITED,25/04/2022 00:00,29/05/2022 00:00,P02-2023
,LEE VALLEY ATHLETICS CENTRE,EMPLOYEES,CRB CHECKS,1330,DBS CHECK CREDIT,10/05/2022 00:00,262940,-132,DD0119,DUE DILIGENCE CHECKING LIMITED,25/04/2022 00:00,29/05/2022 00:00,P02-2023
,LEE VALLEY WHITE WATER CENTRE,EMPLOYEES,CRB CHECKS,1330,DBS CHECK CREDIT,10/05/2022 00:00,262940,-252,DD0119,DUE DILIGENCE CHECKING LIMITED,25/04/2022 00:00,29/05/2022 00:00,P02-2023
R&B,CORPORATE TRAINING,EMPLOYEES,APPRENTICE LEVY,1390,PAYE,09/05/2022 00:00,262851,574,HM0368,HMRC,25/04/2022 00:00,29/05/2022 00:00,P02-2023
CEO,LVLC SERVICE CHARGE,PREMISES RELATED EXPENDITURE,SCHEDULED GROUND MAINTENANCE,2111,GLENDALE GROUNDS MANAGEMENT LI,09/05/2022 00:00,262731,2967.18,GL0214,GLENDALE GROUNDS MANAGEMENT LIMITED,25/04/2022 00:00,29/05/2022 00:00,P02-2023
CEO,LVLC SERVICE CHARGE,PREMISES RELATED EXPENDITURE,SCHEDULED GROUND MAINTENANCE,2111,GLENDALE GROUNDS MANAGEMENT LI,09/05/2022 00:00,262731,108.26,GL0214,GLENDALE GROUNDS MANAGEMENT LIMITED,25/04/2022 00:00,29/05/2022 00:00,P02-2023
P&V,MYDDELTON HOUSE,PREMISES RELATED EXPENDITURE,CONTRACT CLEANING,2120,P117626-SERVICE-Contract Cleaning,09/05/2022 00:00,262942,3113.76,BR0632,BRITANNIA SERVICES GROUP LTD,25/04/2022 00:00,29/05/2022 00:00,P02-2023
,LEE VALLEY CAMPSITE,PREMISES RELATED EXPENDITURE,CONTRACT CLEANING,2120,P117799-SERVICE-26/04/22 - 25/05/22,27/04/2022 00:00,262364,82.09,IN0012,INITIAL WASHROOM HYGIENE,25/04/2022 00:00,29/05/2022 00:00,P02-2023
,LEE VALLEY CAMPSITE,PREMISES RELATED EXPENDITURE,CONTRACT CLEANING,2120,P117807-SERVICE-Soap dispenser refills,27/04/2022 00:00,262454,18.48,IN0012,INITIAL WASHROOM HYGIENE,25/04/2022 00:00,29/05/2022 00:00,P02-2023
,LEE VALLEY CAMPSITE,PREMISES RELATED EXPENDITURE,CONTRACT CLEANING,2120,P117902-SERVICE-Cabins 21.5 hrs,16/05/2022 00:00,262893,299.93,LI0305,LIMPIAR CLEANING,25/04/2022 00:00,29/05/2022 00:00,P02-2023
,LEE VALLEY CAMPSITE,PREMISES RELATED EXPENDITURE,CONTRACT CLEANING,2120,P117902-SERVICE-Cocoons 9hrs,16/05/2022 00:00,262893,125.55,LI0305,LIMPIAR CLEANING,25/04/2022 00:00,29/05/2022 00:00,P02-2023
,LEE VALLEY CAMPSITE,PREMISES RELATED EXPENDITURE,CONTRACT CLEANING,2120,P117902-SERVICE-Showers/toilets 63 hrs,16/05/2022 00:00,262893,878.85,LI0305,LIMPIAR CLEANING,25/04/2022 00:00,29/05/2022 00:00,P02-2023
,LEE VALLEY CAMPSITE,PREMISES RELATED EXPENDITURE,CONTRACT CLEANING,2120,P117799-SERVICE-26/05/22 - 25/06/22,16/05/2022 00:00,262979,82.09,IN0012,INITIAL WASHROOM HYGIENE,25/04/2022 00:00,29/05/2022 00:00,P02-2023
,LEE VALLEY CARAVAN PARK,PREMISES RELATED EXPENDITURE,CONTRACT CLEANING,2120,P117764-SERVICE-May Service period,28/04/2022 00:00,262381,90.39,IN0012,INITIAL WASHROOM HYGIENE,25/04/2022 00:00,29/05/2022 00:00,P02-2023
,LEE VALLEY CARAVAN PARK,PREMISES RELATED EXPENDITURE,CONTRACT CLEANING,2120,P117895-SERVICE-Lodge and wigwam cleaning,09/05/2022 00:00,262892,2838.83,LI0305,LIMPIAR CLEANING,25/04/2022 00:00,29/05/2022 00:00,P02-2023
,LEE VALLEY CARAVAN PARK,PREMISES RELATED EXPENDITURE,CONTRACT CLEANING,2120,P118160-SERVICE-Monthly service,29/05/2022 00:00,263346,90.39,IN0012,INITIAL WASHROOM HYGIENE,25/04/2022 00:00,29/05/2022 00:00,P02-2023
P&V,NORTH AREA RANGERS,PREMISES RELATED EXPENDITURE,CONTRACT CLEANING,2120,GLENDALE GROUNDS MANAGEMENT LI,09/05/2022 00:00,262731,395.98,GL0214,GLENDALE GROUNDS MANAGEMENT LIMITED,25/04/2022 00:00,29/05/2022 00:00,P02-2023
P&V,GUNPOWDER PARK,PREMISES RELATED EXPENDITURE,CONTRACT CLEANING,2120,GLENDALE GROUNDS MANAGEMENT LI,09/05/2022 00:00,262731,542.17,GL0214,GLENDALE GROUNDS MANAGEMENT LIMITED,25/04/2022 00:00,29/05/2022 00:00,P02-2023
P&V,RIVER LEE COUNTRY PARK,PREMISES RELATED EXPENDITURE,CONTRACT CLEANING,2120,GLENDALE GROUNDS MANAGEMENT LI,09/05/2022 00:00,262731,1084.34,GL0214,GLENDALE GROUNDS MANAGEMENT LIMITED,25/04/2022 00:00,29/05/2022 00:00,P02-2023
,LEE VALLEY CARAVAN PARK,PREMISES RELATED EXPENDITURE,LINEN SERVICE,2122,P117898-SERVICE-Linen cleaning service,09/05/2022 00:00,262630,605.42,JO0168,JOHNSONS STALBRIDGE LINEN SERVICES,25/04/2022 00:00,29/05/2022 00:00,P02-2023
,LEE VALLEY MARINA STANSTEAD,PREMISES RELATED EXPENDITURE,GM MAIN CONTRACT SCHEDULED,2141,GLENDALE GROUNDS MANAGEMENT LI,09/05/2022 00:00,262731,378.42,GL0214,GLENDALE GROUNDS MANAGEMENT LIMITED,25/04/2022 00:00,29/05/2022 00:00,P02-2023
,LEE VALLEY WATERWORKS CENTRE,PREMISES RELATED EXPENDITURE,GM MAIN CONTRACT SCHEDULED,2141,GLENDALE GROUNDS MANAGEMENT LI,09/05/2022 00:00,262731,501.34,GL0214,GLENDALE GROUNDS MANAGEMENT LIMITED,25/04/2022 00:00,29/05/2022 00:00,P02-2023
,LEE VALLEY WATERWORKS CENTRE,PREMISES RELATED EXPENDITURE,GM MAIN CONTRACT SCHEDULED,2141,GLENDALE GROUNDS MANAGEMENT LI,09/05/2022 00:00,262731,260.88,GL0214,GLENDALE GROUNDS MANAGEMENT LIMITED,25/04/2022 00:00,29/05/2022 00:00,P02-2023
,LEE VALLEY FARM HAYES HILL,PREMISES RELATED EXPENDITURE,GM MAIN CONTRACT SCHEDULED,2141,GLENDALE GROUNDS MANAGEMENT LI,09/05/2022 00:00,262731,306,GL0214,GLENDALE GROUNDS MANAGEMENT LIMITED,25/04/2022 00:00,29/05/2022 00:00,P02-2023
P&V,EAST INDIA DOCK AND BOW CREEK,PREMISES RELATED EXPENDITURE,GM MAIN CONTRACT SCHEDULED,2141,GLENDALE GROUNDS MANAGEMENT LI,09/05/2022 00:00,262731,834.36,GL0214,GLENDALE GROUNDS MANAGEMENT LIMITED,25/04/2022 00:00,29/05/2022 00:00,P02-2023
P&V,EAST INDIA DOCK AND BOW CREEK,PREMISES RELATED EXPENDITURE,GM MAIN CONTRACT SCHEDULED,2141,GLENDALE GROUNDS MANAGEMENT LI,09/05/2022 00:00,262731,931.76,GL0214,GLENDALE GROUNDS MANAGEMENT LIMITED,25/04/2022 00:00,29/05/2022 00:00,P02-2023
P&V,NORTH AREA RANGERS,PREMISES RELATED EXPENDITURE,GM MAIN CONTRACT SCHEDULED,2141,GLENDALE GROUNDS MANAGEMENT LI,09/05/2022 00:00,262731,5610.98,GL0214,GLENDALE GROUNDS MANAGEMENT LIMITED,25/04/2022 00:00,29/05/2022 00:00,P02-2023
P&V,SOUTH AREA RANGERS,PREMISES RELATED EXPENDITURE,GM MAIN CONTRACT SCHEDULED,2141,GLENDALE GROUNDS MANAGEMENT LI,09/05/2022 00:00,262731,6460.14,GL0214,GLENDALE GROUNDS MANAGEMENT LIMITED,25/04/2022 00:00,29/05/2022 00:00,P02-2023
P&V,SOUTH AREA RANGERS,PREMISES RELATED EXPENDITURE,GM MAIN CONTRACT SCHEDULED,2141,GLENDALE GROUNDS MANAGEMENT LI,09/05/2022 00:00,262731,745.41,GL0214,GLENDALE GROUNDS MANAGEMENT LIMITED,25/04/2022 00:00,29/05/2022 00:00,P02-2023
P&V,ABBEY GARDENS,PREMISES RELATED EXPENDITURE,GM MAIN CONTRACT SCHEDULED,2141,GLENDALE GROUNDS MANAGEMENT LI,09/05/2022 00:00,262731,2842.32,GL0214,GLENDALE GROUNDS MANAGEMENT LIMITED,25/04/2022 00:00,29/05/2022 00:00,P02-2023
P&V,GUNPOWDER PARK,PREMISES RELATED EXPENDITURE,GM MAIN CONTRACT SCHEDULED,2141,GLENDALE GROUNDS MANAGEMENT LI,09/05/2022 00:00,262731,2803.01,GL0214,GLENDALE GROUNDS MANAGEMENT LIMITED,25/04/2022 00:00,29/05/2022 00:00,P02-2023
P&V,RIVER LEE COUNTRY PARK,PREMISES RELATED EXPENDITURE,GM MAIN CONTRACT SCHEDULED,2141,GLENDALE GROUNDS MANAGEMENT LI,09/05/2022 00:00,262731,2608.92,GL0214,GLENDALE GROUNDS MANAGEMENT LIMITED,25/04/2022 00:00,29/05/2022 00:00,P02-2023
P&V,RIVER LEE COUNTRY PARK,PREMISES RELATED EXPENDITURE,GM MAIN CONTRACT SCHEDULED,2141,GLENDALE GROUNDS MANAGEMENT LI,09/05/2022 00:00,262731,16359.56,GL0214,GLENDALE GROUNDS MANAGEMENT LIMITED,25/04/2022 00:00,29/05/2022 00:00,P02-2023
,LEE VALLEY VELOPARK,PREMISES RELATED EXPENDITURE,GM MAIN CONTRACT SCHEDULED,2141,GLENDALE GROUNDS MANAGEMENT LI,09/05/2022 00:00,262731,7081.26,GL0214,GLENDALE GROUNDS MANAGEMENT LIMITED,25/04/2022 00:00,29/05/2022 00:00,P02-2023
,LV HOCKEY AND TENNIS CENTRE,PREMISES RELATED EXPENDITURE,GM MAIN CONTRACT SCHEDULED,2141,GLENDALE GROUNDS MANAGEMENT LI,09/05/2022 00:00,262731,4459.2,GL0214,GLENDALE GROUNDS MANAGEMENT LIMITED,25/04/2022 00:00,29/05/2022 00:00,P02-2023
P&V,THREE MILLS,PREMISES RELATED EXPENDITURE,GM MAIN CONTRACT SCHEDULED,2141,GLENDALE GROUNDS MANAGEMENT LI,09/05/2022 00:00,262731,1593.99,GL0214,GLENDALE GROUNDS MANAGEMENT LIMITED,25/04/2022 00:00,29/05/2022 00:00,P02-2023
,LEE VALLEY RIDING CENTRE,PREMISES RELATED EXPENDITURE,GM MAIN CONTRACT SCHEDULED,2141,GLENDALE GROUNDS MANAGEMENT LI,09/05/2022 00:00,262731,462.16,GL0214,GLENDALE GROUNDS MANAGEMENT LIMITED,25/04/2022 00:00,29/05/2022 00:00,P02-2023
,LEE VALLEY ICE CENTRE,PREMISES RELATED EXPENDITURE,GM MAIN CONTRACT SCHEDULED,2141,GLENDALE GROUNDS MANAGEMENT LI,09/05/2022 00:00,262731,329.82,GL0214,GLENDALE GROUNDS MANAGEMENT LIMITED,25/04/2022 00:00,29/05/2022 00:00,P02-2023
P&V,FORMER LV LIDO SITE,PREMISES RELATED EXPENDITURE,GM MAIN CONTRACT SCHEDULED,2141,GLENDALE GROUNDS MANAGEMENT LI,09/05/2022 00:00,262731,1091.9,GL0214,GLENDALE GROUNDS MANAGEMENT LIMITED,25/04/2022 00:00,29/05/2022 00:00,P02-2023
,LEE VALLEY ATHLETICS CENTRE,PREMISES RELATED EXPENDITURE,GM MAIN CONTRACT SCHEDULED,2141,GLENDALE GROUNDS MANAGEMENT LI,09/05/2022 00:00,262731,655.21,GL0214,GLENDALE GROUNDS MANAGEMENT LIMITED,25/04/2022 00:00,29/05/2022 00:00,P02-2023
,LEE VALLEY WHITE WATER CENTRE,PREMISES RELATED EXPENDITURE,GM MAIN CONTRACT SCHEDULED,2141,GLENDALE GROUNDS MANAGEMENT LI,09/05/2022 00:00,262731,2812.92,GL0214,GLENDALE GROUNDS MANAGEMENT LIMITED,25/04/2022 00:00,29/05/2022 00:00,P02-2023
,LEE VALLEY WATERWORKS CENTRE,PREMISES RELATED EXPENDITURE,GM HORTICULTURE SCHEDULED,2143,GLENDALE GROUNDS MANAGEMENT LI,09/05/2022 00:00,262731,166.85,GL0214,GLENDALE GROUNDS MANAGEMENT LIMITED,25/04/2022 00:00,29/05/2022 00:00,P02-2023
P&V,NORTH AREA RANGERS,PREMISES RELATED EXPENDITURE,GM HORTICULTURE SCHEDULED,2143,GLENDALE GROUNDS MANAGEMENT LI,09/05/2022 00:00,262731,248.06,GL0214,GLENDALE GROUNDS MANAGEMENT LIMITED,25/04/2022 00:00,29/05/2022 00:00,P02-2023
P&V,SOUTH AREA RANGERS,PREMISES RELATED EXPENDITURE,GM HORTICULTURE SCHEDULED,2143,GLENDALE GROUNDS MANAGEMENT LI,09/05/2022 00:00,262731,142.22,GL0214,GLENDALE GROUNDS MANAGEMENT LIMITED,25/04/2022 00:00,29/05/2022 00:00,P02-2023
P&V,ABBEY GARDENS,PREMISES RELATED EXPENDITURE,GM HORTICULTURE SCHEDULED,2143,GLENDALE GROUNDS MANAGEMENT LI,09/05/2022 00:00,262731,1938.16,GL0214,GLENDALE GROUNDS MANAGEMENT LIMITED,25/04/2022 00:00,29/05/2022 00:00,P02-2023
P&V,GUNPOWDER PARK,PREMISES RELATED EXPENDITURE,GM HORTICULTURE SCHEDULED,2143,GLENDALE GROUNDS MANAGEMENT LI,09/05/2022 00:00,262731,254.42,GL0214,GLENDALE GROUNDS MANAGEMENT LIMITED,25/04/2022 00:00,29/05/2022 00:00,P02-2023
P&V,RIVER LEE COUNTRY PARK,PREMISES RELATED EXPENDITURE,GM HORTICULTURE SCHEDULED,2143,GLENDALE GROUNDS MANAGEMENT LI,09/05/2022 00:00,262731,132.03,GL0214,GLENDALE GROUNDS MANAGEMENT LIMITED,25/04/2022 00:00,29/05/2022 00:00,P02-2023
,LEE VALLEY VELOPARK,PREMISES RELATED EXPENDITURE,GM HORTICULTURE SCHEDULED,2143,GLENDALE GROUNDS MANAGEMENT LI,09/05/2022 00:00,262731,1100,GL0214,GLENDALE GROUNDS MANAGEMENT LIMITED,25/04/2022 00:00,29/05/2022 00:00,P02-2023
,LV HOCKEY AND TENNIS CENTRE,PREMISES RELATED EXPENDITURE,GM HORTICULTURE SCHEDULED,2143,GLENDALE GROUNDS MANAGEMENT LI,09/05/2022 00:00,262731,1393.7,GL0214,GLENDALE GROUNDS MANAGEMENT LIMITED,25/04/2022 00:00,29/05/2022 00:00,P02-2023
P&V,THREE MILLS,PREMISES RELATED EXPENDITURE,GM HORTICULTURE SCHEDULED,2143,GLENDALE GROUNDS MANAGEMENT LI,09/05/2022 00:00,262731,52.89,GL0214,GLENDALE GROUNDS MANAGEMENT LIMITED,25/04/2022 00:00,29/05/2022 00:00,P02-2023
,LEE VALLEY RIDING CENTRE,PREMISES RELATED EXPENDITURE,GM HORTICULTURE SCHEDULED,2143,GLENDALE GROUNDS MANAGEMENT LI,09/05/2022 00:00,262731,13.22,GL0214,GLENDALE GROUNDS MANAGEMENT LIMITED,25/04/2022 00:00,29/05/2022 00:00,P02-2023
P&V,FORMER LV LIDO SITE,PREMISES RELATED EXPENDITURE,GM HORTICULTURE SCHEDULED,2143,GLENDALE GROUNDS MANAGEMENT LI,09/05/2022 00:00,262731,12.61,GL0214,GLENDALE GROUNDS MANAGEMENT LIMITED,25/04/2022 00:00,29/05/2022 00:00,P02-2023
,LEE VALLEY WHITE WATER CENTRE,PREMISES RELATED EXPENDITURE,GM HORTICULTURE SCHEDULED,2143,GLENDALE GROUNDS MANAGEMENT LI,09/05/2022 00:00,262731,7.58,GL0214,GLENDALE GROUNDS MANAGEMENT LIMITED,25/04/2022 00:00,29/05/2022 00:00,P02-2023
P&V,ABBEY GARDENS,PREMISES RELATED EXPENDITURE,GM ARBORICULTURE UNSCHEDULED,2146,P118095-SERVICE-Emergency Tree Works - Waltham Abbey Gardens,29/05/2022 00:00,263685,800,MU0030,P J MUSK TREES,25/04/2022 00:00,29/05/2022 00:00,P02-2023
P&V,GUNPOWDER PARK,PREMISES RELATED EXPENDITURE,GM ARBORICULTURE UNSCHEDULED,2146,P117712-SERVICE-Tree works Sewardstone Marsh remove hanging l,10/05/2022 00:00,262969,150,PA0222,PARKIN & PARKER TREE SPECIALISTS,25/04/2022 00:00,29/05/2022 00:00,P02-2023
P&V,RIVER LEE COUNTRY PARK,PREMISES RELATED EXPENDITURE,GM ARBORICULTURE UNSCHEDULED,2146,P117502-SERVICE-Showground Enrance - Stump Grinding,04/05/2022 00:00,262504,225,VE0004,PRINCIPAL TREES LTD,25/04/2022 00:00,29/05/2022 00:00,P02-2023
P&V,RIVER LEE COUNTRY PARK,PREMISES RELATED EXPENDITURE,GM ARBORICULTURE UNSCHEDULED,2146,P117744-SERVICE-Tree Works at Dodds Weir,23/05/2022 00:00,263438,795,MU0030,P J MUSK TREES,25/04/2022 00:00,29/05/2022 00:00,P02-2023
P&V,RIVER LEE COUNTRY PARK,PREMISES RELATED EXPENDITURE,GM ARBORICULTURE UNSCHEDULED,2146,P118054-SERVICE-Tree Works at Green Lanes Fishery,29/05/2022 00:00,263684,300,MU0030,P J MUSK TREES,25/04/2022 00:00,29/05/2022 00:00,P02-2023
P&V,EAST INDIA DOCK AND BOW CREEK,PREMISES RELATED EXPENDITURE,GM NON MAIN CONT UNSCHEDULED,2147,P117852-SERVICE-Install Flag Pole at Bow Creek,09/05/2022 00:00,262855,250,JO0019,R G JOYCE,25/04/2022 00:00,29/05/2022 00:00,P02-2023
P&V,GUNPOWDER PARK,PREMISES RELATED EXPENDITURE,BUILDING SERVICE AGREEMENTS,2220,P117221-SERVICE-Sanitary Disposal - Gunpowder Park Office Toi,04/05/2022 00:00,262478,2.7,PE0015,PHS GROUP PLC,25/04/2022 00:00,29/05/2022 00:00,P02-2023
P&V,GUNPOWDER PARK,PREMISES RELATED EXPENDITURE,BUILDING SERVICE AGREEMENTS,2220,P116312-SERVICE-Building Servcie Agreement - Gunpowder Park,17/05/2022 00:00,263274,145.96,CO0199,EQUANS FM LIMITED (frmlyENGIE FM LIMITED),25/04/2022 00:00,29/05/2022 00:00,P02-2023
P&V,GUNPOWDER PARK,PREMISES RELATED EXPENDITURE,BUILDING SERVICE AGREEMENTS,2220,P117221-SERVICE-Sanitary Disposal - Gunpowder Park Office Toi,29/05/2022 00:00,263716,2.7,PE0015,PHS GROUP PLC,25/04/2022 00:00,29/05/2022 00:00,P02-2023
P&V,RIVER LEE COUNTRY PARK,PREMISES RELATED EXPENDITURE,BUILDING SERVICE AGREEMENTS,2220,P117218-SERVICE-Sharps Container - Ranger Farm Office,04/05/2022 00:00,262477,5.88,PE0015,PHS GROUP PLC,25/04/2022 00:00,29/05/2022 00:00,P02-2023
P&V,RIVER LEE COUNTRY PARK,PREMISES RELATED EXPENDITURE,BUILDING SERVICE AGREEMENTS,2220,P117777-SERVICE-Hand Washer/Driers Service - Fisher Green Toi,09/05/2022 00:00,262934,764.76,WA0194,WALLGATE LIMITED,25/04/2022 00:00,29/05/2022 00:00,P02-2023
P&V,RIVER LEE COUNTRY PARK,PREMISES RELATED EXPENDITURE,BUILDING SERVICE AGREEMENTS,2220,P117224-SERVICE-Sanitary Disposal - Fishers Green Toilets,17/05/2022 00:00,263154,11.37,PE0015,PHS GROUP PLC,25/04/2022 00:00,29/05/2022 00:00,P02-2023
P&V,RIVER LEE COUNTRY PARK,PREMISES RELATED EXPENDITURE,BUILDING SERVICE AGREEMENTS,2220,P117218-SERVICE-Sharps Container - Ranger Farm Office,29/05/2022 00:00,263715,5.88,PE0015,PHS GROUP PLC,25/04/2022 00:00,29/05/2022 00:00,P02-2023
,LV LEISURE CENTRE CAMPSITE,PREMISES RELATED EXPENDITURE,BUILDING SERVICE AGREEMENTS,2220,P118106-SERVICE-Platinum maintenance contract,24/05/2022 00:00,261472,3400,RV0035,RVTV SECURITY GROUP LTD,25/04/2022 00:00,29/05/2022 00:00,P02-2023
,LV LEISURE CENTRE CAMPSITE,PREMISES RELATED EXPENDITURE,BUILDING SERVICE AGREEMENTS,2220,P118116-SERVICE-Pest control site,24/05/2022 00:00,263452,70,VE0006,VERMINATE CITY & RURAL PEST CONTROL LTD,25/04/2022 00:00,29/05/2022 00:00,P02-2023
,LV LEISURE CENTRE CAMPSITE,PREMISES RELATED EXPENDITURE,BUILDING SERVICE AGREEMENTS,2220,P118117-SERVICE-Pest control site april,24/05/2022 00:00,263453,70,VE0006,VERMINATE CITY & RURAL PEST CONTROL LTD,25/04/2022 00:00,29/05/2022 00:00,P02-2023
P&V,MYDDELTON HOUSE,PREMISES RELATED EXPENDITURE,BUILDING REPAIRS & MAINTENANCE,2222,P117937-SERVICE-fire risk assessment 22,29/05/2022 00:00,263325,500,RI0181,RD HEALTH & SAFETY LIMITED,25/04/2022 00:00,29/05/2022 00:00,P02-2023
CEO,RESIDENTIAL ACCOMMODATION,PREMISES RELATED EXPENDITURE,BUILDING REPAIRS & MAINTENANCE,2222,P117982-SERVICE-Gate House Boiler Service,16/05/2022 00:00,259805,121.5,GI0137,R & P GIBBS LIMITED,25/04/2022 00:00,29/05/2022 00:00,P02-2023
CEO,RESIDENTIAL ACCOMMODATION,PREMISES RELATED EXPENDITURE,BUILDING REPAIRS & MAINTENANCE,2222,P117975-SERVICE-Gas Certificate - Springfield Bungalow,16/05/2022 00:00,262409,82.5,CA0165,CASTLES,25/04/2022 00:00,29/05/2022 00:00,P02-2023
CEO,RESIDENTIAL ACCOMMODATION,PREMISES RELATED EXPENDITURE,BUILDING REPAIRS & MAINTENANCE,2222,P117762-SERVICE-Boiler Repair - 1 Gate Cottage,16/05/2022 00:00,262725,229,RE0094,REACT 2 IT (BUILDING & REFURBISHMENT) LTD,25/04/2022 00:00,29/05/2022 00:00,P02-2023
CEO,RESIDENTIAL ACCOMMODATION,PREMISES RELATED EXPENDITURE,BUILDING REPAIRS & MAINTENANCE,2222,P118132-SERVICE-2 Connaught Close - Water Heater & Cylinder W,29/05/2022 00:00,263169,833.33,CA0165,CASTLES,25/04/2022 00:00,29/05/2022 00:00,P02-2023
CEO,RESIDENTIAL ACCOMMODATION,PREMISES RELATED EXPENDITURE,BUILDING REPAIRS & MAINTENANCE,2222,P118133-SERVICE-Roselea Bungalow Pest Control,29/05/2022 00:00,263170,120,CA0165,CASTLES,25/04/2022 00:00,29/05/2022 00:00,P02-2023
CEO,RESIDENTIAL ACCOMMODATION,PREMISES RELATED EXPENDITURE,BUILDING REPAIRS & MAINTENANCE,2222,P118134-SERVICE-9 Picketts Lock Lane - Pest Control & Washing,29/05/2022 00:00,263171,195,CA0165,CASTLES,25/04/2022 00:00,29/05/2022 00:00,P02-2023
CEO,RESIDENTIAL ACCOMMODATION,PREMISES RELATED EXPENDITURE,BUILDING REPAIRS & MAINTENANCE,2222,P118135-SERVICE-2 Bungalow - Boiler Service,29/05/2022 00:00,263268,138,WA0315,PAUL WALLACE ESTATE AGENTS,25/04/2022 00:00,29/05/2022 00:00,P02-2023
CEO,RESIDENTIAL ACCOMMODATION,PREMISES RELATED EXPENDITURE,BUILDING REPAIRS & MAINTENANCE,2222,P118137-SERVICE-2 Connaught Close Pest Control,29/05/2022 00:00,263458,70,VE0006,VERMINATE CITY & RURAL PEST CONTROL LTD,25/04/2022 00:00,29/05/2022 00:00,P02-2023
CEO,COMMERCIAL ACCOMMODATION,PREMISES RELATED EXPENDITURE,BUILDING REPAIRS & MAINTENANCE,2222,P117857-SERVICE-Concrete Blocks Wharf road,09/05/2022 00:00,262634,60,NA0171,NAIVETTE SERVICES LTD,25/04/2022 00:00,29/05/2022 00:00,P02-2023
CEO,COMMERCIAL ACCOMMODATION,PREMISES RELATED EXPENDITURE,BUILDING REPAIRS & MAINTENANCE,2222,P117857-SERVICE-Concrete Blocks Wharf road,29/05/2022 00:00,263675,62,NA0171,NAIVETTE SERVICES LTD,25/04/2022 00:00,29/05/2022 00:00,P02-2023
,LEE VALLEY MARINA SPRINGFIELD,PREMISES RELATED EXPENDITURE,BUILDING REPAIRS & MAINTENANCE,2222,P117583-SERVICE-Fire Alarm System Maintenance,10/05/2022 00:00,262998,379.98,AD0015,ADT FIRE & SECURITY PLC,25/04/2022 00:00,29/05/2022 00:00,P02-2023
,LEE VALLEY MARINA SPRINGFIELD,PREMISES RELATED EXPENDITURE,BUILDING REPAIRS & MAINTENANCE,2222,P117786-SERVICE-To supply pest & vermin control,23/05/2022 00:00,263459,450,VE0006,VERMINATE CITY & RURAL PEST CONTROL LTD,25/04/2022 00:00,29/05/2022 00:00,P02-2023
,LEE VALLEY MARINA SPRINGFIELD,PREMISES RELATED EXPENDITURE,BUILDING REPAIRS & MAINTENANCE,2222,P117952-SERVICE-Replace & set up 2 No dome cameras as quote,29/05/2022 00:00,263639,410,DE0013,DENNIS SECURITY CENTRE,25/04/2022 00:00,29/05/2022 00:00,P02-2023
,LEE VALLEY MARINA SPRINGFIELD,PREMISES RELATED EXPENDITURE,BUILDING REPAIRS & MAINTENANCE,2222,P112675-SERVICE-Dennis Security emergency call outs,29/05/2022 00:00,263640,270,DE0013,DENNIS SECURITY CENTRE,25/04/2022 00:00,29/05/2022 00:00,P02-2023
,LEE VALLEY MARINA STANSTEAD,PREMISES RELATED EXPENDITURE,BUILDING REPAIRS & MAINTENANCE,2222,P117776-SERVICE-A10 Timber for jetty decking,16/05/2022 00:00,262923,1493.52,TI0068,A10 TIMBER COMPANY,25/04/2022 00:00,29/05/2022 00:00,P02-2023
,LEE VALLEY MARINA STANSTEAD,PREMISES RELATED EXPENDITURE,BUILDING REPAIRS & MAINTENANCE,2222,"P118098-SERVICE-carpentry bits, bolts, screws etc",29/05/2022 00:00,263532,54.81,SC0057,SCREWFIX DIRECT LTD,25/04/2022 00:00,29/05/2022 00:00,P02-2023
,LEE VALLEY WATERWORKS CENTRE,PREMISES RELATED EXPENDITURE,BUILDING REPAIRS & MAINTENANCE,2222,P117851-SERVICE-Alarm Maintenance & Monitoring Waterworks Cen,09/05/2022 00:00,262715,900,AA0003,AAI SECURITY SYSTEMS,25/04/2022 00:00,29/05/2022 00:00,P02-2023
,LEE VALLEY WATERWORKS CENTRE,PREMISES RELATED EXPENDITURE,BUILDING REPAIRS & MAINTENANCE,2222,P116989-SERVICE-Replace Fire Panel at WaterWorks,09/05/2022 00:00,262951,639.63,CO0199,EQUANS FM LIMITED (frmlyENGIE FM LIMITED),25/04/2022 00:00,29/05/2022 00:00,P02-2023
P&V,LEE VALLEY FARM HOLYFIELDHALL,PREMISES RELATED EXPENDITURE,BUILDING REPAIRS & MAINTENANCE,2222,P117800-SERVICE-Call Out 20 April,28/04/2022 00:00,262408,104,PS0429,PSL AUTOMATION,25/04/2022 00:00,29/05/2022 00:00,P02-2023
P&V,LEE VALLEY FARM HOLYFIELDHALL,PREMISES RELATED EXPENDITURE,BUILDING REPAIRS & MAINTENANCE,2222,P118076-SERVICE-Fit & Supply Inner Sliding Gate,23/05/2022 00:00,263322,841,PS0429,PSL AUTOMATION,25/04/2022 00:00,29/05/2022 00:00,P02-2023
P&V,LEE VALLEY FARM HOLYFIELDHALL,PREMISES RELATED EXPENDITURE,BUILDING REPAIRS & MAINTENANCE,2222,P118126-SERVICE-Steel,29/05/2022 00:00,263541,219,JP0017,JPS STEEL FABRICATION LTD,25/04/2022 00:00,29/05/2022 00:00,P02-2023
,LEE VALLEY CAMPSITE,PREMISES RELATED EXPENDITURE,BUILDING REPAIRS & MAINTENANCE,2222,P117841-SERVICE-Hot water Block B,09/05/2022 00:00,262704,355,SO0400,SOUTHERN GREEN SERVICES LIMITED,25/04/2022 00:00,29/05/2022 00:00,P02-2023
,LEE VALLEY CARAVAN PARK,PREMISES RELATED EXPENDITURE,BUILDING REPAIRS & MAINTENANCE,2222,P117815-SERVICE-Handrail for wigwam,09/05/2022 00:00,262734,102.54,LE0012,LEASIDE TIMBER & BUILDERS MERCHANTS LTD,25/04/2022 00:00,29/05/2022 00:00,P02-2023
,LEE VALLEY CARAVAN PARK,PREMISES RELATED EXPENDITURE,BUILDING REPAIRS & MAINTENANCE,2222,P117896-SERVICE-New lock mec to Tresco,09/05/2022 00:00,262894,180,EX0414,EXCELL LOCKSMITH,25/04/2022 00:00,29/05/2022 00:00,P02-2023
,LEE VALLEY CARAVAN PARK,PREMISES RELATED EXPENDITURE,BUILDING REPAIRS & MAINTENANCE,2222,P117933-SERVICE-Hand rails to repair Wigwams,23/05/2022 00:00,263187,123.9,LE0012,LEASIDE TIMBER & BUILDERS MERCHANTS LTD,25/04/2022 00:00,29/05/2022 00:00,P02-2023
P&V,GUNPOWDER PARK,PREMISES RELATED EXPENDITURE,BUILDING REPAIRS & MAINTENANCE,2222,P117794-SERVICE-Unblock Toilets -at Gunpowder Park,09/05/2022 00:00,262726,70,RE0094,REACT 2 IT (BUILDING & REFURBISHMENT) LTD,25/04/2022 00:00,29/05/2022 00:00,P02-2023
P&V,GUNPOWDER PARK,PREMISES RELATED EXPENDITURE,BUILDING REPAIRS & MAINTENANCE,2222,P118053-SERVICE-Install Toilet Seat at Gunpowder Park,23/05/2022 00:00,263275,142.27,CO0199,EQUANS FM LIMITED (frmlyENGIE FM LIMITED),25/04/2022 00:00,29/05/2022 00:00,P02-2023
P&V,RIVER LEE COUNTRY PARK,PREMISES RELATED EXPENDITURE,BUILDING REPAIRS & MAINTENANCE,2222,P117492-SERVICE-AC Units Service at Wildlife Discovery Centre,09/05/2022 00:00,262856,300,GI0137,R & P GIBBS LIMITED,25/04/2022 00:00,29/05/2022 00:00,P02-2023
P&V,RIVER LEE COUNTRY PARK,PREMISES RELATED EXPENDITURE,BUILDING REPAIRS & MAINTENANCE,2222,P117492-SERVICE-Water Heater Service at Wildlife Discovery Ce,09/05/2022 00:00,262856,115,GI0137,R & P GIBBS LIMITED,25/04/2022 00:00,29/05/2022 00:00,P02-2023
P&V,RIVER LEE COUNTRY PARK,PREMISES RELATED EXPENDITURE,BUILDING REPAIRS & MAINTENANCE,2222,CAPSER,16/05/2022 00:00,263032,540,MO0041,CAPSER,25/04/2022 00:00,29/05/2022 00:00,P02-2023
P&V,RIVER LEE COUNTRY PARK,PREMISES RELATED EXPENDITURE,BUILDING REPAIRS & MAINTENANCE,2222,CAPSER,16/05/2022 00:00,263032,400,MO0041,CAPSER,25/04/2022 00:00,29/05/2022 00:00,P02-2023
P&V,RIVER LEE COUNTRY PARK,PREMISES RELATED EXPENDITURE,BUILDING REPAIRS & MAINTENANCE,2222,CAPSER,16/05/2022 00:00,263032,-130,MO0041,CAPSER,25/04/2022 00:00,29/05/2022 00:00,P02-2023
P&V,RIVER LEE COUNTRY PARK,PREMISES RELATED EXPENDITURE,BUILDING REPAIRS & MAINTENANCE,2222,CAPSER,16/05/2022 00:00,263032,130,MO0041,CAPSER,25/04/2022 00:00,29/05/2022 00:00,P02-2023
P&V,RIVER LEE COUNTRY PARK,PREMISES RELATED EXPENDITURE,BUILDING REPAIRS & MAINTENANCE,2222,CAPSER,16/05/2022 00:00,263032,-940,MO0041,CAPSER,25/04/2022 00:00,29/05/2022 00:00,P02-2023
P&V,RIVER LEE COUNTRY PARK,PREMISES RELATED EXPENDITURE,BUILDING REPAIRS & MAINTENANCE,2222,P117356-SERVICE-Erect Fence at Old Mill & Meadows - Additiona,16/05/2022 00:00,263032,130,MO0041,CAPSER,25/04/2022 00:00,29/05/2022 00:00,P02-2023
P&V,RIVER LEE COUNTRY PARK,PREMISES RELATED EXPENDITURE,BUILDING REPAIRS & MAINTENANCE,2222,P117356-SERVICE-Erect Fence at Old Mill & Meadows,16/05/2022 00:00,263032,940,MO0041,CAPSER,25/04/2022 00:00,29/05/2022 00:00,P02-2023
P&V,ALMOST WILD CAMPSITE,PREMISES RELATED EXPENDITURE,BUILDING REPAIRS & MAINTENANCE,2222,P117681-SERVICE-14x18mm ply for the base of Safafi Tent @ AMW,04/05/2022 00:00,262505,480.2,LE0012,LEASIDE TIMBER & BUILDERS MERCHANTS LTD,25/04/2022 00:00,29/05/2022 00:00,P02-2023
,LEE VALLEY VELOPARK,PREMISES RELATED EXPENDITURE,BUILDING REPAIRS & MAINTENANCE,2222,P116456-SERVICE-Lighting Inspection,04/05/2022 00:00,262391,520,OM0097,OMEGA RED GROUP LTD,25/04/2022 00:00,29/05/2022 00:00,P02-2023
,LV HOCKEY AND TENNIS CENTRE,PREMISES RELATED EXPENDITURE,BUILDING REPAIRS & MAINTENANCE,2222,P116487-SERVICE-Lighting Inspection,04/05/2022 00:00,262392,1418,OM0097,OMEGA RED GROUP LTD,25/04/2022 00:00,29/05/2022 00:00,P02-2023
,LV HOCKEY AND TENNIS CENTRE,PREMISES RELATED EXPENDITURE,BUILDING REPAIRS & MAINTENANCE,2222,P116331-SERVICE-audi upgrade replace controller,04/05/2022 00:00,262623,2719.2,OL0105,OLD BARN AUDIO,25/04/2022 00:00,29/05/2022 00:00,P02-2023
,LV HOCKEY AND TENNIS CENTRE,PREMISES RELATED EXPENDITURE,BUILDING REPAIRS & MAINTENANCE,2222,P114684-SERVICE-water based pitch cleaning both surfaces,12/05/2022 00:00,262957,6500,TE0273,TECHNICAL SURFACES LTD,25/04/2022 00:00,29/05/2022 00:00,P02-2023
,LEE VALLEY RIDING CENTRE,PREMISES RELATED EXPENDITURE,BUILDING REPAIRS & MAINTENANCE,2222,P115071-SERVICE-gate call out,09/05/2022 00:00,262393,180,EA0001,EAGLE AUTOMATION SYSTEMS LTD,25/04/2022 00:00,29/05/2022 00:00,P02-2023
,LV LEISURE CENTRE GOLF COURSE,PREMISES RELATED EXPENDITURE,BUILDING REPAIRS & MAINTENANCE,2222,P118146-SERVICE-Hunter ADS Sprinkler,29/05/2022 00:00,263012,115.26,SJ0635,SJS IRRIGATION,25/04/2022 00:00,29/05/2022 00:00,P02-2023
CEO,LVLC SERVICE CHARGE,PREMISES RELATED EXPENDITURE,BUILDING REPAIRS & MAINTENANCE,2222,P117980-SERVICE-Picketts Lock Car Park Cable Installation,16/05/2022 00:00,262711,8056.3,BR0018,BRADSHAW ELECTRICAL LIMITED,25/04/2022 00:00,29/05/2022 00:00,P02-2023
,LEE VALLEY WHITE WATER CENTRE,PREMISES RELATED EXPENDITURE,ENGINEERING SERVICES CONTRACT,2223,P117276-SERVICE-SCADA Comms Investigation,12/05/2022 00:00,262988,1163,CO0402,ACTEMIUM AUTOMATION UK,25/04/2022 00:00,29/05/2022 00:00,P02-2023
,LEE VALLEY WHITE WATER CENTRE,PREMISES RELATED EXPENDITURE,ENGINEERING SERVICES CONTRACT,2223,P116946-SERVICE-Qx22093 - MCC Investigation T5897-2/3 MCC's (,29/05/2022 00:00,263238,750,TE0252,TECHNICAL CONTROL SYSTEMS LIMITED,25/04/2022 00:00,29/05/2022 00:00,P02-2023
CEO,COMMERCIAL ACCOMMODATION,PREMISES RELATED EXPENDITURE,EAST HALE ALLOTMENTS,2261,P117652-SERVICE-Allotment Bins,16/05/2022 00:00,262885,113.09,CL0037,VEOLIA ES (UK) LTD,25/04/2022 00:00,29/05/2022 00:00,P02-2023
P&V,MYDDELTON HOUSE,PREMISES RELATED EXPENDITURE,ENERGY COSTS (ELECTRICITY),2332,KENT COUNTY COUNCIL (KCS),09/05/2022 00:00,262937,-1162.96,KE0007,KENT COUNTY COUNCIL (KCS),25/04/2022 00:00,29/05/2022 00:00,P02-2023
P&V,MYDDELTON HOUSE,PREMISES RELATED EXPENDITURE,ENERGY COSTS (ELECTRICITY),2332,KENT COUNTY COUNCIL (KCS),18/05/2022 00:00,263315,1402.9,KE0007,KENT COUNTY COUNCIL (KCS),25/04/2022 00:00,29/05/2022 00:00,P02-2023
CEO,RESIDENTIAL ACCOMMODATION,PREMISES RELATED EXPENDITURE,ENERGY COSTS (ELECTRICITY),2332,NPOWER LIMITED,18/05/2022 00:00,251906,679.38,NP0123,NPOWER LIMITED,25/04/2022 00:00,29/05/2022 00:00,P02-2023
CEO,RESIDENTIAL ACCOMMODATION,PREMISES RELATED EXPENDITURE,ENERGY COSTS (ELECTRICITY),2332,NPOWER LIMITED,18/05/2022 00:00,251907,693.3,NP0123,NPOWER LIMITED,25/04/2022 00:00,29/05/2022 00:00,P02-2023
CEO,RESIDENTIAL ACCOMMODATION,PREMISES RELATED EXPENDITURE,ENERGY COSTS (ELECTRICITY),2332,BRITISH GAS BUSINESS,29/05/2022 00:00,263020,111.27,BR0030,BRITISH GAS BUSINESS,25/04/2022 00:00,29/05/2022 00:00,P02-2023
CEO,RESIDENTIAL ACCOMMODATION,PREMISES RELATED EXPENDITURE,ENERGY COSTS (ELECTRICITY),2332,NPOWER LIMITED,18/05/2022 00:00,263283,-679.38,NP0123,NPOWER LIMITED,25/04/2022 00:00,29/05/2022 00:00,P02-2023
CEO,RESIDENTIAL ACCOMMODATION,PREMISES RELATED EXPENDITURE,ENERGY COSTS (ELECTRICITY),2332,NPOWER LIMITED,29/05/2022 00:00,263284,280.04,NP0123,NPOWER LIMITED,25/04/2022 00:00,29/05/2022 00:00,P02-2023
CEO,RESIDENTIAL ACCOMMODATION,PREMISES RELATED EXPENDITURE,ENERGY COSTS (ELECTRICITY),2332,NPOWER LIMITED,18/05/2022 00:00,263296,-693.3,NP0123,NPOWER LIMITED,25/04/2022 00:00,29/05/2022 00:00,P02-2023
CEO,COMMERCIAL ACCOMMODATION,PREMISES RELATED EXPENDITURE,ENERGY COSTS (ELECTRICITY),2332,E-ON NEXT ENERGY LTD,29/05/2022 00:00,258997,37.37,EO0398,E-ON NEXT ENERGY LTD,25/04/2022 00:00,29/05/2022 00:00,P02-2023
CEO,COMMERCIAL ACCOMMODATION,PREMISES RELATED EXPENDITURE,ENERGY COSTS (ELECTRICITY),2332,E-ON NEXT ENERGY LTD,11/05/2022 00:00,262120,13.86,EO0398,E-ON NEXT ENERGY LTD,25/04/2022 00:00,29/05/2022 00:00,P02-2023
CEO,COMMERCIAL ACCOMMODATION,PREMISES RELATED EXPENDITURE,ENERGY COSTS (ELECTRICITY),2332,E-ON NEXT ENERGY LTD,11/05/2022 00:00,262181,63.07,EO0398,E-ON NEXT ENERGY LTD,25/04/2022 00:00,29/05/2022 00:00,P02-2023
CEO,COMMERCIAL ACCOMMODATION,PREMISES RELATED EXPENDITURE,ENERGY COSTS (ELECTRICITY),2332,E-ON NEXT ENERGY LTD,11/05/2022 00:00,262189,11.37,EO0398,E-ON NEXT ENERGY LTD,25/04/2022 00:00,29/05/2022 00:00,P02-2023
CEO,COMMERCIAL ACCOMMODATION,PREMISES RELATED EXPENDITURE,ENERGY COSTS (ELECTRICITY),2332,P117978-SERVICE-Gas - LV Forge,16/05/2022 00:00,262661,19.61,CA0006,CALOR GAS LIMITED,25/04/2022 00:00,29/05/2022 00:00,P02-2023
CEO,COMMERCIAL ACCOMMODATION,PREMISES RELATED EXPENDITURE,ENERGY COSTS (ELECTRICITY),2332,E-ON NEXT ENERGY LTD,11/05/2022 00:00,262987,10.96,EO0398,E-ON NEXT ENERGY LTD,25/04/2022 00:00,29/05/2022 00:00,P02-2023
CEO,COMMERCIAL ACCOMMODATION,PREMISES RELATED EXPENDITURE,ENERGY COSTS (ELECTRICITY),2332,E-ON NEXT ENERGY LTD,11/05/2022 00:00,262987,10,EO0398,E-ON NEXT ENERGY LTD,25/04/2022 00:00,29/05/2022 00:00,P02-2023
CEO,COMMERCIAL ACCOMMODATION,PREMISES RELATED EXPENDITURE,ENERGY COSTS (ELECTRICITY),2332,E-ON NEXT ENERGY LTD,13/05/2022 00:00,263173,13.44,EO0398,E-ON NEXT ENERGY LTD,25/04/2022 00:00,29/05/2022 00:00,P02-2023
CEO,COMMERCIAL ACCOMMODATION,PREMISES RELATED EXPENDITURE,ENERGY COSTS (ELECTRICITY),2332,E-ON NEXT ENERGY LTD,29/05/2022 00:00,263183,13.41,EO0398,E-ON NEXT ENERGY LTD,25/04/2022 00:00,29/05/2022 00:00,P02-2023
CEO,COMMERCIAL ACCOMMODATION,PREMISES RELATED EXPENDITURE,ENERGY COSTS (ELECTRICITY),2332,E-ON NEXT ENERGY LTD,23/05/2022 00:00,263184,45.76,EO0398,E-ON NEXT ENERGY LTD,25/04/2022 00:00,29/05/2022 00:00,P02-2023
CEO,COMMERCIAL ACCOMMODATION,PREMISES RELATED EXPENDITURE,ENERGY COSTS (ELECTRICITY),2332,E-ON NEXT ENERGY LTD,29/05/2022 00:00,263744,-375.4,EO0398,E-ON NEXT ENERGY LTD,25/04/2022 00:00,29/05/2022 00:00,P02-2023
CEO,COMMERCIAL ACCOMMODATION,PREMISES RELATED EXPENDITURE,ENERGY COSTS (ELECTRICITY),2332,E-ON NEXT ENERGY LTD,29/05/2022 00:00,263745,0.65,EO0398,E-ON NEXT ENERGY LTD,25/04/2022 00:00,29/05/2022 00:00,P02-2023
,LEE VALLEY MARINA SPRINGFIELD,PREMISES RELATED EXPENDITURE,ENERGY COSTS (ELECTRICITY),2332,KENT COUNTY COUNCIL (KCS),04/05/2022 00:00,262171,3772.38,KE0007,KENT COUNTY COUNCIL (KCS),25/04/2022 00:00,29/05/2022 00:00,P02-2023
,LEE VALLEY MARINA SPRINGFIELD,PREMISES RELATED EXPENDITURE,ENERGY COSTS (ELECTRICITY),2332,KENT COUNTY COUNCIL (KCS),23/05/2022 00:00,263316,3038.98,KE0007,KENT COUNTY COUNCIL (KCS),25/04/2022 00:00,29/05/2022 00:00,P02-2023
,LEE VALLEY CAMPSITE,PREMISES RELATED EXPENDITURE,ENERGY COSTS (ELECTRICITY),2332,KENT COUNTY COUNCIL (KCS),24/05/2022 00:00,263318,2018.01,KE0007,KENT COUNTY COUNCIL (KCS),25/04/2022 00:00,29/05/2022 00:00,P02-2023
,LEE VALLEY CAMPSITE,PREMISES RELATED EXPENDITURE,ENERGY COSTS (ELECTRICITY),2332,KENT COUNTY COUNCIL (KCS),24/05/2022 00:00,263319,1894.41,KE0007,KENT COUNTY COUNCIL (KCS),25/04/2022 00:00,29/05/2022 00:00,P02-2023
,LEE VALLEY CARAVAN PARK,PREMISES RELATED EXPENDITURE,ENERGY COSTS (ELECTRICITY),2332,KENT COUNTY COUNCIL (KCS),29/05/2022 00:00,263317,7168.62,KE0007,KENT COUNTY COUNCIL (KCS),25/04/2022 00:00,29/05/2022 00:00,P02-2023
P&V,EAST INDIA DOCK AND BOW CREEK,PREMISES RELATED EXPENDITURE,ENERGY COSTS (ELECTRICITY),2332,KENT COUNTY COUNCIL (KCS),29/05/2022 00:00,263332,133.01,KE0007,KENT COUNTY COUNCIL (KCS),25/04/2022 00:00,29/05/2022 00:00,P02-2023
P&V,GUNPOWDER PARK,PREMISES RELATED EXPENDITURE,ENERGY COSTS (ELECTRICITY),2332,KENT COUNTY COUNCIL (KCS),29/05/2022 00:00,263333,308.15,KE0007,KENT COUNTY COUNCIL (KCS),25/04/2022 00:00,29/05/2022 00:00,P02-2023
P&V,CAR PARK INCOME,PREMISES RELATED EXPENDITURE,ENERGY COSTS (ELECTRICITY),2332,NPOWER LIMITED,18/05/2022 00:00,263309,21.68,NP0123,NPOWER LIMITED,25/04/2022 00:00,29/05/2022 00:00,P02-2023
,LEE VALLEY VELOPARK,PREMISES RELATED EXPENDITURE,ENERGY COSTS (ELECTRICITY),2332,KENT COUNTY COUNCIL (KCS),04/05/2022 00:00,262388,102.39,KE0007,KENT COUNTY COUNCIL (KCS),25/04/2022 00:00,29/05/2022 00:00,P02-2023
,LEE VALLEY VELOPARK,PREMISES RELATED EXPENDITURE,ENERGY COSTS (ELECTRICITY),2332,KENT COUNTY COUNCIL (KCS),04/05/2022 00:00,262389,1.02,KE0007,KENT COUNTY COUNCIL (KCS),25/04/2022 00:00,29/05/2022 00:00,P02-2023
,LEE VALLEY VELOPARK,PREMISES RELATED EXPENDITURE,ENERGY COSTS (ELECTRICITY),2332,KENT COUNTY COUNCIL (KCS),04/05/2022 00:00,262389,85.81,KE0007,KENT COUNTY COUNCIL (KCS),25/04/2022 00:00,29/05/2022 00:00,P02-2023
,LEE VALLEY RIDING CENTRE,PREMISES RELATED EXPENDITURE,ENERGY COSTS (ELECTRICITY),2332,NPOWER LIMITED,23/05/2022 00:00,263297,286.19,NP0123,NPOWER LIMITED,25/04/2022 00:00,29/05/2022 00:00,P02-2023
,LEE VALLEY RIDING CENTRE,PREMISES RELATED EXPENDITURE,ENERGY COSTS (ELECTRICITY),2332,NPOWER LIMITED,23/05/2022 00:00,263298,-692.73,NP0123,NPOWER LIMITED,25/04/2022 00:00,29/05/2022 00:00,P02-2023
,LEE VALLEY RIDING CENTRE,PREMISES RELATED EXPENDITURE,ENERGY COSTS (ELECTRICITY),2332,NPOWER LIMITED,23/05/2022 00:00,263299,286.02,NP0123,NPOWER LIMITED,25/04/2022 00:00,29/05/2022 00:00,P02-2023
,LEE VALLEY RIDING CENTRE,PREMISES RELATED EXPENDITURE,ENERGY COSTS (ELECTRICITY),2332,NPOWER LIMITED,23/05/2022 00:00,263300,58.45,NP0123,NPOWER LIMITED,25/04/2022 00:00,29/05/2022 00:00,P02-2023
,LEE VALLEY RIDING CENTRE,PREMISES RELATED EXPENDITURE,ENERGY COSTS (ELECTRICITY),2332,NPOWER LIMITED,23/05/2022 00:00,263301,80.96,NP0123,NPOWER LIMITED,25/04/2022 00:00,29/05/2022 00:00,P02-2023
,LEE VALLEY RIDING CENTRE,PREMISES RELATED EXPENDITURE,ENERGY COSTS (ELECTRICITY),2332,NPOWER LIMITED,23/05/2022 00:00,263302,103.39,NP0123,NPOWER LIMITED,25/04/2022 00:00,29/05/2022 00:00,P02-2023
,LEE VALLEY RIDING CENTRE,PREMISES RELATED EXPENDITURE,ENERGY COSTS (ELECTRICITY),2332,NPOWER LIMITED,23/05/2022 00:00,263303,106.92,NP0123,NPOWER LIMITED,25/04/2022 00:00,29/05/2022 00:00,P02-2023
,LEE VALLEY RIDING CENTRE,PREMISES RELATED EXPENDITURE,ENERGY COSTS (ELECTRICITY),2332,NPOWER LIMITED,23/05/2022 00:00,263304,118.6,NP0123,NPOWER LIMITED,25/04/2022 00:00,29/05/2022 00:00,P02-2023
,LEE VALLEY RIDING CENTRE,PREMISES RELATED EXPENDITURE,ENERGY COSTS (ELECTRICITY),2332,NPOWER LIMITED,23/05/2022 00:00,263305,93.86,NP0123,NPOWER LIMITED,25/04/2022 00:00,29/05/2022 00:00,P02-2023
,LEE VALLEY RIDING CENTRE,PREMISES RELATED EXPENDITURE,ENERGY COSTS (ELECTRICITY),2332,NPOWER LIMITED,23/05/2022 00:00,263306,79.16,NP0123,NPOWER LIMITED,25/04/2022 00:00,29/05/2022 00:00,P02-2023
,LV LEISURE CENTRE CAMPSITE,PREMISES RELATED EXPENDITURE,ENERGY COSTS (ELECTRICITY),2332,NPOWER LIMITED,24/05/2022 00:00,263307,6251.96,NP0123,NPOWER LIMITED,25/04/2022 00:00,29/05/2022 00:00,P02-2023
,LV LEISURE CENTRE CAMPSITE,PREMISES RELATED EXPENDITURE,ENERGY COSTS (ELECTRICITY),2332,NPOWER LIMITED,24/05/2022 00:00,263308,6374.59,NP0123,NPOWER LIMITED,25/04/2022 00:00,29/05/2022 00:00,P02-2023
P&V,MYDDELTON HOUSE,PREMISES RELATED EXPENDITURE,ENERGY COSTS (GAS),2333,KENT COUNTY COUNCIL (KCS),18/05/2022 00:00,263314,404.49,KE0007,KENT COUNTY COUNCIL (KCS),25/04/2022 00:00,29/05/2022 00:00,P02-2023
CEO,RESIDENTIAL ACCOMMODATION,PREMISES RELATED EXPENDITURE,ENERGY COSTS (GAS),2333,BRITISH GAS BUSINESS,29/05/2022 00:00,262437,9.28,BR0030,BRITISH GAS BUSINESS,25/04/2022 00:00,29/05/2022 00:00,P02-2023
CEO,RESIDENTIAL ACCOMMODATION,PREMISES RELATED EXPENDITURE,ENERGY COSTS (GAS),2333,BRITISH GAS BUSINESS,29/05/2022 00:00,263495,9.15,BR0030,BRITISH GAS BUSINESS,25/04/2022 00:00,29/05/2022 00:00,P02-2023
,LEE VALLEY MARINA SPRINGFIELD,PREMISES RELATED EXPENDITURE,ENERGY COSTS (GAS),2333,KENT COUNTY COUNCIL (KCS),04/05/2022 00:00,262166,326.07,KE0007,KENT COUNTY COUNCIL (KCS),25/04/2022 00:00,29/05/2022 00:00,P02-2023
,LEE VALLEY MARINA SPRINGFIELD,PREMISES RELATED EXPENDITURE,ENERGY COSTS (GAS),2333,KENT COUNTY COUNCIL (KCS),17/05/2022 00:00,263246,261.52,KE0007,KENT COUNTY COUNCIL (KCS),25/04/2022 00:00,29/05/2022 00:00,P02-2023
,LEE VALLEY MARINA STANSTEAD,PREMISES RELATED EXPENDITURE,ENERGY COSTS (GAS),2333,KENT COUNTY COUNCIL (KCS),23/05/2022 00:00,263243,155.53,KE0007,KENT COUNTY COUNCIL (KCS),25/04/2022 00:00,29/05/2022 00:00,P02-2023
,LEE VALLEY MARINA STANSTEAD,PREMISES RELATED EXPENDITURE,ENERGY COSTS (GAS),2333,KENT COUNTY COUNCIL (KCS),23/05/2022 00:00,263244,98.31,KE0007,KENT COUNTY COUNCIL (KCS),25/04/2022 00:00,29/05/2022 00:00,P02-2023
,LEE VALLEY WATERWORKS CENTRE,PREMISES RELATED EXPENDITURE,ENERGY COSTS (GAS),2333,KENT COUNTY COUNCIL (KCS),18/05/2022 00:00,263248,313.99,KE0007,KENT COUNTY COUNCIL (KCS),25/04/2022 00:00,29/05/2022 00:00,P02-2023
,LEE VALLEY CAMPSITE,PREMISES RELATED EXPENDITURE,ENERGY COSTS (GAS),2333,KENT COUNTY COUNCIL (KCS),24/05/2022 00:00,263245,440.98,KE0007,KENT COUNTY COUNCIL (KCS),25/04/2022 00:00,29/05/2022 00:00,P02-2023
,LEE VALLEY CARAVAN PARK,PREMISES RELATED EXPENDITURE,ENERGY COSTS (GAS),2333,P117511-SERVICE-8 x 47kg  4 x 6kg 1 x 13kg Gas Bottles,04/05/2022 00:00,262433,674.22,CA0006,CALOR GAS LIMITED,25/04/2022 00:00,29/05/2022 00:00,P02-2023
,LEE VALLEY CARAVAN PARK,PREMISES RELATED EXPENDITURE,ENERGY COSTS (GAS),2333,P118159-SERVICE-Standing charge,29/05/2022 00:00,263330,60,AV0327,AVANTI GAS LIMITED,25/04/2022 00:00,29/05/2022 00:00,P02-2023
P&V,GUNPOWDER PARK,PREMISES RELATED EXPENDITURE,ENERGY COSTS (GAS),2333,KENT COUNTY COUNCIL (KCS),18/05/2022 00:00,263249,51.65,KE0007,KENT COUNTY COUNCIL (KCS),25/04/2022 00:00,29/05/2022 00:00,P02-2023
,LEE VALLEY RIDING CENTRE,PREMISES RELATED EXPENDITURE,ENERGY COSTS (GAS),2333,BRITISH GAS BUSINESS,23/05/2022 00:00,263189,-248,BR0029,BRITISH GAS BUSINESS,25/04/2022 00:00,29/05/2022 00:00,P02-2023
,LEE VALLEY RIDING CENTRE,PREMISES RELATED EXPENDITURE,ENERGY COSTS (GAS),2333,BRITISH GAS BUSINESS,23/05/2022 00:00,263190,-213.57,BR0029,BRITISH GAS BUSINESS,25/04/2022 00:00,29/05/2022 00:00,P02-2023
,LEE VALLEY RIDING CENTRE,PREMISES RELATED EXPENDITURE,ENERGY COSTS (GAS),2333,BRITISH GAS BUSINESS,23/05/2022 00:00,263191,-200.02,BR0029,BRITISH GAS BUSINESS,25/04/2022 00:00,29/05/2022 00:00,P02-2023
,LEE VALLEY RIDING CENTRE,PREMISES RELATED EXPENDITURE,ENERGY COSTS (GAS),2333,BRITISH GAS BUSINESS,23/05/2022 00:00,263192,-204.07,BR0029,BRITISH GAS BUSINESS,25/04/2022 00:00,29/05/2022 00:00,P02-2023
,LEE VALLEY RIDING CENTRE,PREMISES RELATED EXPENDITURE,ENERGY COSTS (GAS),2333,BRITISH GAS BUSINESS,23/05/2022 00:00,263193,-113.14,BR0029,BRITISH GAS BUSINESS,25/04/2022 00:00,29/05/2022 00:00,P02-2023
,LEE VALLEY RIDING CENTRE,PREMISES RELATED EXPENDITURE,ENERGY COSTS (GAS),2333,BRITISH GAS BUSINESS,23/05/2022 00:00,263194,-86.05,BR0029,BRITISH GAS BUSINESS,25/04/2022 00:00,29/05/2022 00:00,P02-2023
,LEE VALLEY RIDING CENTRE,PREMISES RELATED EXPENDITURE,ENERGY COSTS (GAS),2333,BRITISH GAS BUSINESS,23/05/2022 00:00,263195,-70.25,BR0029,BRITISH GAS BUSINESS,25/04/2022 00:00,29/05/2022 00:00,P02-2023
,LEE VALLEY RIDING CENTRE,PREMISES RELATED EXPENDITURE,ENERGY COSTS (GAS),2333,BRITISH GAS BUSINESS,23/05/2022 00:00,263196,-68.8,BR0029,BRITISH GAS BUSINESS,25/04/2022 00:00,29/05/2022 00:00,P02-2023
,LEE VALLEY RIDING CENTRE,PREMISES RELATED EXPENDITURE,ENERGY COSTS (GAS),2333,BRITISH GAS BUSINESS,23/05/2022 00:00,263197,-70.23,BR0029,BRITISH GAS BUSINESS,25/04/2022 00:00,29/05/2022 00:00,P02-2023
,LEE VALLEY RIDING CENTRE,PREMISES RELATED EXPENDITURE,ENERGY COSTS (GAS),2333,BRITISH GAS BUSINESS,23/05/2022 00:00,263198,-84.13,BR0029,BRITISH GAS BUSINESS,25/04/2022 00:00,29/05/2022 00:00,P02-2023
,LEE VALLEY RIDING CENTRE,PREMISES RELATED EXPENDITURE,ENERGY COSTS (GAS),2333,BRITISH GAS BUSINESS,23/05/2022 00:00,263199,-103.89,BR0029,BRITISH GAS BUSINESS,25/04/2022 00:00,29/05/2022 00:00,P02-2023
,LEE VALLEY RIDING CENTRE,PREMISES RELATED EXPENDITURE,ENERGY COSTS (GAS),2333,BRITISH GAS BUSINESS,23/05/2022 00:00,263200,-121.82,BR0029,BRITISH GAS BUSINESS,25/04/2022 00:00,29/05/2022 00:00,P02-2023
,LEE VALLEY RIDING CENTRE,PREMISES RELATED EXPENDITURE,ENERGY COSTS (GAS),2333,BRITISH GAS BUSINESS,23/05/2022 00:00,263201,-118.1,BR0029,BRITISH GAS BUSINESS,25/04/2022 00:00,29/05/2022 00:00,P02-2023
,LEE VALLEY RIDING CENTRE,PREMISES RELATED EXPENDITURE,ENERGY COSTS (GAS),2333,BRITISH GAS BUSINESS,23/05/2022 00:00,263202,-141.08,BR0029,BRITISH GAS BUSINESS,25/04/2022 00:00,29/05/2022 00:00,P02-2023
,LEE VALLEY RIDING CENTRE,PREMISES RELATED EXPENDITURE,ENERGY COSTS (GAS),2333,BRITISH GAS BUSINESS,23/05/2022 00:00,263203,-139.35,BR0029,BRITISH GAS BUSINESS,25/04/2022 00:00,29/05/2022 00:00,P02-2023
,LEE VALLEY RIDING CENTRE,PREMISES RELATED EXPENDITURE,ENERGY COSTS (GAS),2333,BRITISH GAS BUSINESS,23/05/2022 00:00,263204,-250.18,BR0029,BRITISH GAS BUSINESS,25/04/2022 00:00,29/05/2022 00:00,P02-2023
,LEE VALLEY RIDING CENTRE,PREMISES RELATED EXPENDITURE,ENERGY COSTS (GAS),2333,BRITISH GAS BUSINESS,23/05/2022 00:00,263205,-205.83,BR0029,BRITISH GAS BUSINESS,25/04/2022 00:00,29/05/2022 00:00,P02-2023
,LEE VALLEY RIDING CENTRE,PREMISES RELATED EXPENDITURE,ENERGY COSTS (GAS),2333,BRITISH GAS BUSINESS,23/05/2022 00:00,263206,-262.41,BR0029,BRITISH GAS BUSINESS,25/04/2022 00:00,29/05/2022 00:00,P02-2023
,LEE VALLEY RIDING CENTRE,PREMISES RELATED EXPENDITURE,ENERGY COSTS (GAS),2333,BRITISH GAS BUSINESS,23/05/2022 00:00,263207,413.38,BR0029,BRITISH GAS BUSINESS,25/04/2022 00:00,29/05/2022 00:00,P02-2023
,LEE VALLEY RIDING CENTRE,PREMISES RELATED EXPENDITURE,ENERGY COSTS (GAS),2333,BRITISH GAS BUSINESS,23/05/2022 00:00,263208,95.71,BR0029,BRITISH GAS BUSINESS,25/04/2022 00:00,29/05/2022 00:00,P02-2023
,LEE VALLEY RIDING CENTRE,PREMISES RELATED EXPENDITURE,ENERGY COSTS (GAS),2333,BRITISH GAS BUSINESS,23/05/2022 00:00,263209,93.47,BR0029,BRITISH GAS BUSINESS,25/04/2022 00:00,29/05/2022 00:00,P02-2023
,LEE VALLEY RIDING CENTRE,PREMISES RELATED EXPENDITURE,ENERGY COSTS (GAS),2333,BRITISH GAS BUSINESS,23/05/2022 00:00,263210,89.86,BR0029,BRITISH GAS BUSINESS,25/04/2022 00:00,29/05/2022 00:00,P02-2023
,LEE VALLEY RIDING CENTRE,PREMISES RELATED EXPENDITURE,ENERGY COSTS (GAS),2333,BRITISH GAS BUSINESS,23/05/2022 00:00,263211,83.27,BR0029,BRITISH GAS BUSINESS,25/04/2022 00:00,29/05/2022 00:00,P02-2023
,LEE VALLEY RIDING CENTRE,PREMISES RELATED EXPENDITURE,ENERGY COSTS (GAS),2333,BRITISH GAS BUSINESS,23/05/2022 00:00,263212,73.33,BR0029,BRITISH GAS BUSINESS,25/04/2022 00:00,29/05/2022 00:00,P02-2023
,LEE VALLEY RIDING CENTRE,PREMISES RELATED EXPENDITURE,ENERGY COSTS (GAS),2333,BRITISH GAS BUSINESS,23/05/2022 00:00,263213,53.1,BR0029,BRITISH GAS BUSINESS,25/04/2022 00:00,29/05/2022 00:00,P02-2023
,LEE VALLEY RIDING CENTRE,PREMISES RELATED EXPENDITURE,ENERGY COSTS (GAS),2333,BRITISH GAS BUSINESS,23/05/2022 00:00,263214,50.06,BR0029,BRITISH GAS BUSINESS,25/04/2022 00:00,29/05/2022 00:00,P02-2023
,LEE VALLEY RIDING CENTRE,PREMISES RELATED EXPENDITURE,ENERGY COSTS (GAS),2333,BRITISH GAS BUSINESS,23/05/2022 00:00,263215,52.45,BR0029,BRITISH GAS BUSINESS,25/04/2022 00:00,29/05/2022 00:00,P02-2023
,LEE VALLEY RIDING CENTRE,PREMISES RELATED EXPENDITURE,ENERGY COSTS (GAS),2333,BRITISH GAS BUSINESS,23/05/2022 00:00,263216,50.9,BR0029,BRITISH GAS BUSINESS,25/04/2022 00:00,29/05/2022 00:00,P02-2023
,LEE VALLEY RIDING CENTRE,PREMISES RELATED EXPENDITURE,ENERGY COSTS (GAS),2333,BRITISH GAS BUSINESS,23/05/2022 00:00,263217,53.7,BR0029,BRITISH GAS BUSINESS,25/04/2022 00:00,29/05/2022 00:00,P02-2023
,LEE VALLEY RIDING CENTRE,PREMISES RELATED EXPENDITURE,ENERGY COSTS (GAS),2333,BRITISH GAS BUSINESS,23/05/2022 00:00,263218,22.98,BR0029,BRITISH GAS BUSINESS,25/04/2022 00:00,29/05/2022 00:00,P02-2023
,LEE VALLEY RIDING CENTRE,PREMISES RELATED EXPENDITURE,ENERGY COSTS (GAS),2333,BRITISH GAS BUSINESS,23/05/2022 00:00,263219,31.61,BR0029,BRITISH GAS BUSINESS,25/04/2022 00:00,29/05/2022 00:00,P02-2023
,LEE VALLEY RIDING CENTRE,PREMISES RELATED EXPENDITURE,ENERGY COSTS (GAS),2333,BRITISH GAS BUSINESS,23/05/2022 00:00,263220,50.33,BR0029,BRITISH GAS BUSINESS,25/04/2022 00:00,29/05/2022 00:00,P02-2023
,LEE VALLEY RIDING CENTRE,PREMISES RELATED EXPENDITURE,ENERGY COSTS (GAS),2333,BRITISH GAS BUSINESS,23/05/2022 00:00,263221,41.62,BR0029,BRITISH GAS BUSINESS,25/04/2022 00:00,29/05/2022 00:00,P02-2023
,LEE VALLEY RIDING CENTRE,PREMISES RELATED EXPENDITURE,ENERGY COSTS (GAS),2333,BRITISH GAS BUSINESS,23/05/2022 00:00,263222,53.14,BR0029,BRITISH GAS BUSINESS,25/04/2022 00:00,29/05/2022 00:00,P02-2023
,LEE VALLEY RIDING CENTRE,PREMISES RELATED EXPENDITURE,ENERGY COSTS (GAS),2333,BRITISH GAS BUSINESS,23/05/2022 00:00,263223,50.78,BR0029,BRITISH GAS BUSINESS,25/04/2022 00:00,29/05/2022 00:00,P02-2023
,LEE VALLEY RIDING CENTRE,PREMISES RELATED EXPENDITURE,ENERGY COSTS (GAS),2333,BRITISH GAS BUSINESS,23/05/2022 00:00,263224,98.47,BR0029,BRITISH GAS BUSINESS,25/04/2022 00:00,29/05/2022 00:00,P02-2023
,LEE VALLEY RIDING CENTRE,PREMISES RELATED EXPENDITURE,ENERGY COSTS (GAS),2333,BRITISH GAS BUSINESS,23/05/2022 00:00,263225,130.74,BR0029,BRITISH GAS BUSINESS,25/04/2022 00:00,29/05/2022 00:00,P02-2023
,LEE VALLEY RIDING CENTRE,PREMISES RELATED EXPENDITURE,ENERGY COSTS (GAS),2333,BRITISH GAS BUSINESS,23/05/2022 00:00,263226,147.12,BR0029,BRITISH GAS BUSINESS,25/04/2022 00:00,29/05/2022 00:00,P02-2023
,LV LEISURE CENTRE CAMPSITE,PREMISES RELATED EXPENDITURE,ENERGY COSTS (GAS),2333,KENT COUNTY COUNCIL (KCS),24/05/2022 00:00,263247,701.63,KE0007,KENT COUNTY COUNCIL (KCS),25/04/2022 00:00,29/05/2022 00:00,P02-2023
P&V,MYDDELTON HOUSE,PREMISES RELATED EXPENDITURE,ENERGY COSTS (BIOMASS FUEL),2334,P118086-SERVICE-Wood Pellets,29/05/2022 00:00,263480,1365,BA0631,BALCAS TIMBER LTD/BALCAS ENERGY,25/04/2022 00:00,29/05/2022 00:00,P02-2023
,LEE VALLEY MARINA SPRINGFIELD,PREMISES RELATED EXPENDITURE,RENT (EXTERNAL),2442,THAMES WATER UTILITIES LIMITED,11/05/2022 00:00,262870,200,TH0020,THAMES WATER UTILITIES LIMITED,25/04/2022 00:00,29/05/2022 00:00,P02-2023
,LEE VALLEY MARINA SPRINGFIELD,PREMISES RELATED EXPENDITURE,RENT (EXTERNAL),2442,THAMES WATER UTILITIES LIMITED,29/05/2022 00:00,263462,2618.75,TH0020,THAMES WATER UTILITIES LIMITED,25/04/2022 00:00,29/05/2022 00:00,P02-2023
,LEE VALLEY MARINA STANSTEAD,PREMISES RELATED EXPENDITURE,RENT (EXTERNAL),2442,CANAL & RIVER TRUST,23/05/2022 00:00,263347,11875,BR0036,CANAL & RIVER TRUST,25/04/2022 00:00,29/05/2022 00:00,P02-2023
P&V,KING GEORGE RESERVOIR SOUTH,PREMISES RELATED EXPENDITURE,RENT (EXTERNAL),2442,THAMES WATER UTILITIES LIMITED,11/05/2022 00:00,262869,3375,TH0020,THAMES WATER UTILITIES LIMITED,25/04/2022 00:00,29/05/2022 00:00,P02-2023
P&V,NORTH AREA RANGERS,PREMISES RELATED EXPENDITURE,RENT (EXTERNAL),2442,NETWORK RAIL,16/05/2022 00:00,263048,100,RA0005,NETWORK RAIL,25/04/2022 00:00,29/05/2022 00:00,P02-2023
P&V,LEE VALLEY FARM HOLYFIELDHALL,PREMISES RELATED EXPENDITURE,COUNCIL TAX,2445,EPPING FOREST DISTRICT COUNCIL,25/05/2022 00:00,260819,1527.49,EP0025,EPPING FOREST DISTRICT COUNCIL,25/04/2022 00:00,29/05/2022 00:00,P02-2023
P&V,LEE VALLEY FARM HOLYFIELDHALL,PREMISES RELATED EXPENDITURE,COUNCIL TAX,2445,EPPING FOREST DISTRICT COUNCIL,11/05/2022 00:00,260821,1309.28,EP0025,EPPING FOREST DISTRICT COUNCIL,25/04/2022 00:00,29/05/2022 00:00,P02-2023
P&V,LEE VALLEY FARM HOLYFIELDHALL,PREMISES RELATED EXPENDITURE,COUNCIL TAX,2445,EPPING FOREST DISTRICT COUNCIL,11/05/2022 00:00,260822,1745.7,EP0025,EPPING FOREST DISTRICT COUNCIL,25/04/2022 00:00,29/05/2022 00:00,P02-2023
P&V,LEE VALLEY FARM HOLYFIELDHALL,PREMISES RELATED EXPENDITURE,COUNCIL TAX,2445,EPPING FOREST DISTRICT COUNCIL,11/05/2022 00:00,260824,2400.35,EP0025,EPPING FOREST DISTRICT COUNCIL,25/04/2022 00:00,29/05/2022 00:00,P02-2023
CEO,RESIDENTIAL ACCOMMODATION,PREMISES RELATED EXPENDITURE,PROPERTY MANAGEMT/LETTING FEES,2447,P117976-SERVICE-Landlord Warranty - Springfield Bungalow,16/05/2022 00:00,262496,437.31,CA0165,CASTLES,25/04/2022 00:00,29/05/2022 00:00,P02-2023
CEO,RESIDENTIAL ACCOMMODATION,PREMISES RELATED EXPENDITURE,PROPERTY MANAGEMT/LETTING FEES,2447,P117977-SERVICE-Landlord Fees - Springfield Bungalow,16/05/2022 00:00,262497,2034,CA0165,CASTLES,25/04/2022 00:00,29/05/2022 00:00,P02-2023
P&V,MYDDELTON HOUSE,PREMISES RELATED EXPENDITURE,WATER,2555,CASTLE WATER LIMITED,10/05/2022 00:00,262739,8238.35,CA0625,CASTLE WATER LIMITED,25/04/2022 00:00,29/05/2022 00:00,P02-2023
CEO,RESIDENTIAL ACCOMMODATION,PREMISES RELATED EXPENDITURE,WATER,2555,CASTLE WATER LIMITED,11/05/2022 00:00,262216,96.99,CA0625,CASTLE WATER LIMITED,25/04/2022 00:00,29/05/2022 00:00,P02-2023
CEO,RESIDENTIAL ACCOMMODATION,PREMISES RELATED EXPENDITURE,WATER,2555,CASTLE WATER LIMITED,11/05/2022 00:00,262217,-96.99,CA0625,CASTLE WATER LIMITED,25/04/2022 00:00,29/05/2022 00:00,P02-2023
CEO,RESIDENTIAL ACCOMMODATION,PREMISES RELATED EXPENDITURE,WATER,2555,CASTLE WATER LIMITED,11/05/2022 00:00,262217,-50.88,CA0625,CASTLE WATER LIMITED,25/04/2022 00:00,29/05/2022 00:00,P02-2023
,LEE VALLEY MARINA SPRINGFIELD,PREMISES RELATED EXPENDITURE,WATER,2555,CASTLE WATER LIMITED,10/05/2022 00:00,262986,1462.56,CA0625,CASTLE WATER LIMITED,25/04/2022 00:00,29/05/2022 00:00,P02-2023
,LEE VALLEY MARINA SPRINGFIELD,PREMISES RELATED EXPENDITURE,WATER,2555,CASTLE WATER LIMITED,10/05/2022 00:00,262986,997.51,CA0625,CASTLE WATER LIMITED,25/04/2022 00:00,29/05/2022 00:00,P02-2023
,LEE VALLEY MARINA STANSTEAD,PREMISES RELATED EXPENDITURE,WATER,2555,CASTLE WATER LIMITED,27/04/2022 00:00,262425,124.08,CA0625,CASTLE WATER LIMITED,25/04/2022 00:00,29/05/2022 00:00,P02-2023
,LEE VALLEY MARINA STANSTEAD,PREMISES RELATED EXPENDITURE,WATER,2555,CASTLE WATER LIMITED,27/04/2022 00:00,262425,132.64,CA0625,CASTLE WATER LIMITED,25/04/2022 00:00,29/05/2022 00:00,P02-2023
,LEE VALLEY MARINA STANSTEAD,PREMISES RELATED EXPENDITURE,WATER,2555,CASTLE WATER LIMITED,29/05/2022 00:00,263657,344.61,CA0625,CASTLE WATER LIMITED,25/04/2022 00:00,29/05/2022 00:00,P02-2023
,LEE VALLEY MARINA STANSTEAD,PREMISES RELATED EXPENDITURE,WATER,2555,CASTLE WATER LIMITED,29/05/2022 00:00,263702,136.2,CA0625,CASTLE WATER LIMITED,25/04/2022 00:00,29/05/2022 00:00,P02-2023
,LEE VALLEY MARINA STANSTEAD,PREMISES RELATED EXPENDITURE,WATER,2555,CASTLE WATER LIMITED,29/05/2022 00:00,263702,127.39,CA0625,CASTLE WATER LIMITED,25/04/2022 00:00,29/05/2022 00:00,P02-2023
,LEE VALLEY WATERWORKS CENTRE,PREMISES RELATED EXPENDITURE,WATER,2555,CASTLE WATER LIMITED,04/05/2022 00:00,262459,94.69,CA0625,CASTLE WATER LIMITED,25/04/2022 00:00,29/05/2022 00:00,P02-2023
,LEE VALLEY CAMPSITE,PREMISES RELATED EXPENDITURE,WATER,2555,CASTLE WATER LIMITED,27/04/2022 00:00,262423,583.73,CA0625,CASTLE WATER LIMITED,25/04/2022 00:00,29/05/2022 00:00,P02-2023
,LEE VALLEY CAMPSITE,PREMISES RELATED EXPENDITURE,WATER,2555,CASTLE WATER LIMITED,27/04/2022 00:00,262423,858.72,CA0625,CASTLE WATER LIMITED,25/04/2022 00:00,29/05/2022 00:00,P02-2023
,LEE VALLEY CARAVAN PARK,PREMISES RELATED EXPENDITURE,WATER,2555,CASTLE WATER LIMITED,23/05/2022 00:00,263234,2812.23,CA0625,CASTLE WATER LIMITED,25/04/2022 00:00,29/05/2022 00:00,P02-2023
,LEE VALLEY CARAVAN PARK,PREMISES RELATED EXPENDITURE,WATER,2555,CASTLE WATER LIMITED,23/05/2022 00:00,263234,1843.24,CA0625,CASTLE WATER LIMITED,25/04/2022 00:00,29/05/2022 00:00,P02-2023
P&V,EAST INDIA DOCK AND BOW CREEK,PREMISES RELATED EXPENDITURE,WATER,2555,CASTLE WATER LIMITED,27/04/2022 00:00,262451,13.25,CA0625,CASTLE WATER LIMITED,25/04/2022 00:00,29/05/2022 00:00,P02-2023
P&V,EAST INDIA DOCK AND BOW CREEK,PREMISES RELATED EXPENDITURE,WATER,2555,CASTLE WATER LIMITED,09/05/2022 00:00,262741,7.15,CA0625,CASTLE WATER LIMITED,25/04/2022 00:00,29/05/2022 00:00,P02-2023
P&V,RIVER LEE COUNTRY PARK,PREMISES RELATED EXPENDITURE,WATER,2555,CASTLE WATER LIMITED,16/05/2022 00:00,263148,41.9,CA0625,CASTLE WATER LIMITED,25/04/2022 00:00,29/05/2022 00:00,P02-2023
,LV LEISURE CENTRE CAMPSITE,PREMISES RELATED EXPENDITURE,WATER,2555,CASTLE WATER LIMITED,16/05/2022 00:00,262985,34.09,CA0625,CASTLE WATER LIMITED,25/04/2022 00:00,29/05/2022 00:00,P02-2023
,LV LEISURE CENTRE CAMPSITE,PREMISES RELATED EXPENDITURE,WATER,2555,CASTLE WATER LIMITED,16/05/2022 00:00,262985,33.13,CA0625,CASTLE WATER LIMITED,25/04/2022 00:00,29/05/2022 00:00,P02-2023
,LV LEISURE CENTRE CAMPSITE,PREMISES RELATED EXPENDITURE,WATER,2555,CASTLE WATER LIMITED,24/05/2022 00:00,263232,-2775.07,CA0625,CASTLE WATER LIMITED,25/04/2022 00:00,29/05/2022 00:00,P02-2023
,LV LEISURE CENTRE CAMPSITE,PREMISES RELATED EXPENDITURE,WATER,2555,CASTLE WATER LIMITED,24/05/2022 00:00,263232,-1382.73,CA0625,CASTLE WATER LIMITED,25/04/2022 00:00,29/05/2022 00:00,P02-2023
,LV LEISURE CENTRE CAMPSITE,PREMISES RELATED EXPENDITURE,WATER,2555,CASTLE WATER LIMITED,24/05/2022 00:00,263233,364.36,CA0625,CASTLE WATER LIMITED,25/04/2022 00:00,29/05/2022 00:00,P02-2023
,LV LEISURE CENTRE CAMPSITE,PREMISES RELATED EXPENDITURE,WATER,2555,CASTLE WATER LIMITED,24/05/2022 00:00,263233,552.67,CA0625,CASTLE WATER LIMITED,25/04/2022 00:00,29/05/2022 00:00,P02-2023
,LEE VALLEY MARINA SPRINGFIELD,PREMISES RELATED EXPENDITURE,CLEANING & DOMESTIC SUPPLIES,2666,"P117560-SERVICE-Sanitary Disposal/Dust Mats,Eco Shield",04/05/2022 00:00,262215,191.64,PE0015,PHS GROUP PLC,25/04/2022 00:00,29/05/2022 00:00,P02-2023
,LEE VALLEY MARINA SPRINGFIELD,PREMISES RELATED EXPENDITURE,CLEANING & DOMESTIC SUPPLIES,2666,P117793-SERVICE-To supply items as requested,04/05/2022 00:00,262653,385.58,HY0043,HYGIENE SYSTEMS LTD,25/04/2022 00:00,29/05/2022 00:00,P02-2023
,LEE VALLEY MARINA SPRINGFIELD,PREMISES RELATED EXPENDITURE,CLEANING & DOMESTIC SUPPLIES,2666,"P117558-SERVICE-Site Cleaning for April,May,June 22",04/05/2022 00:00,262664,972.31,MA0015,MAYFAIR CLEANING COMPANY LIMITED,25/04/2022 00:00,29/05/2022 00:00,P02-2023
,LEE VALLEY MARINA SPRINGFIELD,PREMISES RELATED EXPENDITURE,CLEANING & DOMESTIC SUPPLIES,2666,"P117560-SERVICE-Sanitary Disposal/Dust Mats,Eco Shield",29/05/2022 00:00,263486,191.64,PE0015,PHS GROUP PLC,25/04/2022 00:00,29/05/2022 00:00,P02-2023
,LEE VALLEY MARINA STANSTEAD,PREMISES RELATED EXPENDITURE,CLEANING & DOMESTIC SUPPLIES,2666,P117856-SERVICE-Tonya external cleaner (April 22),04/05/2022 00:00,262688,105,TR0632,TONYA RENNIE T/A TR SERVICES,25/04/2022 00:00,29/05/2022 00:00,P02-2023
,LEE VALLEY WATERWORKS CENTRE,PREMISES RELATED EXPENDITURE,CLEANING & DOMESTIC SUPPLIES,2666,P117876-SERVICE-Cleaning WaterWorks Centre - 2022,09/05/2022 00:00,262730,526,GL0214,GLENDALE GROUNDS MANAGEMENT LIMITED,25/04/2022 00:00,29/05/2022 00:00,P02-2023
,LEE VALLEY CARAVAN PARK,PREMISES RELATED EXPENDITURE,CLEANING & DOMESTIC SUPPLIES,2666,P117792-SERVICE-Cleaning supplies,09/05/2022 00:00,262652,411.25,HY0043,HYGIENE SYSTEMS LTD,25/04/2022 00:00,29/05/2022 00:00,P02-2023
,LV LEISURE CENTRE CAMPSITE,PREMISES RELATED EXPENDITURE,CLEANING & DOMESTIC SUPPLIES,2666,P117889-SERVICE-Cloths and bin backs,16/05/2022 00:00,262992,128.66,HY0043,HYGIENE SYSTEMS LTD,25/04/2022 00:00,29/05/2022 00:00,P02-2023
,LV LEISURE CENTRE CAMPSITE,PREMISES RELATED EXPENDITURE,CLEANING & DOMESTIC SUPPLIES,2666,P118060-SERVICE-Cleaning supplies and mats,24/05/2022 00:00,263514,103.93,HY0043,HYGIENE SYSTEMS LTD,25/04/2022 00:00,29/05/2022 00:00,P02-2023
P&V,LEE VALLEY FARM HOLYFIELDHALL,TRANSPORT RELATED EXPENDITURE,TRANSPORT RUNNING EXPENSES,3333,P117801-SERVICE-Tyres/Tube,28/04/2022 00:00,262410,265,KB0006,KB TYRES LTD,25/04/2022 00:00,29/05/2022 00:00,P02-2023
P&V,LEE VALLEY FARM HOLYFIELDHALL,TRANSPORT RELATED EXPENDITURE,TRANSPORT RUNNING EXPENSES,3333,P117731-SERVICE-7000ltrs Red Diesel,28/04/2022 00:00,262421,6192.18,TE0052,TEAM FLITWICK,25/04/2022 00:00,29/05/2022 00:00,P02-2023
P&V,LEE VALLEY FARM HOLYFIELDHALL,TRANSPORT RELATED EXPENDITURE,TRANSPORT RUNNING EXPENSES,3333,P117603-SERVICE-Tractor Spares,28/04/2022 00:00,262483,327.6,OL0059,OLIVER LANDPOWER LIMITED,25/04/2022 00:00,29/05/2022 00:00,P02-2023
P&V,LEE VALLEY FARM HOLYFIELDHALL,TRANSPORT RELATED EXPENDITURE,TRANSPORT RUNNING EXPENSES,3333,P117603-SERVICE-Tractor Spares,11/05/2022 00:00,262645,140.92,OL0059,OLIVER LANDPOWER LIMITED,25/04/2022 00:00,29/05/2022 00:00,P02-2023
P&V,LEE VALLEY FARM HOLYFIELDHALL,TRANSPORT RELATED EXPENDITURE,TRANSPORT RUNNING EXPENSES,3333,P117606-SERVICE-Welding Sundries,11/05/2022 00:00,262693,145.45,BO0015,BOC LTD,25/04/2022 00:00,29/05/2022 00:00,P02-2023
P&V,LEE VALLEY FARM HOLYFIELDHALL,TRANSPORT RELATED EXPENDITURE,TRANSPORT RUNNING EXPENSES,3333,P117603-SERVICE-Tractor Spares,11/05/2022 00:00,262727,42.91,OL0059,OLIVER LANDPOWER LIMITED,25/04/2022 00:00,29/05/2022 00:00,P02-2023
P&V,LEE VALLEY FARM HOLYFIELDHALL,TRANSPORT RELATED EXPENDITURE,TRANSPORT RUNNING EXPENSES,3333,P117678-SERVICE-Chains & Drives,11/05/2022 00:00,262935,228.4,BE0066,BEARINGS AND DRIVES,25/04/2022 00:00,29/05/2022 00:00,P02-2023
P&V,LEE VALLEY FARM HOLYFIELDHALL,TRANSPORT RELATED EXPENDITURE,TRANSPORT RUNNING EXPENSES,3333,P117965-SERVICE-Fuel & Def Filter,11/05/2022 00:00,262976,164.87,CH0719,CHANDLERS (FARM EQUIPMENT) LTD,25/04/2022 00:00,29/05/2022 00:00,P02-2023
P&V,LEE VALLEY FARM HOLYFIELDHALL,TRANSPORT RELATED EXPENDITURE,TRANSPORT RUNNING EXPENSES,3333,P117601-SERVICE-Tractor Spares,11/05/2022 00:00,263004,4.97,OL0001,OLIVER AGRICULTURE LTD,25/04/2022 00:00,29/05/2022 00:00,P02-2023
P&V,LEE VALLEY FARM HOLYFIELDHALL,TRANSPORT RELATED EXPENDITURE,TRANSPORT RUNNING EXPENSES,3333,P117606-SERVICE-Welding Sundries,17/05/2022 00:00,263021,117.68,BO0015,BOC LTD,25/04/2022 00:00,29/05/2022 00:00,P02-2023
P&V,LEE VALLEY FARM HOLYFIELDHALL,TRANSPORT RELATED EXPENDITURE,TRANSPORT RUNNING EXPENSES,3333,P118026-SERVICE-Repair to Sprayer Boom,18/05/2022 00:00,263272,200,MO0487,MOBILE WELDING SERVICES,25/04/2022 00:00,29/05/2022 00:00,P02-2023
P&V,LEE VALLEY FARM HOLYFIELDHALL,TRANSPORT RELATED EXPENDITURE,TRANSPORT RUNNING EXPENSES,3333,P117603-SERVICE-Tractor Spares,29/05/2022 00:00,263517,251.1,OL0059,OLIVER LANDPOWER LIMITED,25/04/2022 00:00,29/05/2022 00:00,P02-2023
P&V,LEE VALLEY FARM HOLYFIELDHALL,TRANSPORT RELATED EXPENDITURE,TRANSPORT RUNNING EXPENSES,3333,P117603-SERVICE-Tractor Spares,29/05/2022 00:00,263518,72.77,OL0059,OLIVER LANDPOWER LIMITED,25/04/2022 00:00,29/05/2022 00:00,P02-2023
P&V,LEE VALLEY FARM HOLYFIELDHALL,TRANSPORT RELATED EXPENDITURE,TRANSPORT RUNNING EXPENSES,3333,P117601-SERVICE-Tractor Spares,29/05/2022 00:00,263519,621.48,OL0001,OLIVER AGRICULTURE LTD,25/04/2022 00:00,29/05/2022 00:00,P02-2023
,LV LEISURE CENTRE GOLF COURSE,TRANSPORT RELATED EXPENDITURE,TRANSPORT RUNNING EXPENSES,3333,P117622-SERVICE-Quad Bike Hire Mar,04/05/2022 00:00,262432,450,CA0698,CAMBRIDGE GOLF COMPANY,25/04/2022 00:00,29/05/2022 00:00,P02-2023
,LEE VALLEY MARINA STANSTEAD,TRANSPORT RELATED EXPENDITURE,VEHICLE FUEL,3335,ALLSTAR BUSINESS SOLUTIONS LTD,09/05/2022 00:00,262710,164.01,AR0035,ALLSTAR BUSINESS SOLUTIONS LTD,25/04/2022 00:00,29/05/2022 00:00,P02-2023
P&V,LEE VALLEY FARM HOLYFIELDHALL,TRANSPORT RELATED EXPENDITURE,VEHICLE FUEL,3335,ALLSTAR BUSINESS SOLUTIONS LTD,09/05/2022 00:00,262710,74.98,AR0035,ALLSTAR BUSINESS SOLUTIONS LTD,25/04/2022 00:00,29/05/2022 00:00,P02-2023
,LEE VALLEY CAMPSITE,TRANSPORT RELATED EXPENDITURE,VEHICLE FUEL,3335,ALLSTAR BUSINESS SOLUTIONS LTD,09/05/2022 00:00,262710,116.24,AR0035,ALLSTAR BUSINESS SOLUTIONS LTD,25/04/2022 00:00,29/05/2022 00:00,P02-2023
,LEE VALLEY CARAVAN PARK,TRANSPORT RELATED EXPENDITURE,VEHICLE FUEL,3335,ALLSTAR BUSINESS SOLUTIONS LTD,09/05/2022 00:00,262710,188.55,AR0035,ALLSTAR BUSINESS SOLUTIONS LTD,25/04/2022 00:00,29/05/2022 00:00,P02-2023
P&V,SOUTH AREA RANGERS,TRANSPORT RELATED EXPENDITURE,VEHICLE FUEL,3335,ALLSTAR BUSINESS SOLUTIONS LTD,09/05/2022 00:00,262710,466.81,AR0035,ALLSTAR BUSINESS SOLUTIONS LTD,25/04/2022 00:00,29/05/2022 00:00,P02-2023
P&V,RIVER LEE COUNTRY PARK,TRANSPORT RELATED EXPENDITURE,VEHICLE FUEL,3335,ALLSTAR BUSINESS SOLUTIONS LTD,09/05/2022 00:00,262710,75.24,AR0035,ALLSTAR BUSINESS SOLUTIONS LTD,25/04/2022 00:00,29/05/2022 00:00,P02-2023
P&V,RIVER LEE COUNTRY PARK,TRANSPORT RELATED EXPENDITURE,VEHICLE FUEL,3335,ALLSTAR BUSINESS SOLUTIONS LTD,09/05/2022 00:00,262710,247.83,AR0035,ALLSTAR BUSINESS SOLUTIONS LTD,25/04/2022 00:00,29/05/2022 00:00,P02-2023
,LEE VALLEY MARINA SPRINGFIELD,TRANSPORT RELATED EXPENDITURE,CRAFT REPAIRS/MAINTENANCE,3347,P117877-SERVICE-1 x model B spurs cutter to fit 1 1/4'' shaft,16/05/2022 00:00,263038,367.85,HA0015,HAROLD HAYLES (YARMOUTH I.W.) LTD,25/04/2022 00:00,29/05/2022 00:00,P02-2023
,LEE VALLEY MARINA SPRINGFIELD,SUPPLIES AND SERVICES,EQUIPMENT & MATERIALS,4111,P117847-SERVICE-To supply items on quote No 255128,10/05/2022 00:00,262968,212.54,EL0281,ELTHAM WELDING SUPPLIES LIMITED,25/04/2022 00:00,29/05/2022 00:00,P02-2023
,LEE VALLEY MARINA SPRINGFIELD,SUPPLIES AND SERVICES,EQUIPMENT & MATERIALS,4111,ELTHAM WELDING SUPPLIES LIMITE,10/05/2022 00:00,262968,135,EL0281,ELTHAM WELDING SUPPLIES LIMITED,25/04/2022 00:00,29/05/2022 00:00,P02-2023
,LEE VALLEY MARINA SPRINGFIELD,SUPPLIES AND SERVICES,EQUIPMENT & MATERIALS,4111,ELTHAM WELDING SUPPLIES LIMITE,10/05/2022 00:00,262968,77.54,EL0281,ELTHAM WELDING SUPPLIES LIMITED,25/04/2022 00:00,29/05/2022 00:00,P02-2023
,LEE VALLEY MARINA SPRINGFIELD,SUPPLIES AND SERVICES,EQUIPMENT & MATERIALS,4111,ELTHAM WELDING SUPPLIES LIMITE,10/05/2022 00:00,262968,-212.54,EL0281,ELTHAM WELDING SUPPLIES LIMITED,25/04/2022 00:00,29/05/2022 00:00,P02-2023
,LEE VALLEY MARINA SPRINGFIELD,SUPPLIES AND SERVICES,EQUIPMENT & MATERIALS,4111,P117942-SERVICE-Signage,16/05/2022 00:00,263142,50.27,SA0008,SAFETEC DIRECT LTD,25/04/2022 00:00,29/05/2022 00:00,P02-2023
,LEE VALLEY MARINA SPRINGFIELD,SUPPLIES AND SERVICES,EQUIPMENT & MATERIALS,4111,P118007-SERVICE-Workshop supplies,23/05/2022 00:00,263321,53.6,EN0259,L & S ENGINEERS LTD,25/04/2022 00:00,29/05/2022 00:00,P02-2023
,LEE VALLEY MARINA SPRINGFIELD,SUPPLIES AND SERVICES,EQUIPMENT & MATERIALS,4111,P118048-SERVICE-Workshop supplies,23/05/2022 00:00,263467,218.11,EN0259,L & S ENGINEERS LTD,25/04/2022 00:00,29/05/2022 00:00,P02-2023
,LEE VALLEY MARINA SPRINGFIELD,SUPPLIES AND SERVICES,EQUIPMENT & MATERIALS,4111,P118048-SERVICE-Workshop supplies,24/05/2022 00:00,263505,23.2,EN0259,L & S ENGINEERS LTD,25/04/2022 00:00,29/05/2022 00:00,P02-2023
,STANSTEAD RECHARGEABLE WORKS,SUPPLIES AND SERVICES,EQUIPMENT & MATERIALS,4111,P117471-SERVICE-blacking,04/05/2022 00:00,262125,432,SM0658,SML PAINTS AND COATINGS,25/04/2022 00:00,29/05/2022 00:00,P02-2023
,STANSTEAD RECHARGEABLE WORKS,SUPPLIES AND SERVICES,EQUIPMENT & MATERIALS,4111,P117842-SERVICE-anodes,09/05/2022 00:00,262696,1920.75,MI0200,MIDLAND CHANDLERS LIMITED,25/04/2022 00:00,29/05/2022 00:00,P02-2023
,STANSTEAD RECHARGEABLE WORKS,SUPPLIES AND SERVICES,EQUIPMENT & MATERIALS,4111,P117833-SERVICE-blacking,23/05/2022 00:00,262993,1736,SM0658,SML PAINTS AND COATINGS,25/04/2022 00:00,29/05/2022 00:00,P02-2023
,STANSTEAD RECHARGEABLE WORKS,SUPPLIES AND SERVICES,EQUIPMENT & MATERIALS,4111,P117833-SERVICE-blacking,23/05/2022 00:00,263336,864,SM0658,SML PAINTS AND COATINGS,25/04/2022 00:00,29/05/2022 00:00,P02-2023
,LEE VALLEY CAMPSITE,SUPPLIES AND SERVICES,EQUIPMENT & MATERIALS,4111,P117797-SERVICE-Fire blanket,09/05/2022 00:00,261959,4.17,SC0057,SCREWFIX DIRECT LTD,25/04/2022 00:00,29/05/2022 00:00,P02-2023
,LEE VALLEY CAMPSITE,SUPPLIES AND SERVICES,EQUIPMENT & MATERIALS,4111,P117797-SERVICE-Mind your Head sign,09/05/2022 00:00,261959,7.48,SC0057,SCREWFIX DIRECT LTD,25/04/2022 00:00,29/05/2022 00:00,P02-2023
,LEE VALLEY CAMPSITE,SUPPLIES AND SERVICES,EQUIPMENT & MATERIALS,4111,P117797-SERVICE-Kitchen fire blanket sign,09/05/2022 00:00,262138,2.49,SC0057,SCREWFIX DIRECT LTD,25/04/2022 00:00,29/05/2022 00:00,P02-2023
,LEE VALLEY CAMPSITE,SUPPLIES AND SERVICES,EQUIPMENT & MATERIALS,4111,P117797-SERVICE-Fire exit down arrow sign,09/05/2022 00:00,262138,4.99,SC0057,SCREWFIX DIRECT LTD,25/04/2022 00:00,29/05/2022 00:00,P02-2023
,LEE VALLEY CAMPSITE,SUPPLIES AND SERVICES,EQUIPMENT & MATERIALS,4111,P117797-SERVICE-Delivery,09/05/2022 00:00,262138,4.17,SC0057,SCREWFIX DIRECT LTD,25/04/2022 00:00,29/05/2022 00:00,P02-2023
,LEE VALLEY CAMPSITE,SUPPLIES AND SERVICES,EQUIPMENT & MATERIALS,4111,P117797-SERVICE-Fire blanket,09/05/2022 00:00,262138,15.83,SC0057,SCREWFIX DIRECT LTD,25/04/2022 00:00,29/05/2022 00:00,P02-2023
,LEE VALLEY CAMPSITE,SUPPLIES AND SERVICES,EQUIPMENT & MATERIALS,4111,P117797-SERVICE-Crometta shower kit,09/05/2022 00:00,262417,69.14,SC0057,SCREWFIX DIRECT LTD,25/04/2022 00:00,29/05/2022 00:00,P02-2023
,LEE VALLEY CAMPSITE,SUPPLIES AND SERVICES,EQUIPMENT & MATERIALS,4111,P117797-SERVICE-Delivery,09/05/2022 00:00,262417,4.17,SC0057,SCREWFIX DIRECT LTD,25/04/2022 00:00,29/05/2022 00:00,P02-2023
,LEE VALLEY CAMPSITE,SUPPLIES AND SERVICES,EQUIPMENT & MATERIALS,4111,P117848-SERVICE-Curtain rings HH3,09/05/2022 00:00,262666,40,BQ0164,TRADE UK ACCOUNT,25/04/2022 00:00,29/05/2022 00:00,P02-2023
,LEE VALLEY CAMPSITE,SUPPLIES AND SERVICES,EQUIPMENT & MATERIALS,4111,P117848-SERVICE-Curtain rings HH3,09/05/2022 00:00,262707,-40,BQ0164,TRADE UK ACCOUNT,25/04/2022 00:00,29/05/2022 00:00,P02-2023
,LEE VALLEY CAMPSITE,SUPPLIES AND SERVICES,EQUIPMENT & MATERIALS,4111,P118010-SERVICE-equipment for site use,18/05/2022 00:00,262924,103.63,BQ0164,TRADE UK ACCOUNT,25/04/2022 00:00,29/05/2022 00:00,P02-2023
,LEE VALLEY CAMPSITE,SUPPLIES AND SERVICES,EQUIPMENT & MATERIALS,4111,P118084-SERVICE-Usb Plugs for iphone + Hangers,24/05/2022 00:00,263481,4.24,AM0406,AMAZON PAYMENTS UK LIMITED,25/04/2022 00:00,29/05/2022 00:00,P02-2023
,LEE VALLEY CAMPSITE,SUPPLIES AND SERVICES,EQUIPMENT & MATERIALS,4111,P118084-SERVICE-Usb Plugs for iphone + Hangers,24/05/2022 00:00,263482,7.48,AM0406,AMAZON PAYMENTS UK LIMITED,25/04/2022 00:00,29/05/2022 00:00,P02-2023
,LEE VALLEY CARAVAN PARK,SUPPLIES AND SERVICES,EQUIPMENT & MATERIALS,4111,P117906-SERVICE-Cultivator hire,09/05/2022 00:00,262895,232.14,ED0011,EDWARDS PLANT & TOOL HIRE LIMITED,25/04/2022 00:00,29/05/2022 00:00,P02-2023
,LEE VALLEY CARAVAN PARK,SUPPLIES AND SERVICES,EQUIPMENT & MATERIALS,4111,P118155-SERVICE-Fire point signs,29/05/2022 00:00,263026,41.63,SC0057,SCREWFIX DIRECT LTD,25/04/2022 00:00,29/05/2022 00:00,P02-2023
P&V,MYDDLETON HSE HERITAGE CENTRE,SUPPLIES AND SERVICES,EQUIPMENT & MATERIALS,4111,P118128-SERVICE-VC office / cleaning supplies,29/05/2022 00:00,261396,70.47,TH0008,JKL SOLUTIONS LTD,25/04/2022 00:00,29/05/2022 00:00,P02-2023
P&V,NORTH AREA RANGERS,SUPPLIES AND SERVICES,EQUIPMENT & MATERIALS,4111,P117538-SERVICE-Equipment & Materials as and when required,17/05/2022 00:00,263235,5.57,JE0011,SAINT-GOBAIN BUILDING DISTRIBUTION,25/04/2022 00:00,29/05/2022 00:00,P02-2023
P&V,NORTH AREA RANGERS,SUPPLIES AND SERVICES,EQUIPMENT & MATERIALS,4111,P118075-SERVICE-Delivery,29/05/2022 00:00,263667,4.95,ST0038,ST JOHN AMBULANCE,25/04/2022 00:00,29/05/2022 00:00,P02-2023
P&V,NORTH AREA RANGERS,SUPPLIES AND SERVICES,EQUIPMENT & MATERIALS,4111,P118075-SERVICE-40x Standard Non-woven Sterile Swabs - F10808,29/05/2022 00:00,263667,17.07,ST0038,ST JOHN AMBULANCE,25/04/2022 00:00,29/05/2022 00:00,P02-2023
P&V,NORTH AREA RANGERS,SUPPLIES AND SERVICES,EQUIPMENT & MATERIALS,4111,P118075-SERVICE-30x Assorted Washproof Plasters PK10 - F94022,29/05/2022 00:00,263667,16.16,ST0038,ST JOHN AMBULANCE,25/04/2022 00:00,29/05/2022 00:00,P02-2023
P&V,NORTH AREA RANGERS,SUPPLIES AND SERVICES,EQUIPMENT & MATERIALS,4111,P118075-SERVICE-20x Eye Wash Bottle 250ml - F17880,29/05/2022 00:00,263667,68,ST0038,ST JOHN AMBULANCE,25/04/2022 00:00,29/05/2022 00:00,P02-2023
P&V,NORTH AREA RANGERS,SUPPLIES AND SERVICES,EQUIPMENT & MATERIALS,4111,P118075-SERVICE-40x Finger Dressing 3.5cm x 3.5cm - F90111,29/05/2022 00:00,263667,23.4,ST0038,ST JOHN AMBULANCE,25/04/2022 00:00,29/05/2022 00:00,P02-2023
P&V,SOUTH AREA RANGERS,SUPPLIES AND SERVICES,EQUIPMENT & MATERIALS,4111,P117861-SERVICE-Delivery,04/05/2022 00:00,262687,18.5,PR0413,PROTECTIVE PACKAGING LIMITED,25/04/2022 00:00,29/05/2022 00:00,P02-2023
P&V,SOUTH AREA RANGERS,SUPPLIES AND SERVICES,EQUIPMENT & MATERIALS,4111,P117861-SERVICE-1x Dampstick 8 Pack,04/05/2022 00:00,262687,128,PR0413,PROTECTIVE PACKAGING LIMITED,25/04/2022 00:00,29/05/2022 00:00,P02-2023
P&V,SOUTH AREA RANGERS,SUPPLIES AND SERVICES,EQUIPMENT & MATERIALS,4111,P117861-SERVICE-2x Dampsticks (Singles),04/05/2022 00:00,262687,39.8,PR0413,PROTECTIVE PACKAGING LIMITED,25/04/2022 00:00,29/05/2022 00:00,P02-2023
P&V,SOUTH AREA RANGERS,SUPPLIES AND SERVICES,EQUIPMENT & MATERIALS,4111,P117110-SERVICE-8ft Metal Trough (1853),09/05/2022 00:00,262858,224.24,FA0099,FARM & COUNTRY SUPPLIES LTD,25/04/2022 00:00,29/05/2022 00:00,P02-2023
P&V,SOUTH AREA RANGERS,SUPPLIES AND SERVICES,EQUIPMENT & MATERIALS,4111,P117544-SERVICE-5x Square Head Square-Mouth No 2 Shovel (3180,29/05/2022 00:00,262881,25.63,SC0057,SCREWFIX DIRECT LTD,25/04/2022 00:00,29/05/2022 00:00,P02-2023
P&V,SOUTH AREA RANGERS,SUPPLIES AND SERVICES,EQUIPMENT & MATERIALS,4111,"P117544-SERVICE-10x Bow Saw 21"" (1001X)",29/05/2022 00:00,262881,87,SC0057,SCREWFIX DIRECT LTD,25/04/2022 00:00,29/05/2022 00:00,P02-2023
P&V,SOUTH AREA RANGERS,SUPPLIES AND SERVICES,EQUIPMENT & MATERIALS,4111,P117544-SERVICE-1x Bolster & Cold Chisel Set 3 Pieces (5429V),29/05/2022 00:00,262881,17.49,SC0057,SCREWFIX DIRECT LTD,25/04/2022 00:00,29/05/2022 00:00,P02-2023
P&V,SOUTH AREA RANGERS,SUPPLIES AND SERVICES,EQUIPMENT & MATERIALS,4111,"P117544-SERVICE-5x Telescopic Ratchet Anvil Loppers 40"" (4091",29/05/2022 00:00,262881,187.45,SC0057,SCREWFIX DIRECT LTD,25/04/2022 00:00,29/05/2022 00:00,P02-2023
P&V,SOUTH AREA RANGERS,SUPPLIES AND SERVICES,EQUIPMENT & MATERIALS,4111,"P117544-SERVICE-1x 24tpi Multi-Material Hacksaw Blades 12"" 5P",29/05/2022 00:00,262881,4.15,SC0057,SCREWFIX DIRECT LTD,25/04/2022 00:00,29/05/2022 00:00,P02-2023
P&V,SOUTH AREA RANGERS,SUPPLIES AND SERVICES,EQUIPMENT & MATERIALS,4111,"P117544-SERVICE-1x 32tpi Multi-Material Hacksaw Blades 12"" 5P",29/05/2022 00:00,262881,4.57,SC0057,SCREWFIX DIRECT LTD,25/04/2022 00:00,29/05/2022 00:00,P02-2023
P&V,SOUTH AREA RANGERS,SUPPLIES AND SERVICES,EQUIPMENT & MATERIALS,4111,P117544-SERVICE-2x Soft-Faced Hammer 16oz (8281K),29/05/2022 00:00,262881,28.3,SC0057,SCREWFIX DIRECT LTD,25/04/2022 00:00,29/05/2022 00:00,P02-2023
P&V,SOUTH AREA RANGERS,SUPPLIES AND SERVICES,EQUIPMENT & MATERIALS,4111,P117544-SERVICE-1x Forge Steel File Set 3 Piece Set (746KY),29/05/2022 00:00,262881,6.65,SC0057,SCREWFIX DIRECT LTD,25/04/2022 00:00,29/05/2022 00:00,P02-2023
P&V,SOUTH AREA RANGERS,SUPPLIES AND SERVICES,EQUIPMENT & MATERIALS,4111,P117544-SERVICE-5x Green Sanding Roll Unpunched 10mx115mm 120,29/05/2022 00:00,262881,60.17,SC0057,SCREWFIX DIRECT LTD,25/04/2022 00:00,29/05/2022 00:00,P02-2023
P&V,SOUTH AREA RANGERS,SUPPLIES AND SERVICES,EQUIPMENT & MATERIALS,4111,P117544-SERVICE-1x Locking Pliers Set 3 Pieces (4091V),29/05/2022 00:00,262881,7.9,SC0057,SCREWFIX DIRECT LTD,25/04/2022 00:00,29/05/2022 00:00,P02-2023
P&V,SOUTH AREA RANGERS,SUPPLIES AND SERVICES,EQUIPMENT & MATERIALS,4111,P117544-SERVICE-10x Steel Bypass Secateurs 210mm (926KJ),29/05/2022 00:00,262881,74.91,SC0057,SCREWFIX DIRECT LTD,25/04/2022 00:00,29/05/2022 00:00,P02-2023
P&V,SOUTH AREA RANGERS,SUPPLIES AND SERVICES,EQUIPMENT & MATERIALS,4111,P117544-SERVICE-2x Flat Sole Spokeshave (28135),29/05/2022 00:00,262881,31.64,SC0057,SCREWFIX DIRECT LTD,25/04/2022 00:00,29/05/2022 00:00,P02-2023
P&V,SOUTH AREA RANGERS,SUPPLIES AND SERVICES,EQUIPMENT & MATERIALS,4111,"P117544-SERVICE-2x Stanley Surform blade 10"" (85326)",29/05/2022 00:00,262881,7.48,SC0057,SCREWFIX DIRECT LTD,25/04/2022 00:00,29/05/2022 00:00,P02-2023
P&V,SOUTH AREA RANGERS,SUPPLIES AND SERVICES,EQUIPMENT & MATERIALS,4111,"P117544-SERVICE-2x 12tpi Hardwood Tenon Saw 14"" (4738V)",29/05/2022 00:00,262881,14.98,SC0057,SCREWFIX DIRECT LTD,25/04/2022 00:00,29/05/2022 00:00,P02-2023
P&V,SOUTH AREA RANGERS,SUPPLIES AND SERVICES,EQUIPMENT & MATERIALS,4111,P117544-SERVICE-5x Brush Set 2 Pieces (6140V),29/05/2022 00:00,262881,18.71,SC0057,SCREWFIX DIRECT LTD,25/04/2022 00:00,29/05/2022 00:00,P02-2023
P&V,SOUTH AREA RANGERS,SUPPLIES AND SERVICES,EQUIPMENT & MATERIALS,4111,"P117544-SERVICE-1x Straight Tin Snips 10"" (49868)",29/05/2022 00:00,262881,13.25,SC0057,SCREWFIX DIRECT LTD,25/04/2022 00:00,29/05/2022 00:00,P02-2023
P&V,SOUTH AREA RANGERS,SUPPLIES AND SERVICES,EQUIPMENT & MATERIALS,4111,"P117544-SERVICE-3x NWS End Cutters 8"" (7213H)",29/05/2022 00:00,262881,62.46,SC0057,SCREWFIX DIRECT LTD,25/04/2022 00:00,29/05/2022 00:00,P02-2023
P&V,SOUTH AREA RANGERS,SUPPLIES AND SERVICES,EQUIPMENT & MATERIALS,4111,"P117544-SERVICE-5x Telescopic Anvil Lopper 23"" (836KK)",29/05/2022 00:00,262881,70.75,SC0057,SCREWFIX DIRECT LTD,25/04/2022 00:00,29/05/2022 00:00,P02-2023
P&V,SOUTH AREA RANGERS,SUPPLIES AND SERVICES,EQUIPMENT & MATERIALS,4111,P117544-SERVICE-5x 3 in -1 Oil Drip Can 200ml (59982),29/05/2022 00:00,262881,14.13,SC0057,SCREWFIX DIRECT LTD,25/04/2022 00:00,29/05/2022 00:00,P02-2023
P&V,SOUTH AREA RANGERS,SUPPLIES AND SERVICES,EQUIPMENT & MATERIALS,4111,P117544-SERVICE-6x Bungee Cords with Zinc Hooks Blue 600x12mm,29/05/2022 00:00,262881,31.25,SC0057,SCREWFIX DIRECT LTD,25/04/2022 00:00,29/05/2022 00:00,P02-2023
P&V,SOUTH AREA RANGERS,SUPPLIES AND SERVICES,EQUIPMENT & MATERIALS,4111,"P117544-SERVICE-50x No Nonsense Synthetic Paintbrush 2"" (9124",29/05/2022 00:00,262881,103.5,SC0057,SCREWFIX DIRECT LTD,25/04/2022 00:00,29/05/2022 00:00,P02-2023
P&V,SOUTH AREA RANGERS,SUPPLIES AND SERVICES,EQUIPMENT & MATERIALS,4111,"P117544-SERVICE-50x No Nonsense Synthetic Paintbrush 3"" (6870",29/05/2022 00:00,262881,124.5,SC0057,SCREWFIX DIRECT LTD,25/04/2022 00:00,29/05/2022 00:00,P02-2023
P&V,SOUTH AREA RANGERS,SUPPLIES AND SERVICES,EQUIPMENT & MATERIALS,4111,P117544-SERVICE-1x Nozzle & Tap Connector Set 4 Piece Set (79,29/05/2022 00:00,262881,6.65,SC0057,SCREWFIX DIRECT LTD,25/04/2022 00:00,29/05/2022 00:00,P02-2023
P&V,SOUTH AREA RANGERS,SUPPLIES AND SERVICES,EQUIPMENT & MATERIALS,4111,P117544-SERVICE-7x Wheelbarrow Wheels 350mm (498HF) Puncture,29/05/2022 00:00,262881,136.92,SC0057,SCREWFIX DIRECT LTD,25/04/2022 00:00,29/05/2022 00:00,P02-2023
P&V,SOUTH AREA RANGERS,SUPPLIES AND SERVICES,EQUIPMENT & MATERIALS,4111,P117544-SERVICE-10x Cable Ties Black 550x9mm 100 Pk (75152),29/05/2022 00:00,262881,102.92,SC0057,SCREWFIX DIRECT LTD,25/04/2022 00:00,29/05/2022 00:00,P02-2023
P&V,SOUTH AREA RANGERS,SUPPLIES AND SERVICES,EQUIPMENT & MATERIALS,4111,"P117544-SERVICE-3x Yard Broom Head & Bracket 13"" (69292)",29/05/2022 00:00,262881,19.98,SC0057,SCREWFIX DIRECT LTD,25/04/2022 00:00,29/05/2022 00:00,P02-2023
P&V,SOUTH AREA RANGERS,SUPPLIES AND SERVICES,EQUIPMENT & MATERIALS,4111,P117544-SERVICE-10x No Nonsense Multi-Task Wipes White 300 Pk,29/05/2022 00:00,262881,94.92,SC0057,SCREWFIX DIRECT LTD,25/04/2022 00:00,29/05/2022 00:00,P02-2023
P&V,SOUTH AREA RANGERS,SUPPLIES AND SERVICES,EQUIPMENT & MATERIALS,4111,P117544-SERVICE-4x Disposable Half-Masks P2 5 Pk (682KH),29/05/2022 00:00,262881,9.97,SC0057,SCREWFIX DIRECT LTD,25/04/2022 00:00,29/05/2022 00:00,P02-2023
P&V,SOUTH AREA RANGERS,SUPPLIES AND SERVICES,EQUIPMENT & MATERIALS,4111,P117544-SERVICE-5x Diall Twisted Rope Green 10mm x 15m (8157V,29/05/2022 00:00,262881,37.46,SC0057,SCREWFIX DIRECT LTD,25/04/2022 00:00,29/05/2022 00:00,P02-2023
P&V,SOUTH AREA RANGERS,SUPPLIES AND SERVICES,EQUIPMENT & MATERIALS,4111,"P117544-SERVICE-3x Floor Brush Soft Broom Head 11.5"" (11460)",29/05/2022 00:00,262881,14.97,SC0057,SCREWFIX DIRECT LTD,25/04/2022 00:00,29/05/2022 00:00,P02-2023
P&V,SOUTH AREA RANGERS,SUPPLIES AND SERVICES,EQUIPMENT & MATERIALS,4111,"P117544-SERVICE-1x 24tpi Multi-Material Hacksaw 12"" (4686)",29/05/2022 00:00,262881,10.4,SC0057,SCREWFIX DIRECT LTD,25/04/2022 00:00,29/05/2022 00:00,P02-2023
P&V,SOUTH AREA RANGERS,SUPPLIES AND SERVICES,EQUIPMENT & MATERIALS,4111,P117544-SERVICE-10x Cloth Tape 50 Mesh Black 50mx50mm (81035),29/05/2022 00:00,262881,62.41,SC0057,SCREWFIX DIRECT LTD,25/04/2022 00:00,29/05/2022 00:00,P02-2023
P&V,SOUTH AREA RANGERS,SUPPLIES AND SERVICES,EQUIPMENT & MATERIALS,4111,P117544-SERVICE-6x No Nonsense Window Scraper (56292),29/05/2022 00:00,262881,9.95,SC0057,SCREWFIX DIRECT LTD,25/04/2022 00:00,29/05/2022 00:00,P02-2023
P&V,SOUTH AREA RANGERS,SUPPLIES AND SERVICES,EQUIPMENT & MATERIALS,4111,P117544-SERVICE-5x Diall Welded Chain 10mmx5m (875HT),29/05/2022 00:00,262881,123.71,SC0057,SCREWFIX DIRECT LTD,25/04/2022 00:00,29/05/2022 00:00,P02-2023
P&V,SOUTH AREA RANGERS,SUPPLIES AND SERVICES,EQUIPMENT & MATERIALS,4111,PROTECTIVE PACKAGING LIMITED,09/05/2022 00:00,262980,0,PR0413,PROTECTIVE PACKAGING LIMITED,25/04/2022 00:00,29/05/2022 00:00,P02-2023
P&V,SOUTH AREA RANGERS,SUPPLIES AND SERVICES,EQUIPMENT & MATERIALS,4111,P117941-SERVICE-Wood Preserver,16/05/2022 00:00,263025,74.98,SC0057,SCREWFIX DIRECT LTD,25/04/2022 00:00,29/05/2022 00:00,P02-2023
P&V,SOUTH AREA RANGERS,SUPPLIES AND SERVICES,EQUIPMENT & MATERIALS,4111,P117939-SERVICE-Wood Filler,16/05/2022 00:00,263027,7.08,BQ0164,TRADE UK ACCOUNT,25/04/2022 00:00,29/05/2022 00:00,P02-2023
P&V,SOUTH AREA RANGERS,SUPPLIES AND SERVICES,EQUIPMENT & MATERIALS,4111,"P117886-SERVICE-1x Long Litter Picker - E374599, 1800mm",17/05/2022 00:00,263168,66.95,ES0413,ESE DIRECT,25/04/2022 00:00,29/05/2022 00:00,P02-2023
P&V,SOUTH AREA RANGERS,SUPPLIES AND SERVICES,EQUIPMENT & MATERIALS,4111,"P117886-SERVICE-2x Long Litter Pickers - E374598, 1270mm",17/05/2022 00:00,263168,85.9,ES0413,ESE DIRECT,25/04/2022 00:00,29/05/2022 00:00,P02-2023
P&V,SOUTH AREA RANGERS,SUPPLIES AND SERVICES,EQUIPMENT & MATERIALS,4111,P117993-SERVICE-5x Hammerite Smooth Metal Paint Silver 750ml,29/05/2022 00:00,263338,91.62,SC0057,SCREWFIX DIRECT LTD,25/04/2022 00:00,29/05/2022 00:00,P02-2023
P&V,SOUTH AREA RANGERS,SUPPLIES AND SERVICES,EQUIPMENT & MATERIALS,4111,P117993-SERVICE-10x No Nonsense Paint Scuttle 2.5Ltr (60087),29/05/2022 00:00,263338,13.25,SC0057,SCREWFIX DIRECT LTD,25/04/2022 00:00,29/05/2022 00:00,P02-2023
P&V,SOUTH AREA RANGERS,SUPPLIES AND SERVICES,EQUIPMENT & MATERIALS,4111,P117993-SERVICE-3x Sandtex Ultra Smooth Masonry Paint Bitter,29/05/2022 00:00,263338,0.01,SC0057,SCREWFIX DIRECT LTD,25/04/2022 00:00,29/05/2022 00:00,P02-2023
P&V,SOUTH AREA RANGERS,SUPPLIES AND SERVICES,EQUIPMENT & MATERIALS,4111,"P117544-SERVICE-10x Bow Saw 21"" (1001X)",29/05/2022 00:00,263533,-87,SC0057,SCREWFIX DIRECT LTD,25/04/2022 00:00,29/05/2022 00:00,P02-2023
P&V,SOUTH AREA RANGERS,SUPPLIES AND SERVICES,EQUIPMENT & MATERIALS,4111,"P117544-SERVICE-3x Floor Brush Soft Broom Head 11.5"" (11460)",29/05/2022 00:00,263533,-10.6,SC0057,SCREWFIX DIRECT LTD,25/04/2022 00:00,29/05/2022 00:00,P02-2023
P&V,RIVER LEE COUNTRY PARK,SUPPLIES AND SERVICES,EQUIPMENT & MATERIALS,4111,P117992-SERVICE-40x Fast Set Postfix Plastic Bags 20Kg,29/05/2022 00:00,263671,239.6,JE0011,SAINT-GOBAIN BUILDING DISTRIBUTION,25/04/2022 00:00,29/05/2022 00:00,P02-2023
P&V,ALMOST WILD CAMPSITE,SUPPLIES AND SERVICES,EQUIPMENT & MATERIALS,4111,P117722-SERVICE-3 x 2 x2. 1 box 50mm Jib rock & 4 inch screws,04/05/2022 00:00,262507,51.3,LE0012,LEASIDE TIMBER & BUILDERS MERCHANTS LTD,25/04/2022 00:00,29/05/2022 00:00,P02-2023
P&V,ALMOST WILD CAMPSITE,SUPPLIES AND SERVICES,EQUIPMENT & MATERIALS,4111,P117990-SERVICE-Annual Fire Extinguisher Service,24/05/2022 00:00,263512,11.94,TJ0009,T.J.FIRE & SECURITY,25/04/2022 00:00,29/05/2022 00:00,P02-2023
,LV LEISURE CENTRE CAMPSITE,SUPPLIES AND SERVICES,EQUIPMENT & MATERIALS,4111,P117909-SERVICE-maintenance supplies,09/05/2022 00:00,262492,87.95,BQ0164,TRADE UK ACCOUNT,25/04/2022 00:00,29/05/2022 00:00,P02-2023
,LV LEISURE CENTRE CAMPSITE,SUPPLIES AND SERVICES,EQUIPMENT & MATERIALS,4111,P117910-SERVICE-Maintenance supplies,09/05/2022 00:00,262668,64.69,BQ0164,TRADE UK ACCOUNT,25/04/2022 00:00,29/05/2022 00:00,P02-2023
,LV LEISURE CENTRE CAMPSITE,SUPPLIES AND SERVICES,EQUIPMENT & MATERIALS,4111,P117911-SERVICE-Maintenance supplies,09/05/2022 00:00,262708,108.81,BQ0164,TRADE UK ACCOUNT,25/04/2022 00:00,29/05/2022 00:00,P02-2023
,LV LEISURE CENTRE CAMPSITE,SUPPLIES AND SERVICES,EQUIPMENT & MATERIALS,4111,P117911-SERVICE-Maintenance supplies,09/05/2022 00:00,262709,-64.69,BQ0164,TRADE UK ACCOUNT,25/04/2022 00:00,29/05/2022 00:00,P02-2023
,LV LEISURE CENTRE CAMPSITE,SUPPLIES AND SERVICES,EQUIPMENT & MATERIALS,4111,P117911-SERVICE-Maintenance supplies,09/05/2022 00:00,262972,64.69,BQ0164,TRADE UK ACCOUNT,25/04/2022 00:00,29/05/2022 00:00,P02-2023
,LV LEISURE CENTRE CAMPSITE,SUPPLIES AND SERVICES,EQUIPMENT & MATERIALS,4111,P118000-SERVICE-Maintenance supplies,18/05/2022 00:00,263028,78.8,BQ0164,TRADE UK ACCOUNT,25/04/2022 00:00,29/05/2022 00:00,P02-2023
,LV LEISURE CENTRE CAMPSITE,SUPPLIES AND SERVICES,EQUIPMENT & MATERIALS,4111,P118001-SERVICE-Maintenance supplies,18/05/2022 00:00,263029,5.66,BQ0164,TRADE UK ACCOUNT,25/04/2022 00:00,29/05/2022 00:00,P02-2023
,LV LEISURE CENTRE CAMPSITE,SUPPLIES AND SERVICES,EQUIPMENT & MATERIALS,4111,P118108-SERVICE-Equipment and materials,24/05/2022 00:00,263139,170.58,BQ0164,TRADE UK ACCOUNT,25/04/2022 00:00,29/05/2022 00:00,P02-2023
,LV LEISURE CENTRE CAMPSITE,SUPPLIES AND SERVICES,EQUIPMENT & MATERIALS,4111,P118115-SERVICE-Handles,24/05/2022 00:00,263164,19.16,SC0057,SCREWFIX DIRECT LTD,25/04/2022 00:00,29/05/2022 00:00,P02-2023
,LV LEISURE CENTRE CAMPSITE,SUPPLIES AND SERVICES,EQUIPMENT & MATERIALS,4111,P118110-SERVICE-Equipment and materials,24/05/2022 00:00,263165,12.5,BQ0164,TRADE UK ACCOUNT,25/04/2022 00:00,29/05/2022 00:00,P02-2023
,LV LEISURE CENTRE CAMPSITE,SUPPLIES AND SERVICES,EQUIPMENT & MATERIALS,4111,P118115-SERVICE-Handles,24/05/2022 00:00,263258,-19.16,SC0057,SCREWFIX DIRECT LTD,25/04/2022 00:00,29/05/2022 00:00,P02-2023
,LV LEISURE CENTRE CAMPSITE,SUPPLIES AND SERVICES,EQUIPMENT & MATERIALS,4111,P118111-SERVICE-Equipment and materials,24/05/2022 00:00,263261,45.6,BQ0164,TRADE UK ACCOUNT,25/04/2022 00:00,29/05/2022 00:00,P02-2023
,LV LEISURE CENTRE CAMPSITE,SUPPLIES AND SERVICES,EQUIPMENT & MATERIALS,4111,P118112-SERVICE-Equipment and materials,24/05/2022 00:00,263262,90.2,BQ0164,TRADE UK ACCOUNT,25/04/2022 00:00,29/05/2022 00:00,P02-2023
,LV LEISURE CENTRE CAMPSITE,SUPPLIES AND SERVICES,EQUIPMENT & MATERIALS,4111,P118108-SERVICE-Equipment and materials,24/05/2022 00:00,263263,-80,BQ0164,TRADE UK ACCOUNT,25/04/2022 00:00,29/05/2022 00:00,P02-2023
,LV LEISURE CENTRE CAMPSITE,SUPPLIES AND SERVICES,EQUIPMENT & MATERIALS,4111,P118118-SERVICE-Equipment and materials,24/05/2022 00:00,263468,32.9,SC0057,SCREWFIX DIRECT LTD,25/04/2022 00:00,29/05/2022 00:00,P02-2023
,LV LEISURE CENTRE CAMPSITE,SUPPLIES AND SERVICES,EQUIPMENT & MATERIALS,4111,P118118-SERVICE-Equipment and materials,24/05/2022 00:00,263469,-9.99,SC0057,SCREWFIX DIRECT LTD,25/04/2022 00:00,29/05/2022 00:00,P02-2023
,LV LEISURE CENTRE CAMPSITE,SUPPLIES AND SERVICES,EQUIPMENT & MATERIALS,4111,P118120-SERVICE-Eqi[pment and materials,24/05/2022 00:00,263470,102,BQ0164,TRADE UK ACCOUNT,25/04/2022 00:00,29/05/2022 00:00,P02-2023
,LV LEISURE CENTRE CAMPSITE,SUPPLIES AND SERVICES,EQUIPMENT & MATERIALS,4111,P118121-SERVICE-Equipment and materials,24/05/2022 00:00,263471,18.33,BQ0164,TRADE UK ACCOUNT,25/04/2022 00:00,29/05/2022 00:00,P02-2023
,LV LEISURE CENTRE GOLF COURSE,SUPPLIES AND SERVICES,EQUIPMENT & MATERIALS,4111,P117624-SERVICE-Purchase of quad bike,09/05/2022 00:00,262431,1800,CA0698,CAMBRIDGE GOLF COMPANY,25/04/2022 00:00,29/05/2022 00:00,P02-2023
,LEE VALLEY WHITE WATER CENTRE,SUPPLIES AND SERVICES,EQUIPMENT & MATERIALS,4111,P116161-SERVICE-20 x Rapidblocs,12/05/2022 00:00,263019,5306,RA0168,RAPID BLOCS LIMITED,25/04/2022 00:00,29/05/2022 00:00,P02-2023
CEO,RESIDENTIAL ACCOMMODATION,SUPPLIES AND SERVICES,EQUIPMENT MAINTENANCE,4112,P117810-SERVICE-Service Contract - Holyfield,04/05/2022 00:00,262150,451.53,KI0080,KINGSPAN WATER & ENERGY LIMITED,25/04/2022 00:00,29/05/2022 00:00,P02-2023
CEO,RESIDENTIAL ACCOMMODATION,SUPPLIES AND SERVICES,EQUIPMENT MAINTENANCE,4112,P117811-SERVICE-Service Contract - Aquaside,04/05/2022 00:00,262151,378.65,KI0080,KINGSPAN WATER & ENERGY LIMITED,25/04/2022 00:00,29/05/2022 00:00,P02-2023
CEO,RESIDENTIAL ACCOMMODATION,SUPPLIES AND SERVICES,EQUIPMENT MAINTENANCE,4112,P117812-SERVICE-Service Contract - Roselea Bungalow,04/05/2022 00:00,262152,312.6,KI0080,KINGSPAN WATER & ENERGY LIMITED,25/04/2022 00:00,29/05/2022 00:00,P02-2023
,LEE VALLEY CAMPSITE,SUPPLIES AND SERVICES,EQUIPMENT MAINTENANCE,4112,P117804-SERVICE-HH14 Rodent damage to cables- rewired,28/04/2022 00:00,262403,100,BR0018,BRADSHAW ELECTRICAL LIMITED,25/04/2022 00:00,29/05/2022 00:00,P02-2023
,LEE VALLEY CAMPSITE,SUPPLIES AND SERVICES,EQUIPMENT MAINTENANCE,4112,P117804-SERVICE-Laundry cupboard,28/04/2022 00:00,262404,310.1,BR0018,BRADSHAW ELECTRICAL LIMITED,25/04/2022 00:00,29/05/2022 00:00,P02-2023
,LEE VALLEY CARAVAN PARK,SUPPLIES AND SERVICES,EQUIPMENT MAINTENANCE,4112,P117765-SERVICE-new oven & fitted in The Country,28/04/2022 00:00,262405,340,BR0018,BRADSHAW ELECTRICAL LIMITED,25/04/2022 00:00,29/05/2022 00:00,P02-2023
,LEE VALLEY CARAVAN PARK,SUPPLIES AND SERVICES,EQUIPMENT MAINTENANCE,4112,P117766-SERVICE-Power to BC4,28/04/2022 00:00,262406,60,BR0018,BRADSHAW ELECTRICAL LIMITED,25/04/2022 00:00,29/05/2022 00:00,P02-2023
,LEE VALLEY CARAVAN PARK,SUPPLIES AND SERVICES,EQUIPMENT MAINTENANCE,4112,P117790-SERVICE-Fix 2 static lamp posts,28/04/2022 00:00,262407,185,BR0018,BRADSHAW ELECTRICAL LIMITED,25/04/2022 00:00,29/05/2022 00:00,P02-2023
,LEE VALLEY CARAVAN PARK,SUPPLIES AND SERVICES,EQUIPMENT MAINTENANCE,4112,P117503-SERVICE-Wood for Wigwams,10/05/2022 00:00,262506,51.6,LE0012,LEASIDE TIMBER & BUILDERS MERCHANTS LTD,25/04/2022 00:00,29/05/2022 00:00,P02-2023
,LEE VALLEY CARAVAN PARK,SUPPLIES AND SERVICES,EQUIPMENT MAINTENANCE,4112,"P117503-SERVICE-Post mix,18mm MDF, Wood for front entrance",10/05/2022 00:00,262506,216.35,LE0012,LEASIDE TIMBER & BUILDERS MERCHANTS LTD,25/04/2022 00:00,29/05/2022 00:00,P02-2023
,LEE VALLEY CARAVAN PARK,SUPPLIES AND SERVICES,EQUIPMENT MAINTENANCE,4112,P117787-SERVICE-Service for Kubota,09/05/2022 00:00,262761,228,GE0440,GTEC'S,25/04/2022 00:00,29/05/2022 00:00,P02-2023
,LEE VALLEY CARAVAN PARK,SUPPLIES AND SERVICES,EQUIPMENT MAINTENANCE,4112,P117948-SERVICE-Call out for dryer,16/05/2022 00:00,262928,155,AL0434,ALLSOP & FRANCIS,25/04/2022 00:00,29/05/2022 00:00,P02-2023
,LEE VALLEY CARAVAN PARK,SUPPLIES AND SERVICES,EQUIPMENT MAINTENANCE,4112,P117988-SERVICE-Secure TV and a new remote,29/05/2022 00:00,263046,138.49,AS0343,ASCENT AERIALS,25/04/2022 00:00,29/05/2022 00:00,P02-2023
,LEE VALLEY CARAVAN PARK,SUPPLIES AND SERVICES,EQUIPMENT MAINTENANCE,4112,P118157-SERVICE-Electric pod bulbs,29/05/2022 00:00,263259,24.95,SC0057,SCREWFIX DIRECT LTD,25/04/2022 00:00,29/05/2022 00:00,P02-2023
,LEE VALLEY CARAVAN PARK,SUPPLIES AND SERVICES,EQUIPMENT MAINTENANCE,4112,P118158-SERVICE-Cleat hooks,29/05/2022 00:00,263260,15.18,SC0057,SCREWFIX DIRECT LTD,25/04/2022 00:00,29/05/2022 00:00,P02-2023
P&V,MYDDELTON HOUSE GARDENS,SUPPLIES AND SERVICES,EQUIPMENT MAINTENANCE,4112,P116902-SERVICE-garden bib tap repair feb 22,04/05/2022 00:00,259908,70,GI0137,R & P GIBBS LIMITED,25/04/2022 00:00,29/05/2022 00:00,P02-2023
P&V,RIVER LEE COUNTRY PARK,SUPPLIES AND SERVICES,EQUIPMENT MAINTENANCE,4112,P118006-SERVICE-Repair Brushcutter and Hedge Trimmer,16/05/2022 00:00,263149,81,NA0168,NAZEING GARDEN MACHINERY,25/04/2022 00:00,29/05/2022 00:00,P02-2023
P&V,ALMOST WILD CAMPSITE,SUPPLIES AND SERVICES,EQUIPMENT MAINTENANCE,4112,P117829-SERVICE-Repair Kubota @ AMW,10/05/2022 00:00,262981,128,GE0440,GTEC'S,25/04/2022 00:00,29/05/2022 00:00,P02-2023
P&V,ALMOST WILD CAMPSITE,SUPPLIES AND SERVICES,EQUIPMENT MAINTENANCE,4112,P117564-SERVICE-Move and repair Safari Tent AMW,29/05/2022 00:00,263422,1228.53,CL0631,CLEAR SKY GLAMPING,25/04/2022 00:00,29/05/2022 00:00,P02-2023
P&V,ALMOST WILD CAMPSITE,SUPPLIES AND SERVICES,EQUIPMENT MAINTENANCE,4112,"P117564-SERVICE-Move, supply, replace Safari Tent AMW",29/05/2022 00:00,263422,1228.54,CL0631,CLEAR SKY GLAMPING,25/04/2022 00:00,29/05/2022 00:00,P02-2023
,LV LEISURE CENTRE CAMPSITE,SUPPLIES AND SERVICES,EQUIPMENT MAINTENANCE,4112,P117463-SERVICE-Compactor maintenance,24/05/2022 00:00,263345,241.46,PD0171,PDE WASTE TECHNOLOGIES,25/04/2022 00:00,29/05/2022 00:00,P02-2023
R&B,INFORMATION TECHNOLOGY,SUPPLIES AND SERVICES,IT CORE SYSTEMS,4113,P117835-SERVICE-Monthly Fees 15 Apr 2022,09/05/2022 00:00,262355,351,CO0440,VERIFONE SERVICES UK & IRELAND LTD,25/04/2022 00:00,29/05/2022 00:00,P02-2023
R&B,INFORMATION TECHNOLOGY,SUPPLIES AND SERVICES,IT CORE SYSTEMS,4113,P117785-SERVICE-CIPHR Payroll monthly Subs,04/05/2022 00:00,262402,1084.88,CI0721,CIPHR,25/04/2022 00:00,29/05/2022 00:00,P02-2023
R&B,INFORMATION TECHNOLOGY,SUPPLIES AND SERVICES,IT CORE SYSTEMS,4113,P118093-SERVICE-Monthly Fees 15 May 2022,24/05/2022 00:00,263339,351,CO0440,VERIFONE SERVICES UK & IRELAND LTD,25/04/2022 00:00,29/05/2022 00:00,P02-2023
R&B,INFORMATION TECHNOLOGY,SUPPLIES AND SERVICES,IT CORE SYSTEMS,4113,P118142-SERVICE-P11D Payroll Services,29/05/2022 00:00,263522,651,CI0721,CIPHR,25/04/2022 00:00,29/05/2022 00:00,P02-2023
R&B,INFORMATION TECHNOLOGY,SUPPLIES AND SERVICES,IT CORE SYSTEMS,4113,P118136-SERVICE-CIPHR Payroll June 2022,29/05/2022 00:00,263523,542.44,CI0721,CIPHR,25/04/2022 00:00,29/05/2022 00:00,P02-2023
,LSC INFORMATION TECHNOLOGY,SUPPLIES AND SERVICES,IT CORE SYSTEMS,4113,P117387-SERVICE-Claritylive for Lesiure 01 Apr - 31 July 22,09/05/2022 00:00,261994,10287.5,CL0377,OMNICO GROUP UK LIMITED,25/04/2022 00:00,29/05/2022 00:00,P02-2023
,LSC INFORMATION TECHNOLOGY,SUPPLIES AND SERVICES,IT CORE SYSTEMS,4113,P117387-SERVICE-Claritylive for Lesiure 01 Apr - 31 July 22,09/05/2022 00:00,262481,23303.78,CL0377,OMNICO GROUP UK LIMITED,25/04/2022 00:00,29/05/2022 00:00,P02-2023
R&B,INFORMATION TECHNOLOGY,SUPPLIES AND SERVICES,IT NETWORK & TELECOMS COSTS,4114,P117871-SERVICE-Monthly SIP Apr 22-Mar 23,09/05/2022 00:00,262712,145.92,FR0131,VOICEFLEX LTD,25/04/2022 00:00,29/05/2022 00:00,P02-2023
R&B,INFORMATION TECHNOLOGY,SUPPLIES AND SERVICES,IT NETWORK & TELECOMS COSTS,4114,P117918-SERVICE-MPLS for all sites May 2022,09/05/2022 00:00,262927,9605.86,PP0200,PPSNET LIMITED,25/04/2022 00:00,29/05/2022 00:00,P02-2023
,LEE VALLEY CARAVAN PARK,SUPPLIES AND SERVICES,IT NETWORK & TELECOMS COSTS,4114,MY O2,04/05/2022 00:00,262494,60.3,O20134,MY O2,25/04/2022 00:00,29/05/2022 00:00,P02-2023
,LEE VALLEY CARAVAN PARK,SUPPLIES AND SERVICES,IT NETWORK & TELECOMS COSTS,4114,MY O2,29/05/2022 00:00,263692,60.3,O20134,MY O2,25/04/2022 00:00,29/05/2022 00:00,P02-2023
P&V,MYDDELTON HOUSE,SUPPLIES AND SERVICES,IT HARDWARE & SOFTWARE COSTS,4116,ZEN INTERNET LTD,04/05/2022 00:00,262490,29.5,ZE0007,ZEN INTERNET LTD,25/04/2022 00:00,29/05/2022 00:00,P02-2023
P&V,MYDDELTON HOUSE,SUPPLIES AND SERVICES,IT HARDWARE & SOFTWARE COSTS,4116,ZEN INTERNET LTD,29/05/2022 00:00,263693,29.5,ZE0007,ZEN INTERNET LTD,25/04/2022 00:00,29/05/2022 00:00,P02-2023
R&B,INFORMATION TECHNOLOGY,SUPPLIES AND SERVICES,IT HARDWARE & SOFTWARE COSTS,4116,P117936-SERVICE-Delivery Charge,17/05/2022 00:00,262997,12,AL0491,ALTRON COMMUNICATIONS EQUIPMENT LTD,25/04/2022 00:00,29/05/2022 00:00,P02-2023
R&B,INFORMATION TECHNOLOGY,SUPPLIES AND SERVICES,IT HARDWARE & SOFTWARE COSTS,4116,P117936-SERVICE-Altron T-Bar Key x 2 @ 10.00,17/05/2022 00:00,262997,20,AL0491,ALTRON COMMUNICATIONS EQUIPMENT LTD,25/04/2022 00:00,29/05/2022 00:00,P02-2023
R&B,INFORMATION TECHNOLOGY,SUPPLIES AND SERVICES,IT HARDWARE & SOFTWARE COSTS,4116,P117129-SERVICE-Sennheiser SC165 x 1,10/05/2022 00:00,263010,30,DU0300,DUPLEX CORPORATE COMMUNCIATIONS LTD,25/04/2022 00:00,29/05/2022 00:00,P02-2023
R&B,INFORMATION TECHNOLOGY,SUPPLIES AND SERVICES,IT HARDWARE & SOFTWARE COSTS,4116,P117129-SERVICE-Delivery,10/05/2022 00:00,263010,6.5,DU0300,DUPLEX CORPORATE COMMUNCIATIONS LTD,25/04/2022 00:00,29/05/2022 00:00,P02-2023
R&B,INFORMATION TECHNOLOGY,SUPPLIES AND SERVICES,IT HARDWARE & SOFTWARE COSTS,4116,P117892-SERVICE-iPhone 11 x 1,17/05/2022 00:00,263151,406,VO0010,VODAFONE  LIMITED (CORPORATE),25/04/2022 00:00,29/05/2022 00:00,P02-2023
R&B,INFORMATION TECHNOLOGY,SUPPLIES AND SERVICES,IT HARDWARE & SOFTWARE COSTS,4116,P117892-SERVICE-iPhone SE x 1,17/05/2022 00:00,263151,349,VO0010,VODAFONE  LIMITED (CORPORATE),25/04/2022 00:00,29/05/2022 00:00,P02-2023
R&B,INFORMATION TECHNOLOGY,SUPPLIES AND SERVICES,IT HARDWARE & SOFTWARE COSTS,4116,ALTRON COMMUNICATIONS EQUIPMEN,29/05/2022 00:00,263637,0,AL0491,ALTRON COMMUNICATIONS EQUIPMENT LTD,25/04/2022 00:00,29/05/2022 00:00,P02-2023
,LEE VALLEY MARINA SPRINGFIELD,SUPPLIES AND SERVICES,IT HARDWARE & SOFTWARE COSTS,4116,P118045-SERVICE-Annual Services Maintenance Fees - April 22,18/05/2022 00:00,262386,139.26,WI0209,WI FI SPARK LIMITED,25/04/2022 00:00,29/05/2022 00:00,P02-2023
,LEE VALLEY MARINA SPRINGFIELD,SUPPLIES AND SERVICES,IT HARDWARE & SOFTWARE COSTS,4116,ZEN INTERNET LTD,17/05/2022 00:00,263138,38,ZE0007,ZEN INTERNET LTD,25/04/2022 00:00,29/05/2022 00:00,P02-2023
,LEE VALLEY MARINA STANSTEAD,SUPPLIES AND SERVICES,IT HARDWARE & SOFTWARE COSTS,4116,P118045-SERVICE-Annual Services Maintenance Fees - April 22,18/05/2022 00:00,262386,218.36,WI0209,WI FI SPARK LIMITED,25/04/2022 00:00,29/05/2022 00:00,P02-2023
,LEE VALLEY MARINA STANSTEAD,SUPPLIES AND SERVICES,IT HARDWARE & SOFTWARE COSTS,4116,ZEN INTERNET LTD,17/05/2022 00:00,263166,31.32,ZE0007,ZEN INTERNET LTD,25/04/2022 00:00,29/05/2022 00:00,P02-2023
,LEE VALLEY CAMPSITE,SUPPLIES AND SERVICES,IT HARDWARE & SOFTWARE COSTS,4116,P118045-SERVICE-Annual Service Maintenance Fee - April 22,18/05/2022 00:00,262386,218.92,WI0209,WI FI SPARK LIMITED,25/04/2022 00:00,29/05/2022 00:00,P02-2023
,LEE VALLEY CARAVAN PARK,SUPPLIES AND SERVICES,IT HARDWARE & SOFTWARE COSTS,4116,P118045-SERVICE-Annual Services Maintenance Fee - April 22,18/05/2022 00:00,262386,310.65,WI0209,WI FI SPARK LIMITED,25/04/2022 00:00,29/05/2022 00:00,P02-2023
,LEE VALLEY CARAVAN PARK,SUPPLIES AND SERVICES,IT HARDWARE & SOFTWARE COSTS,4116,P117917-SERVICE-Fibre connection May  2022,09/05/2022 00:00,262926,835,PP0200,PPSNET LIMITED,25/04/2022 00:00,29/05/2022 00:00,P02-2023
P&V,MYDDELTON HOUSE GARDENS,SUPPLIES AND SERVICES,IT HARDWARE & SOFTWARE COSTS,4116,P117823-SERVICE-annusal subscription 22,09/05/2022 00:00,262420,345,CO0728,COMPOSITAE AS,25/04/2022 00:00,29/05/2022 00:00,P02-2023
,LV LEISURE CENTRE CAMPSITE,SUPPLIES AND SERVICES,IT HARDWARE & SOFTWARE COSTS,4116,P118045-SERVICE-Annual Services Maintenance Fee - April 22,18/05/2022 00:00,262386,93.1,WI0209,WI FI SPARK LIMITED,25/04/2022 00:00,29/05/2022 00:00,P02-2023
R&B,INFORMATION TECHNOLOGY,SUPPLIES AND SERVICES,IT MAINTENANCE AGREEMENTS,4119,P117748-SERVICE-Data backup & Recovery,04/05/2022 00:00,262354,4680,IQ0022,IQUAL,25/04/2022 00:00,29/05/2022 00:00,P02-2023
,LEE VALLEY MARINA SPRINGFIELD,SUPPLIES AND SERVICES,IT MAINTENANCE AGREEMENTS,4119,P117894-SERVICE-Support & Data April 22,09/05/2022 00:00,262871,75.19,CY0653,CYBERTILL,25/04/2022 00:00,29/05/2022 00:00,P02-2023
,LEE VALLEY MARINA STANSTEAD,SUPPLIES AND SERVICES,IT MAINTENANCE AGREEMENTS,4119,P117346-SERVICE-New 4m column install - fibre works,09/05/2022 00:00,262703,1080,DE0318,DESIGN AND MANAGEMENT SYSTEMS LTD,25/04/2022 00:00,29/05/2022 00:00,P02-2023
,LEE VALLEY MARINA STANSTEAD,SUPPLIES AND SERVICES,IT MAINTENANCE AGREEMENTS,4119,P117894-SERVICE-Support & Data April 22,09/05/2022 00:00,262871,75.2,CY0653,CYBERTILL,25/04/2022 00:00,29/05/2022 00:00,P02-2023
,LEE VALLEY CAMPSITE,SUPPLIES AND SERVICES,IT MAINTENANCE AGREEMENTS,4119,P117645-SERVICE-Monthly Subscription May 22 - Oct 22,17/05/2022 00:00,263043,145.5,NE0218,NETGUIDES LIMITED,25/04/2022 00:00,29/05/2022 00:00,P02-2023
,LEE VALLEY CARAVAN PARK,SUPPLIES AND SERVICES,IT MAINTENANCE AGREEMENTS,4119,P117645-SERVICE-Monthly Subscriptions May 22 - Oct 22 - Dobbs,17/05/2022 00:00,263043,145.5,NE0218,NETGUIDES LIMITED,25/04/2022 00:00,29/05/2022 00:00,P02-2023
P&V,ALMOST WILD CAMPSITE,SUPPLIES AND SERVICES,IT MAINTENANCE AGREEMENTS,4119,P117645-SERVICE-Monthly Subscription May 22 - Oct 22,17/05/2022 00:00,263043,145.5,NE0218,NETGUIDES LIMITED,25/04/2022 00:00,29/05/2022 00:00,P02-2023
,LV LEISURE CENTRE CAMPSITE,SUPPLIES AND SERVICES,IT MAINTENANCE AGREEMENTS,4119,P117645-SERVICE-Monthly Subscription May 22 - Oct 22 - Edmont,17/05/2022 00:00,263043,145.5,NE0218,NETGUIDES LIMITED,25/04/2022 00:00,29/05/2022 00:00,P02-2023
,LV LEISURE CENTRE GOLF COURSE,SUPPLIES AND SERVICES,IT MAINTENANCE AGREEMENTS,4119,P117865-SERVICE-Digitickets Services April 2022,09/05/2022 00:00,262723,583.6,DI0304,DIGITAL TICKETING SYSTEMS LTD (DIGITICKETS),25/04/2022 00:00,29/05/2022 00:00,P02-2023
P&V,LEE VALLEY FARM HOLYFIELDHALL,EXPENDITURE FROM RENEWALS FUND,EXPENDITURE FROM RENEWALS FUND,4121,P117803-SERVICE-Kuhn Power Harrow & Sulky Drill Part Exchange,09/05/2022 00:00,262397,4200,OA0130,OAKFIELDS AGRICULTURE,25/04/2022 00:00,29/05/2022 00:00,P02-2023
,LEE VALLEY VELOPARK,EXPENDITURE FROM RENEWALS FUND,EXPENDITURE FROM RENEWALS FUND,4121,P114304-SERVICE-Velo- Rpl UPS Batteries,29/05/2022 00:00,260208,45609.17,BP0447,BPC ENERGY LIMITED,25/04/2022 00:00,29/05/2022 00:00,P02-2023
,LEE VALLEY WHITE WATER CENTRE,EXPENDITURE FROM RENEWALS FUND,EXPENDITURE FROM RENEWALS FUND,4121,P116808-SERVICE-1 x AG-P-WOW Aquaglide - Walk on Water,23/05/2022 00:00,263327,1634.21,WA0310,WATERSPORTS WORLD UK,25/04/2022 00:00,29/05/2022 00:00,P02-2023
,LEE VALLEY WHITE WATER CENTRE,EXPENDITURE FROM RENEWALS FUND,EXPENDITURE FROM RENEWALS FUND,4121,P116808-SERVICE-1 x AG-P-PARK-20 Aquaglide - Parkway 20,23/05/2022 00:00,263327,2279.04,WA0310,WATERSPORTS WORLD UK,25/04/2022 00:00,29/05/2022 00:00,P02-2023
,LEE VALLEY WHITE WATER CENTRE,EXPENDITURE FROM RENEWALS FUND,EXPENDITURE FROM RENEWALS FUND,4121,P116808-SERVICE-10 x AG-S-STRIP Aquaglide Spares park connect,23/05/2022 00:00,263327,161.5,WA0310,WATERSPORTS WORLD UK,25/04/2022 00:00,29/05/2022 00:00,P02-2023
,LEE VALLEY WHITE WATER CENTRE,EXPENDITURE FROM RENEWALS FUND,EXPENDITURE FROM RENEWALS FUND,4121,P116808-SERVICE-1 x AG-PSIERRA Aquaglide - Sierra 10,23/05/2022 00:00,263327,1498.2,WA0310,WATERSPORTS WORLD UK,25/04/2022 00:00,29/05/2022 00:00,P02-2023
,LEE VALLEY WHITE WATER CENTRE,EXPENDITURE FROM RENEWALS FUND,EXPENDITURE FROM RENEWALS FUND,4121,P116808-SERVICE-2 x AG-PTANGO -Aquaglide - Tango,23/05/2022 00:00,263327,1361.1,WA0310,WATERSPORTS WORLD UK,25/04/2022 00:00,29/05/2022 00:00,P02-2023
,LEE VALLEY WHITE WATER CENTRE,EXPENDITURE FROM RENEWALS FUND,EXPENDITURE FROM RENEWALS FUND,4121,P116808-SERVICE-1 x AG-PIBEAM Aquaglide - I-Beam,23/05/2022 00:00,263327,2496.36,WA0310,WATERSPORTS WORLD UK,25/04/2022 00:00,29/05/2022 00:00,P02-2023
,LEE VALLEY WHITE WATER CENTRE,EXPENDITURE FROM RENEWALS FUND,EXPENDITURE FROM RENEWALS FUND,4121,P116808-SERVICE-1 x AG-P-BLOCK-20 Aquaglide - Blockade 20,23/05/2022 00:00,263327,2511.73,WA0310,WATERSPORTS WORLD UK,25/04/2022 00:00,29/05/2022 00:00,P02-2023
,LV LEISURE CENTRE GOLF COURSE,SUPPLIES AND SERVICES,MATERIALS (LOCKS),4124,P117275-SERVICE-2x Complete ASSA Padlocks Long Shackle - C114,09/05/2022 00:00,262729,176.94,LO0020,LOCK AND KEY SERVICES,25/04/2022 00:00,29/05/2022 00:00,P02-2023
,LV LEISURE CENTRE GOLF COURSE,SUPPLIES AND SERVICES,MATERIALS (LOCKS),4124,P117275-SERVICE-Delivery,09/05/2022 00:00,262729,10,LO0020,LOCK AND KEY SERVICES,25/04/2022 00:00,29/05/2022 00:00,P02-2023
,LV LEISURE CENTRE GOLF COURSE,SUPPLIES AND SERVICES,MATERIALS (LOCKS),4124,P117275-SERVICE-4x ASSA Keys - C114,09/05/2022 00:00,262729,53.54,LO0020,LOCK AND KEY SERVICES,25/04/2022 00:00,29/05/2022 00:00,P02-2023
,LEE VALLEY CARAVAN PARK,SUPPLIES AND SERVICES,MATERIALS (GROUNDS MAINT),4125,SCREWFIX DIRECT LTD,09/05/2022 00:00,262491,-55.82,SC0057,SCREWFIX DIRECT LTD,25/04/2022 00:00,29/05/2022 00:00,P02-2023
,LEE VALLEY CARAVAN PARK,SUPPLIES AND SERVICES,MATERIALS (GROUNDS MAINT),4125,SCREWFIX DIRECT LTD,09/05/2022 00:00,262491,39.99,SC0057,SCREWFIX DIRECT LTD,25/04/2022 00:00,29/05/2022 00:00,P02-2023
,LEE VALLEY CARAVAN PARK,SUPPLIES AND SERVICES,MATERIALS (GROUNDS MAINT),4125,SCREWFIX DIRECT LTD,09/05/2022 00:00,262491,15.83,SC0057,SCREWFIX DIRECT LTD,25/04/2022 00:00,29/05/2022 00:00,P02-2023
,LEE VALLEY CARAVAN PARK,SUPPLIES AND SERVICES,MATERIALS (GROUNDS MAINT),4125,P117897-SERVICE-Paint and boots,09/05/2022 00:00,262491,55.82,SC0057,SCREWFIX DIRECT LTD,25/04/2022 00:00,29/05/2022 00:00,P02-2023
,LEE VALLEY CARAVAN PARK,SUPPLIES AND SERVICES,MATERIALS (GROUNDS MAINT),4125,P117813-SERVICE-10m3 top soil,09/05/2022 00:00,262633,557.25,TH0051,THOMPSONS OF CREWS HILL LTD,25/04/2022 00:00,29/05/2022 00:00,P02-2023
,LEE VALLEY CARAVAN PARK,SUPPLIES AND SERVICES,MATERIALS (GROUNDS MAINT),4125,P117901-SERVICE-Ground maintenance materials,09/05/2022 00:00,262667,99.37,SC0057,SCREWFIX DIRECT LTD,25/04/2022 00:00,29/05/2022 00:00,P02-2023
,LEE VALLEY CARAVAN PARK,SUPPLIES AND SERVICES,MATERIALS (GROUNDS MAINT),4125,P117901-SERVICE-Ground maintenance materials,09/05/2022 00:00,262705,-37.49,SC0057,SCREWFIX DIRECT LTD,25/04/2022 00:00,29/05/2022 00:00,P02-2023
,LEE VALLEY CARAVAN PARK,SUPPLIES AND SERVICES,MATERIALS (GROUNDS MAINT),4125,P117903-SERVICE-Screws,09/05/2022 00:00,262706,8.82,SC0057,SCREWFIX DIRECT LTD,25/04/2022 00:00,29/05/2022 00:00,P02-2023
,LEE VALLEY CARAVAN PARK,SUPPLIES AND SERVICES,MATERIALS (GROUNDS MAINT),4125,P117947-SERVICE-Fence paint,16/05/2022 00:00,262925,116.66,SC0057,SCREWFIX DIRECT LTD,25/04/2022 00:00,29/05/2022 00:00,P02-2023
,LEE VALLEY CARAVAN PARK,SUPPLIES AND SERVICES,MATERIALS (GROUNDS MAINT),4125,P117949-SERVICE-Fence paint,16/05/2022 00:00,262994,46.67,SC0057,SCREWFIX DIRECT LTD,25/04/2022 00:00,29/05/2022 00:00,P02-2023
P&V,MYDDELTON HOUSE GARDENS,SUPPLIES AND SERVICES,MATERIALS (GROUNDS MAINT),4125,P117825-SERVICE-secateurs order,09/05/2022 00:00,260942,104.98,CL0093,CLOCKHOUSE NURSERY,25/04/2022 00:00,29/05/2022 00:00,P02-2023
,LV LEISURE CENTRE CAMPSITE,SUPPLIES AND SERVICES,MATERIALS (GROUNDS MAINT),4125,P118005-SERVICE-Refuse signs,24/05/2022 00:00,263326,215,SL0528,SLAM SIGNS LTD,25/04/2022 00:00,29/05/2022 00:00,P02-2023
P&V,MYDDELTON HOUSE GARDENS,SUPPLIES AND SERVICES,MATERIALS (PLANTS & SHRUBS),4126,P117826-SERVICE-tree order march 22,09/05/2022 00:00,261391,302.43,CL0093,CLOCKHOUSE NURSERY,25/04/2022 00:00,29/05/2022 00:00,P02-2023
P&V,MYDDELTON HOUSE GARDENS,SUPPLIES AND SERVICES,MATERIALS (PLANTS & SHRUBS),4126,P117484-SERVICE-garden plants order april 22,27/04/2022 00:00,262502,-613.64,HO0428,HOWARD NURSERIES LTD,25/04/2022 00:00,29/05/2022 00:00,P02-2023
P&V,MYDDELTON HOUSE GARDENS,SUPPLIES AND SERVICES,MATERIALS (PLANTS & SHRUBS),4126,P117484-SERVICE-garden plants order april 22,27/04/2022 00:00,262503,626.7,HO0428,HOWARD NURSERIES LTD,25/04/2022 00:00,29/05/2022 00:00,P02-2023
P&V,MYDDELTON HOUSE GARDENS,SUPPLIES AND SERVICES,MATERIALS (PLANTS & SHRUBS),4126,P117697-SERVICE-gardens order april 22,29/05/2022 00:00,263282,75,KI0171,LUCIA MARIA PEREIRA KIZIL,25/04/2022 00:00,29/05/2022 00:00,P02-2023
,LEE VALLEY MARINA SPRINGFIELD,SUPPLIES AND SERVICES,MATERIALS (TOOLS & PLANT),4127,P117845-SERVICE-To supply items on quotation No 255127,10/05/2022 00:00,262967,744.71,EL0281,ELTHAM WELDING SUPPLIES LIMITED,25/04/2022 00:00,29/05/2022 00:00,P02-2023
,SPRINGFIELD RECHARGEABLE WORKS,SUPPLIES AND SERVICES,MATERIALS (ENG OTHER),4130,P117561-SERVICE-To Provide Insurance @ 15%,09/05/2022 00:00,262939,210,BA0339,BALDWINS CRANE HIRE LTD,25/04/2022 00:00,29/05/2022 00:00,P02-2023
,SPRINGFIELD RECHARGEABLE WORKS,SUPPLIES AND SERVICES,MATERIALS (ENG OTHER),4130,P117561-SERVICE-To Hire 110 Ton Crane on Tuesday 26/04/2022,09/05/2022 00:00,262939,1400,BA0339,BALDWINS CRANE HIRE LTD,25/04/2022 00:00,29/05/2022 00:00,P02-2023
,STANSTEAD RECHARGEABLE WORKS,SUPPLIES AND SERVICES,MATERIALS (ENG OTHER),4130,P117743-SERVICE-parts for workshop,23/05/2022 00:00,262472,75.8,EN0309,PRH ENGINEERING LIMITED,25/04/2022 00:00,29/05/2022 00:00,P02-2023
,STANSTEAD RECHARGEABLE WORKS,SUPPLIES AND SERVICES,MATERIALS (ENG OTHER),4130,P117743-SERVICE-extend to meet invoice,23/05/2022 00:00,262472,0.02,EN0309,PRH ENGINEERING LIMITED,25/04/2022 00:00,29/05/2022 00:00,P02-2023
P&V,LEE VALLEY FARM HOLYFIELDHALL,SUPPLIES AND SERVICES,FEED,4133,P117817-SERVICE-Pioneer,10/05/2022 00:00,262493,840,BO0246,FOR FARMERS UK LTD,25/04/2022 00:00,29/05/2022 00:00,P02-2023
P&V,LEE VALLEY FARM HOLYFIELDHALL,SUPPLIES AND SERVICES,FEED,4133,P117963-SERVICE-Optima/Prime Rearer,11/05/2022 00:00,262742,8923.64,BO0246,FOR FARMERS UK LTD,25/04/2022 00:00,29/05/2022 00:00,P02-2023
P&V,LEE VALLEY FARM HOLYFIELDHALL,SUPPLIES AND SERVICES,FEED,4133,P118027-SERVICE-Selcoplus,29/05/2022 00:00,263163,4464.72,BO0246,FOR FARMERS UK LTD,25/04/2022 00:00,29/05/2022 00:00,P02-2023
P&V,LEE VALLEY FARM HOLYFIELDHALL,SUPPLIES AND SERVICES,FEED,4133,P118077-SERVICE-Nutrimol,29/05/2022 00:00,263337,2428.16,BO0246,FOR FARMERS UK LTD,25/04/2022 00:00,29/05/2022 00:00,P02-2023
P&V,LEE VALLEY FARM HOLYFIELDHALL,SUPPLIES AND SERVICES,FEED,4133,P118125-SERVICE-Maxcare Dairy,29/05/2022 00:00,263483,783.6,BO0246,FOR FARMERS UK LTD,25/04/2022 00:00,29/05/2022 00:00,P02-2023
P&V,LEE VALLEY FARM HOLYFIELDHALL,SUPPLIES AND SERVICES,FEED,4133,P118188-SERVICE-Minline Cattle E,29/05/2022 00:00,263645,975,BO0246,FOR FARMERS UK LTD,25/04/2022 00:00,29/05/2022 00:00,P02-2023
P&V,LEE VALLEY FARM HOLYFIELDHALL,SUPPLIES AND SERVICES,SEEDS,4135,P117959-SERVICE-Forage Maize,11/05/2022 00:00,262626,5040,BO0246,FOR FARMERS UK LTD,25/04/2022 00:00,29/05/2022 00:00,P02-2023
P&V,LEE VALLEY FARM HOLYFIELDHALL,SUPPLIES AND SERVICES,SPRAYS,4136,P117961-SERVICE-Dow Leystar,11/05/2022 00:00,262721,131.5,HA0013,HARLOW AGRICULTURAL MERCHANTS,25/04/2022 00:00,29/05/2022 00:00,P02-2023
P&V,LEE VALLEY FARM HOLYFIELDHALL,SUPPLIES AND SERVICES,SPRAYS,4136,P117962-SERVICE-Sprays,11/05/2022 00:00,262722,1008,HA0013,HARLOW AGRICULTURAL MERCHANTS,25/04/2022 00:00,29/05/2022 00:00,P02-2023
P&V,LEE VALLEY FARM HOLYFIELDHALL,SUPPLIES AND SERVICES,SPRAYS,4136,P117964-SERVICE-Sprays,11/05/2022 00:00,262930,1317.75,HA0013,HARLOW AGRICULTURAL MERCHANTS,25/04/2022 00:00,29/05/2022 00:00,P02-2023
P&V,LEE VALLEY FARM HOLYFIELDHALL,SUPPLIES AND SERVICES,DAIRY SUNDRIES,4138,P117802-SERVICE-Parlour Service,28/04/2022 00:00,262429,811.69,MI0023,MILL DAIRY SERVICES,25/04/2022 00:00,29/05/2022 00:00,P02-2023
P&V,LEE VALLEY FARM HOLYFIELDHALL,SUPPLIES AND SERVICES,DAIRY SUNDRIES,4138,P117594-SERVICE-Dairy Sundries,28/04/2022 00:00,262430,219.43,MI0023,MILL DAIRY SERVICES,25/04/2022 00:00,29/05/2022 00:00,P02-2023
P&V,LEE VALLEY FARM HOLYFIELDHALL,SUPPLIES AND SERVICES,DAIRY SUNDRIES,4138,P117958-SERVICE-Liquid Nitrogen,11/05/2022 00:00,262656,73,GE0005,GENUS BREEDING LTD,25/04/2022 00:00,29/05/2022 00:00,P02-2023
P&V,LEE VALLEY FARM HOLYFIELDHALL,SUPPLIES AND SERVICES,DAIRY SUNDRIES,4138,P117960-SERVICE-Formalin,11/05/2022 00:00,262692,997.5,MI0023,MILL DAIRY SERVICES,25/04/2022 00:00,29/05/2022 00:00,P02-2023
P&V,LEE VALLEY FARM HOLYFIELDHALL,SUPPLIES AND SERVICES,DAIRY SUNDRIES,4138,FARM & COUNTRY SUPPLIES LTD,11/05/2022 00:00,262857,177,FA0099,FARM & COUNTRY SUPPLIES LTD,25/04/2022 00:00,29/05/2022 00:00,P02-2023
P&V,LEE VALLEY FARM HOLYFIELDHALL,SUPPLIES AND SERVICES,DAIRY SUNDRIES,4138,P117612-SERVICE-Dairy Sundries,11/05/2022 00:00,262857,240.41,FA0099,FARM & COUNTRY SUPPLIES LTD,25/04/2022 00:00,29/05/2022 00:00,P02-2023
P&V,LEE VALLEY FARM HOLYFIELDHALL,SUPPLIES AND SERVICES,DAIRY SUNDRIES,4138,FARM & COUNTRY SUPPLIES LTD,11/05/2022 00:00,262857,63.41,FA0099,FARM & COUNTRY SUPPLIES LTD,25/04/2022 00:00,29/05/2022 00:00,P02-2023
P&V,LEE VALLEY FARM HOLYFIELDHALL,SUPPLIES AND SERVICES,DAIRY SUNDRIES,4138,FARM & COUNTRY SUPPLIES LTD,11/05/2022 00:00,262857,-240.41,FA0099,FARM & COUNTRY SUPPLIES LTD,25/04/2022 00:00,29/05/2022 00:00,P02-2023
P&V,LEE VALLEY FARM HOLYFIELDHALL,SUPPLIES AND SERVICES,DAIRY SUNDRIES,4138,P117612-SERVICE-Dairy Sundries,11/05/2022 00:00,262859,63.41,FA0099,FARM & COUNTRY SUPPLIES LTD,25/04/2022 00:00,29/05/2022 00:00,P02-2023
P&V,LEE VALLEY FARM HOLYFIELDHALL,SUPPLIES AND SERVICES,DAIRY SUNDRIES,4138,P117612-SERVICE-Dairy Sundries,11/05/2022 00:00,262860,251.11,FA0099,FARM & COUNTRY SUPPLIES LTD,25/04/2022 00:00,29/05/2022 00:00,P02-2023
P&V,LEE VALLEY FARM HOLYFIELDHALL,SUPPLIES AND SERVICES,DAIRY SUNDRIES,4138,P117612-SERVICE-Dairy Sundries,11/05/2022 00:00,262861,42.48,FA0099,FARM & COUNTRY SUPPLIES LTD,25/04/2022 00:00,29/05/2022 00:00,P02-2023
P&V,LEE VALLEY FARM HOLYFIELDHALL,SUPPLIES AND SERVICES,DAIRY SUNDRIES,4138,P117612-SERVICE-Dairy Sundries,11/05/2022 00:00,262862,199.25,FA0099,FARM & COUNTRY SUPPLIES LTD,25/04/2022 00:00,29/05/2022 00:00,P02-2023
P&V,LEE VALLEY FARM HOLYFIELDHALL,SUPPLIES AND SERVICES,DAIRY SUNDRIES,4138,FARM & COUNTRY SUPPLIES LTD,11/05/2022 00:00,262862,-199.25,FA0099,FARM & COUNTRY SUPPLIES LTD,25/04/2022 00:00,29/05/2022 00:00,P02-2023
P&V,LEE VALLEY FARM HOLYFIELDHALL,SUPPLIES AND SERVICES,DAIRY SUNDRIES,4138,FARM & COUNTRY SUPPLIES LTD,11/05/2022 00:00,262862,63.41,FA0099,FARM & COUNTRY SUPPLIES LTD,25/04/2022 00:00,29/05/2022 00:00,P02-2023
P&V,LEE VALLEY FARM HOLYFIELDHALL,SUPPLIES AND SERVICES,DAIRY SUNDRIES,4138,FARM & COUNTRY SUPPLIES LTD,11/05/2022 00:00,262862,135.84,FA0099,FARM & COUNTRY SUPPLIES LTD,25/04/2022 00:00,29/05/2022 00:00,P02-2023
P&V,LEE VALLEY FARM HOLYFIELDHALL,SUPPLIES AND SERVICES,DAIRY SUNDRIES,4138,P117612-SERVICE-Dairy Sundries,11/05/2022 00:00,262863,25.11,FA0099,FARM & COUNTRY SUPPLIES LTD,25/04/2022 00:00,29/05/2022 00:00,P02-2023
P&V,LEE VALLEY FARM HOLYFIELDHALL,SUPPLIES AND SERVICES,DAIRY SUNDRIES,4138,P117612-SERVICE-Dairy Sundries,11/05/2022 00:00,262864,44.06,FA0099,FARM & COUNTRY SUPPLIES LTD,25/04/2022 00:00,29/05/2022 00:00,P02-2023
P&V,LEE VALLEY FARM HOLYFIELDHALL,SUPPLIES AND SERVICES,DAIRY SUNDRIES,4138,P117594-SERVICE-Dairy Sundries,11/05/2022 00:00,262960,318.57,MI0023,MILL DAIRY SERVICES,25/04/2022 00:00,29/05/2022 00:00,P02-2023
P&V,LEE VALLEY FARM HOLYFIELDHALL,SUPPLIES AND SERVICES,DAIRY SUNDRIES,4138,P118028-SERVICE-Oxy Seal/Sidewall Film,29/05/2022 00:00,263152,1095.35,AR0460,ARK AGRICULTURE LTD,25/04/2022 00:00,29/05/2022 00:00,P02-2023
P&V,LEE VALLEY FARM HOLYFIELDHALL,SUPPLIES AND SERVICES,DAIRY SUNDRIES,4138,P117969-SERVICE-1 Load of Sawdust @ 3.85 Bag,17/05/2022 00:00,263158,3465,NW0222,NW RESOURCES LTD,25/04/2022 00:00,29/05/2022 00:00,P02-2023
P&V,LEE VALLEY FARM HOLYFIELDHALL,SUPPLIES AND SERVICES,DAIRY SUNDRIES,4138,P118042-SERVICE-Annual Subscription,18/05/2022 00:00,263273,724.95,NF0042,NFU,25/04/2022 00:00,29/05/2022 00:00,P02-2023
P&V,LEE VALLEY FARM HOLYFIELDHALL,SUPPLIES AND SERVICES,DAIRY SUNDRIES,4138,P118040-SERVICE-Bull Semen,29/05/2022 00:00,263472,420,CO0084,COGENT BREEDING LTD,25/04/2022 00:00,29/05/2022 00:00,P02-2023
P&V,LEE VALLEY FARM HOLYFIELDHALL,SUPPLIES AND SERVICES,DAIRY SUNDRIES,4138,P117609-SERVICE-Dead Animal Removal,29/05/2022 00:00,263520,96,MA0074,W MARTIN & SON LIMITED,25/04/2022 00:00,29/05/2022 00:00,P02-2023
P&V,LEE VALLEY FARM HOLYFIELDHALL,SUPPLIES AND SERVICES,DAIRY SUNDRIES,4138,P118186-SERVICE-Paper Towels,29/05/2022 00:00,263536,1156.5,MI0023,MILL DAIRY SERVICES,25/04/2022 00:00,29/05/2022 00:00,P02-2023
P&V,LEE VALLEY FARM HOLYFIELDHALL,SUPPLIES AND SERVICES,DAIRY SUNDRIES,4138,P118187-SERVICE-Beeline Material/Labour,29/05/2022 00:00,263537,963.95,MI0023,MILL DAIRY SERVICES,25/04/2022 00:00,29/05/2022 00:00,P02-2023
P&V,MYDDLETON HSE HERITAGE CENTRE,SUPPLIES AND SERVICES,FOOD AND DRINK PURCHASES,4140,P117929-SERVICE-honey stock april 22,09/05/2022 00:00,262680,162,DA0191,TOM DAWSON,25/04/2022 00:00,29/05/2022 00:00,P02-2023
,LV WHITE WATER CATERING,SUPPLIES AND SERVICES,FOOD AND DRINK PURCHASES,4140,P116693-SERVICE-sandwiches,09/05/2022 00:00,262654,293.92,AN0324,ANCHOR CATERING,25/04/2022 00:00,29/05/2022 00:00,P02-2023
,LV WHITE WATER CATERING,SUPPLIES AND SERVICES,FOOD AND DRINK PURCHASES,4140,P117283-SERVICE-sandwiches,09/05/2022 00:00,262654,76.31,AN0324,ANCHOR CATERING,25/04/2022 00:00,29/05/2022 00:00,P02-2023
,LV WHITE WATER CATERING,SUPPLIES AND SERVICES,FOOD AND DRINK PURCHASES,4140,P115693-SERVICE-meats,24/05/2022 00:00,263328,82.65,BR0547,BRITISH PREMIUM MEATS,25/04/2022 00:00,29/05/2022 00:00,P02-2023
,LV WHITE WATER CATERING,SUPPLIES AND SERVICES,FOOD AND DRINK PURCHASES,4140,P117410-SERVICE-meat,24/05/2022 00:00,263329,200,BR0547,BRITISH PREMIUM MEATS,25/04/2022 00:00,29/05/2022 00:00,P02-2023
,LV WHITE WATER CATERING,SUPPLIES AND SERVICES,FOOD AND DRINK PURCHASES,4140,P115693-SERVICE-meats,24/05/2022 00:00,263329,198.84,BR0547,BRITISH PREMIUM MEATS,25/04/2022 00:00,29/05/2022 00:00,P02-2023
,LV CAMPSITE CARAVAN SALES,SUPPLIES AND SERVICES,DECKING PURCHASES,4173,P117870-SERVICE-Ramp For sewardstone,11/05/2022 00:00,262964,624.2,LO0459,LONDON LODGES UK,25/04/2022 00:00,29/05/2022 00:00,P02-2023
,LV CAMPSITE CARAVAN SALES,SUPPLIES AND SERVICES,DECKING PURCHASES,4173,P117874-SERVICE-Deck,11/05/2022 00:00,262964,336.4,LO0459,LONDON LODGES UK,25/04/2022 00:00,29/05/2022 00:00,P02-2023
,LV CAMPSITE CARAVAN SALES,SUPPLIES AND SERVICES,DECKING PURCHASES,4173,P117870-SERVICE-Ramp for Sewardstone static saddie,11/05/2022 00:00,262964,3121,LO0459,LONDON LODGES UK,25/04/2022 00:00,29/05/2022 00:00,P02-2023
,LV CAMPSITE CARAVAN SALES,SUPPLIES AND SERVICES,DECKING PURCHASES,4173,P117872-SERVICE-deck sewardstone static,11/05/2022 00:00,262964,252,LO0459,LONDON LODGES UK,25/04/2022 00:00,29/05/2022 00:00,P02-2023
,LV CAMPSITE CARAVAN SALES,SUPPLIES AND SERVICES,DECKING PURCHASES,4173,P117872-SERVICE-deck sewardstone static saddie,11/05/2022 00:00,262964,1260,LO0459,LONDON LODGES UK,25/04/2022 00:00,29/05/2022 00:00,P02-2023
,LV CAMPSITE CARAVAN SALES,SUPPLIES AND SERVICES,DECKING PURCHASES,4173,P117874-SERVICE-Deck for sewardstone static,11/05/2022 00:00,262964,1682,LO0459,LONDON LODGES UK,25/04/2022 00:00,29/05/2022 00:00,P02-2023
CEO,PR/COMMUNICATIONS,SUPPLIES AND SERVICES,CLOTHING & UNIFORMS,4225,P117938-SERVICE-Name badges x 38,24/05/2022 00:00,263474,273.5,RE0055,RECOGNITION EXPRESS THAMES VALLEY,25/04/2022 00:00,29/05/2022 00:00,P02-2023
R&B,INFORMATION TECHNOLOGY,SUPPLIES AND SERVICES,CLOTHING & UNIFORMS,4225,P117614-SERVICE-Embrodiery on 9 garments,09/05/2022 00:00,262691,44.91,DI0017,DIRECT BOOT & SHOE SUPPLIES,25/04/2022 00:00,29/05/2022 00:00,P02-2023
,LEE VALLEY MARINA STANSTEAD,SUPPLIES AND SERVICES,CLOTHING & UNIFORMS,4225,P117576-SERVICE-April Uniform - Direct Boot,29/05/2022 00:00,263506,-40,DI0017,DIRECT BOOT & SHOE SUPPLIES,25/04/2022 00:00,29/05/2022 00:00,P02-2023
P&V,SOUTH AREA RANGERS,SUPPLIES AND SERVICES,CLOTHING & UNIFORMS,4225,P117746-SERVICE-2x Boots,04/05/2022 00:00,262648,109.99,DI0017,DIRECT BOOT & SHOE SUPPLIES,25/04/2022 00:00,29/05/2022 00:00,P02-2023
P&V,SOUTH AREA RANGERS,SUPPLIES AND SERVICES,CLOTHING & UNIFORMS,4225,DIRECT BOOT & SHOE SUPPLIES,04/05/2022 00:00,262648,-109.99,DI0017,DIRECT BOOT & SHOE SUPPLIES,25/04/2022 00:00,29/05/2022 00:00,P02-2023
P&V,SOUTH AREA RANGERS,SUPPLIES AND SERVICES,CLOTHING & UNIFORMS,4225,DIRECT BOOT & SHOE SUPPLIES,04/05/2022 00:00,262648,50,DI0017,DIRECT BOOT & SHOE SUPPLIES,25/04/2022 00:00,29/05/2022 00:00,P02-2023
P&V,SOUTH AREA RANGERS,SUPPLIES AND SERVICES,CLOTHING & UNIFORMS,4225,DIRECT BOOT & SHOE SUPPLIES,04/05/2022 00:00,262648,59.99,DI0017,DIRECT BOOT & SHOE SUPPLIES,25/04/2022 00:00,29/05/2022 00:00,P02-2023
P&V,POLICY & PERFORMANCE (L&E),SUPPLIES AND SERVICES,CLOTHING & UNIFORMS,4225,P117887-SERVICE-Embroidery of uniform as per information supp,29/05/2022 00:00,263672,93.5,DI0017,DIRECT BOOT & SHOE SUPPLIES,25/04/2022 00:00,29/05/2022 00:00,P02-2023
CEO,CHIEF EXECUTIVE,SUPPLIES AND SERVICES,OFFICE EXPENSES,4311,P118029-SERVICE-3 x HPCH562EE Black Printer Cartridges,29/05/2022 00:00,263529,59.76,TH0008,JKL SOLUTIONS LTD,25/04/2022 00:00,29/05/2022 00:00,P02-2023
,LEE VALLEY MARINA SPRINGFIELD,SUPPLIES AND SERVICES,OFFICE EXPENSES,4311,P117859-SERVICE-to supply items as requseted,09/05/2022 00:00,262920,149.83,TH0008,JKL SOLUTIONS LTD,25/04/2022 00:00,29/05/2022 00:00,P02-2023
,LEE VALLEY MARINA STANSTEAD,SUPPLIES AND SERVICES,OFFICE EXPENSES,4311,P117814-SERVICE-Stationery  Misc Office,04/05/2022 00:00,262649,227.07,TH0008,JKL SOLUTIONS LTD,25/04/2022 00:00,29/05/2022 00:00,P02-2023
,LEE VALLEY MARINA STANSTEAD,SUPPLIES AND SERVICES,OFFICE EXPENSES,4311,P117488-SERVICE-stationery and cleaning products JKL,04/05/2022 00:00,262684,62.61,TH0008,JKL SOLUTIONS LTD,25/04/2022 00:00,29/05/2022 00:00,P02-2023
,LEE VALLEY MARINA STANSTEAD,SUPPLIES AND SERVICES,OFFICE EXPENSES,4311,P117931-SERVICE-JKL Stationery - money bags,17/05/2022 00:00,263040,29.44,TH0008,JKL SOLUTIONS LTD,25/04/2022 00:00,29/05/2022 00:00,P02-2023
,LEE VALLEY CAMPSITE,SUPPLIES AND SERVICES,OFFICE EXPENSES,4311,P118009-SERVICE-Stationery,18/05/2022 00:00,262921,155.74,TH0008,JKL SOLUTIONS LTD,25/04/2022 00:00,29/05/2022 00:00,P02-2023
P&V,POLICY & PERFORMANCE (L&E),SUPPLIES AND SERVICES,OFFICE EXPENSES,4311,P118068-SERVICE-As per on line order,29/05/2022 00:00,263530,43.66,TH0008,JKL SOLUTIONS LTD,25/04/2022 00:00,29/05/2022 00:00,P02-2023
,LEE VALLEY MARINA SPRINGFIELD,SUPPLIES AND SERVICES,PHOTOCOPYING,4314,KONICA MINOLTA BUSINESS SOLUTI,16/05/2022 00:00,262897,5.28,KO0071,KONICA MINOLTA BUSINESS SOLUTIONS ( UK) LTD,25/04/2022 00:00,29/05/2022 00:00,P02-2023
,LEE VALLEY VELOPARK,SUPPLIES AND SERVICES,PHOTOCOPYING,4314,KONICA MINOLTA BUSINESS SOLUTI,16/05/2022 00:00,262896,88.56,KO0071,KONICA MINOLTA BUSINESS SOLUTIONS ( UK) LTD,25/04/2022 00:00,29/05/2022 00:00,P02-2023
,LV HOCKEY AND TENNIS CENTRE,SUPPLIES AND SERVICES,PHOTOCOPYING,4314,KONICA MINOLTA BUSINESS SOLUTI,16/05/2022 00:00,262898,0.95,KO0071,KONICA MINOLTA BUSINESS SOLUTIONS ( UK) LTD,25/04/2022 00:00,29/05/2022 00:00,P02-2023
,LEE VALLEY RIDING CENTRE,SUPPLIES AND SERVICES,PHOTOCOPYING,4314,KONICA MINOLTA BUSINESS SOLUTI,16/05/2022 00:00,262899,13.77,KO0071,KONICA MINOLTA BUSINESS SOLUTIONS ( UK) LTD,25/04/2022 00:00,29/05/2022 00:00,P02-2023
,LEE VALLEY ICE CENTRE,SUPPLIES AND SERVICES,PHOTOCOPYING,4314,KONICA MINOLTA BUSINESS SOLUTI,16/05/2022 00:00,262900,22.41,KO0071,KONICA MINOLTA BUSINESS SOLUTIONS ( UK) LTD,25/04/2022 00:00,29/05/2022 00:00,P02-2023
CEO,PR/COMMUNICATIONS,SUPPLIES AND SERVICES,PRINTING CORPORATE BROCHURES,4321,"P117658-SERVICE-How to find us print x 15,000",17/05/2022 00:00,263160,1424,LI0474,W & J LINNEY LTD T/AS QUADRANT,25/04/2022 00:00,29/05/2022 00:00,P02-2023
CEO,PR/COMMUNICATIONS,SUPPLIES AND SERVICES,PRINTING CORPORATE BROCHURES,4321,P118043-SERVICE-500 2pp letterheads - for Lee Valley Ice Cent,24/05/2022 00:00,263429,27.91,SO0582,SOLOPRESS,25/04/2022 00:00,29/05/2022 00:00,P02-2023
CEO,CHIEF EXECUTIVE,SUPPLIES AND SERVICES,SUBSCRIPTIONS,4334,P117509-SERVICE-CLOA Corporate Membership,09/05/2022 00:00,262943,450,CH0455,CHIEF CULTURAL & LEISURE OFFICERS ASSOCIATION,25/04/2022 00:00,29/05/2022 00:00,P02-2023
R&B,FINANCE,SUPPLIES AND SERVICES,SUBSCRIPTIONS,4334,P117647-SERVICE-PAYROLL CORPORATE MEMBERSHIP 2022/2023,04/05/2022 00:00,262737,593,PA0393,PAYROLL ALLIANCE,25/04/2022 00:00,29/05/2022 00:00,P02-2023
CEO,LEGAL SERVICES,SUPPLIES AND SERVICES,SUBSCRIPTIONS,4334,P117401-SERVICE-Membership,09/05/2022 00:00,262655,285,LG0046,LLG-LAWYERS IN LOCAL GOVERNMENT,25/04/2022 00:00,29/05/2022 00:00,P02-2023
CEO,LEGAL SERVICES,SUPPLIES AND SERVICES,SUBSCRIPTIONS,4334,P118055-SERVICE-Subscription Practice Law Service,29/05/2022 00:00,263335,4537.92,TH0291,THOMSON REUTERS,25/04/2022 00:00,29/05/2022 00:00,P02-2023
P&V,LEE VALLEY FARM HOLYFIELDHALL,SUPPLIES AND SERVICES,SUBSCRIPTIONS,4334,P117608-SERVICE-Subs,11/05/2022 00:00,262984,396.28,NA0005,NATIONAL MILK RECORDS PLC,25/04/2022 00:00,29/05/2022 00:00,P02-2023
P&V,MYDDLETON HSE HERITAGE CENTRE,SUPPLIES AND SERVICES,SUBSCRIPTIONS,4334,P118200-SERVICE-copies of the crocus king,29/05/2022 00:00,262918,259.6,RO0028,THE ROCKINGHAM PRESS,25/04/2022 00:00,29/05/2022 00:00,P02-2023
R&B,REVENUE SUSPENSE (AUTHORITY),SUPPLIES AND SERVICES,TELEPHONES (MOBILE),4484,VODAFONE  LIMITED (CORPORATE),04/05/2022 00:00,262428,493.14,VO0010,VODAFONE  LIMITED (CORPORATE),25/04/2022 00:00,29/05/2022 00:00,P02-2023
R&B,REVENUE SUSPENSE (AUTHORITY),SUPPLIES AND SERVICES,TELEPHONES (MOBILE),4484,GAMMA TELECOM LTD,23/05/2022 00:00,263476,689.1,GA0432,GAMMA TELECOM LTD,25/04/2022 00:00,29/05/2022 00:00,P02-2023
R&B,REVENUE SUSPENSE (AUTHORITY),SUPPLIES AND SERVICES,TELEPHONES (MOBILE),4484,VODAFONE  LIMITED (CORPORATE),29/05/2022 00:00,263668,406.23,VO0010,VODAFONE  LIMITED (CORPORATE),25/04/2022 00:00,29/05/2022 00:00,P02-2023
R&B,DEMOCRATIC REPRESENTATION & MA,SUPPLIES AND SERVICES,MEMBERS EXPENSES,4502,"P117659-SERVICE-Catering for 10 People on 21/04/22, Food to b",17/05/2022 00:00,263280,74.5,SH0256,SHARRONS EVENT CATERING COMPANY LTD,25/04/2022 00:00,29/05/2022 00:00,P02-2023
,LEE VALLEY CAMPSITE,SUPPLIES AND SERVICES,MARKETING,4603,P117677-SERVICE-Caravan & camping 22/23,28/04/2022 00:00,262174,335,AA0090,AA MEDIA LIMITED,25/04/2022 00:00,29/05/2022 00:00,P02-2023
,LEE VALLEY CAMPSITE,SUPPLIES AND SERVICES,MARKETING,4603,P118100-SERVICE-Playground sign,24/05/2022 00:00,263348,145,SL0528,SLAM SIGNS LTD,25/04/2022 00:00,29/05/2022 00:00,P02-2023
,LEE VALLEY CARAVAN PARK,SUPPLIES AND SERVICES,MARKETING,4603,P117208-SERVICE-Membership renewal,29/05/2022 00:00,263516,205.86,AA0090,AA MEDIA LIMITED,25/04/2022 00:00,29/05/2022 00:00,P02-2023
P&V,YOUTH AND SCHOOLS,SUPPLIES AND SERVICES,MARKETING,4603,P117735-SERVICE-2 adverts on plan my school trip for 12 month,04/05/2022 00:00,262455,450,BE0617,BEST WEB JOBS LTD,25/04/2022 00:00,29/05/2022 00:00,P02-2023
P&V,MYDDELTON HOUSE GARDENS,SUPPLIES AND SERVICES,MARKETING,4603,P117663-SERVICE-gardens promo order,09/05/2022 00:00,262415,32.4,SO0582,SOLOPRESS,25/04/2022 00:00,29/05/2022 00:00,P02-2023
P&V,MYDDELTON HOUSE GARDENS,SUPPLIES AND SERVICES,MARKETING,4603,P118203-SERVICE-full page gardens to visit mag,29/05/2022 00:00,262436,325,GA0282,GARDENS TO VISIT,25/04/2022 00:00,29/05/2022 00:00,P02-2023
P&V,MYDDELTON HOUSE GARDENS,SUPPLIES AND SERVICES,MARKETING,4603,P117665-SERVICE-gardens promo order,10/05/2022 00:00,262683,80,MA0167,MARTIN DANNELL & CO LTD,25/04/2022 00:00,29/05/2022 00:00,P02-2023
P&V,RIVER LEE COUNTRY PARK,SUPPLIES AND SERVICES,MARKETING,4603,P117736-SERVICE-Delivery - Banners,09/05/2022 00:00,262919,7.5,MA0167,MARTIN DANNELL & CO LTD,25/04/2022 00:00,29/05/2022 00:00,P02-2023
P&V,RIVER LEE COUNTRY PARK,SUPPLIES AND SERVICES,MARKETING,4603,P117736-SERVICE-1x Banner Printing - Drop In,09/05/2022 00:00,262919,15,MA0167,MARTIN DANNELL & CO LTD,25/04/2022 00:00,29/05/2022 00:00,P02-2023
P&V,RIVER LEE COUNTRY PARK,SUPPLIES AND SERVICES,MARKETING,4603,P117736-SERVICE-8x Banners Printing - Drop In,09/05/2022 00:00,262919,145.36,MA0167,MARTIN DANNELL & CO LTD,25/04/2022 00:00,29/05/2022 00:00,P02-2023
,LV LEISURE CENTRE GOLF COURSE,SUPPLIES AND SERVICES,MARKETING,4603,P116204-SERVICE-4 day shoot,09/05/2022 00:00,262955,4130,SH0609,SHY STUDIOS LTD,25/04/2022 00:00,29/05/2022 00:00,P02-2023
P&V,NORTH AREA RANGERS,SUPPLIES AND SERVICES,PEST CONTROL,4625,P117772-SERVICE-Pest Control - Ware Town Centre,23/05/2022 00:00,263448,53.34,VE0006,VERMINATE CITY & RURAL PEST CONTROL LTD,25/04/2022 00:00,29/05/2022 00:00,P02-2023
P&V,NORTH AREA RANGERS,SUPPLIES AND SERVICES,PEST CONTROL,4625,P117772-SERVICE-Pest Control - Ware Town Centre - May,23/05/2022 00:00,263449,53.34,VE0006,VERMINATE CITY & RURAL PEST CONTROL LTD,25/04/2022 00:00,29/05/2022 00:00,P02-2023
P&V,NORTH AREA RANGERS,SUPPLIES AND SERVICES,PEST CONTROL,4625,P117770-SERVICE-Pest Control - North Sites,23/05/2022 00:00,263450,66.67,VE0006,VERMINATE CITY & RURAL PEST CONTROL LTD,25/04/2022 00:00,29/05/2022 00:00,P02-2023
P&V,NORTH AREA RANGERS,SUPPLIES AND SERVICES,PEST CONTROL,4625,P117770-SERVICE-Pest Control - North Sites - May,23/05/2022 00:00,263451,66.67,VE0006,VERMINATE CITY & RURAL PEST CONTROL LTD,25/04/2022 00:00,29/05/2022 00:00,P02-2023
P&V,SOUTH AREA RANGERS,SUPPLIES AND SERVICES,PEST CONTROL,4625,P117769-SERVICE-Pest Control - Tottenham Marshes,23/05/2022 00:00,263446,46.67,VE0006,VERMINATE CITY & RURAL PEST CONTROL LTD,25/04/2022 00:00,29/05/2022 00:00,P02-2023
P&V,SOUTH AREA RANGERS,SUPPLIES AND SERVICES,PEST CONTROL,4625,P117769-SERVICE-Pest Control - Tottenham Marshes - May,23/05/2022 00:00,263447,46.67,VE0006,VERMINATE CITY & RURAL PEST CONTROL LTD,25/04/2022 00:00,29/05/2022 00:00,P02-2023
P&V,ABBEY GARDENS,SUPPLIES AND SERVICES,PEST CONTROL,4625,P117770-SERVICE-Pest Control - North Sites,23/05/2022 00:00,263450,33.33,VE0006,VERMINATE CITY & RURAL PEST CONTROL LTD,25/04/2022 00:00,29/05/2022 00:00,P02-2023
P&V,ABBEY GARDENS,SUPPLIES AND SERVICES,PEST CONTROL,4625,P117770-SERVICE-Pest Control - North Sites - May,23/05/2022 00:00,263451,33.33,VE0006,VERMINATE CITY & RURAL PEST CONTROL LTD,25/04/2022 00:00,29/05/2022 00:00,P02-2023
P&V,RIVER LEE COUNTRY PARK,SUPPLIES AND SERVICES,PEST CONTROL,4625,P117770-SERVICE-Pest Control - North Sites,23/05/2022 00:00,263450,66.67,VE0006,VERMINATE CITY & RURAL PEST CONTROL LTD,25/04/2022 00:00,29/05/2022 00:00,P02-2023
P&V,RIVER LEE COUNTRY PARK,SUPPLIES AND SERVICES,PEST CONTROL,4625,P117770-SERVICE-Pest Control - North Sites - May,23/05/2022 00:00,263451,66.67,VE0006,VERMINATE CITY & RURAL PEST CONTROL LTD,25/04/2022 00:00,29/05/2022 00:00,P02-2023
P&V,FORMER LV LIDO SITE,SUPPLIES AND SERVICES,PEST CONTROL,4625,P117770-SERVICE-Pest Control - North Sites,23/05/2022 00:00,263450,33.33,VE0006,VERMINATE CITY & RURAL PEST CONTROL LTD,25/04/2022 00:00,29/05/2022 00:00,P02-2023
P&V,FORMER LV LIDO SITE,SUPPLIES AND SERVICES,PEST CONTROL,4625,P117770-SERVICE-Pest Control - North Sites - May,23/05/2022 00:00,263451,33.33,VE0006,VERMINATE CITY & RURAL PEST CONTROL LTD,25/04/2022 00:00,29/05/2022 00:00,P02-2023
,LEE VALLEY MARINA SPRINGFIELD,SUPPLIES AND SERVICES,MERCHANT PROCESSING CHARGES,4641,WORLDPAY,04/05/2022 00:00,262665,30,WO0338,WORLDPAY,25/04/2022 00:00,29/05/2022 00:00,P02-2023
,LEE VALLEY MARINA STANSTEAD,SUPPLIES AND SERVICES,MERCHANT PROCESSING CHARGES,4641,WORLDPAY,04/05/2022 00:00,262665,30,WO0338,WORLDPAY,25/04/2022 00:00,29/05/2022 00:00,P02-2023
R&B,FINANCE & RESOURCES MANAGEMENT,SUPPLIES AND SERVICES,DEBT RECOVERY FEES,4646,P117729-SERVICE-DEBT RECOVERY FEES 2022/2023,18/05/2022 00:00,263320,36.2,LE0069,LEGAL RECOVERIES AND COLLECTIONS LIMITED,25/04/2022 00:00,29/05/2022 00:00,P02-2023
,LEE VALLEY MARINA STANSTEAD,SUPPLIES AND SERVICES,SECURITY,4650,P117890-SERVICE-AIS  3 box of security fobs,29/05/2022 00:00,263531,100.53,AI0262,AIS ( ADVANCED INTEGRATED SECURITY),25/04/2022 00:00,29/05/2022 00:00,P02-2023
P&V,NORTH AREA RANGERS,SUPPLIES AND SERVICES,SECURITY,4650,P117908-SERVICE-Swim Patrol Additional Security at Glen Faba,18/05/2022 00:00,263270,684,PA0059,PARKGUARD LTD,25/04/2022 00:00,29/05/2022 00:00,P02-2023
P&V,NORTH AREA RANGERS,SUPPLIES AND SERVICES,SECURITY,4650,P117972-SERVICE-Install Concrete Block at Roydon Road (B181),18/05/2022 00:00,263342,250,BU0090,BUSH WHEELER SERVICES LTD,25/04/2022 00:00,29/05/2022 00:00,P02-2023
P&V,SOUTH AREA RANGERS,SUPPLIES AND SERVICES,SECURITY,4650,P117651-SERVICE-Additional Security at Coppermill/Walthamstow,28/04/2022 00:00,262414,912,PA0059,PARKGUARD LTD,25/04/2022 00:00,29/05/2022 00:00,P02-2023
P&V,SOUTH AREA RANGERS,SUPPLIES AND SERVICES,SECURITY,4650,P117907-SERVICE-Rave Cover at Coppermill - May,18/05/2022 00:00,263271,456,PA0059,PARKGUARD LTD,25/04/2022 00:00,29/05/2022 00:00,P02-2023
CEO,PR/COMMUNICATIONS,SUPPLIES AND SERVICES,ADVERTISING - AWARENESS,4656,P117666-SERVICE-Banner - 17400mm x 1000mm (WWC),09/05/2022 00:00,262682,326,MA0167,MARTIN DANNELL & CO LTD,25/04/2022 00:00,29/05/2022 00:00,P02-2023
CEO,PR/COMMUNICATIONS,SUPPLIES AND SERVICES,MEDIA MONITORING,4660,P117926-SERVICE-CLA licence renewal - May 2022 to April 2023,10/05/2022 00:00,262977,701.96,CO0474,THE COPYRIGHT LICENSING AGENCY LIMITED,25/04/2022 00:00,29/05/2022 00:00,P02-2023
CEO,PR/COMMUNICATIONS,SUPPLIES AND SERVICES,ARTWORK,4664,P117054-SERVICE-10 Year Anniversary Exhibition at Lee Valley,09/05/2022 00:00,262733,15000,MA0486,MATHER & CO LTD,25/04/2022 00:00,29/05/2022 00:00,P02-2023
R&B,PERFORMANCE MANAGEMENT,SUPPLIES AND SERVICES,OFFSITE ARCHIVED STORAGE,4667,P117984-SERVICE-Off site storage April 2022,16/05/2022 00:00,262975,420.39,DA0154,RESTORE PLC,25/04/2022 00:00,29/05/2022 00:00,P02-2023
P&V,LEE VALLEY FARM HOLYFIELDHALL,THIRD PARTY PAYMENTS,VETERINARY SERVICES,4718,P117966-SERVICE-Vets,11/05/2022 00:00,263002,1215.9,HA0443,HAMPDEN VETERINARY HOSPITAL,25/04/2022 00:00,29/05/2022 00:00,P02-2023
P&V,MYDDLETON HSE HERITAGE CENTRE,SUPPLIES AND SERVICES,NET CATERING PURCHASES,4777,P117365-SERVICE-food/drinl order w.e 27.03.22,04/05/2022 00:00,260166,104.76,360001,BIDFOOD,25/04/2022 00:00,29/05/2022 00:00,P02-2023
P&V,MYDDLETON HSE HERITAGE CENTRE,SUPPLIES AND SERVICES,NET CATERING PURCHASES,4777,P117365-SERVICE-food/drinl order w.e 27.03.22,04/05/2022 00:00,260166,232.35,360001,BIDFOOD,25/04/2022 00:00,29/05/2022 00:00,P02-2023
P&V,MYDDLETON HSE HERITAGE CENTRE,SUPPLIES AND SERVICES,NET CATERING PURCHASES,4777,BIDFOOD,10/05/2022 00:00,260985,629.96,360001,BIDFOOD,25/04/2022 00:00,29/05/2022 00:00,P02-2023
P&V,MYDDLETON HSE HERITAGE CENTRE,SUPPLIES AND SERVICES,NET CATERING PURCHASES,4777,BIDFOOD,10/05/2022 00:00,260985,281.68,360001,BIDFOOD,25/04/2022 00:00,29/05/2022 00:00,P02-2023
P&V,MYDDLETON HSE HERITAGE CENTRE,SUPPLIES AND SERVICES,NET CATERING PURCHASES,4777,P117934-SERVICE-food/drinks order march 22,10/05/2022 00:00,260985,911.64,360001,BIDFOOD,25/04/2022 00:00,29/05/2022 00:00,P02-2023
P&V,MYDDLETON HSE HERITAGE CENTRE,SUPPLIES AND SERVICES,NET CATERING PURCHASES,4777,BIDFOOD,10/05/2022 00:00,260985,-911.64,360001,BIDFOOD,25/04/2022 00:00,29/05/2022 00:00,P02-2023
P&V,MYDDLETON HSE HERITAGE CENTRE,SUPPLIES AND SERVICES,NET CATERING PURCHASES,4777,BIDFOOD,16/05/2022 00:00,261375,219.09,360001,BIDFOOD,25/04/2022 00:00,29/05/2022 00:00,P02-2023
P&V,MYDDLETON HSE HERITAGE CENTRE,SUPPLIES AND SERVICES,NET CATERING PURCHASES,4777,BIDFOOD,16/05/2022 00:00,261375,680.87,360001,BIDFOOD,25/04/2022 00:00,29/05/2022 00:00,P02-2023
P&V,MYDDLETON HSE HERITAGE CENTRE,SUPPLIES AND SERVICES,NET CATERING PURCHASES,4777,BIDFOOD,16/05/2022 00:00,261375,-899.96,360001,BIDFOOD,25/04/2022 00:00,29/05/2022 00:00,P02-2023
P&V,MYDDLETON HSE HERITAGE CENTRE,SUPPLIES AND SERVICES,NET CATERING PURCHASES,4777,P117989-SERVICE-food/drinks order march 22,16/05/2022 00:00,261375,899.96,360001,BIDFOOD,25/04/2022 00:00,29/05/2022 00:00,P02-2023
P&V,MYDDLETON HSE HERITAGE CENTRE,SUPPLIES AND SERVICES,NET CATERING PURCHASES,4777,BIDFOOD,10/05/2022 00:00,261581,-156.53,360001,BIDFOOD,25/04/2022 00:00,29/05/2022 00:00,P02-2023
P&V,MYDDLETON HSE HERITAGE CENTRE,SUPPLIES AND SERVICES,NET CATERING PURCHASES,4777,BIDFOOD,10/05/2022 00:00,261581,39.21,360001,BIDFOOD,25/04/2022 00:00,29/05/2022 00:00,P02-2023
P&V,MYDDLETON HSE HERITAGE CENTRE,SUPPLIES AND SERVICES,NET CATERING PURCHASES,4777,P117048-SERVICE-Food/Drink order w.e .06.02.22,10/05/2022 00:00,261581,156.53,360001,BIDFOOD,25/04/2022 00:00,29/05/2022 00:00,P02-2023
P&V,MYDDLETON HSE HERITAGE CENTRE,SUPPLIES AND SERVICES,NET CATERING PURCHASES,4777,BIDFOOD,10/05/2022 00:00,261581,117.32,360001,BIDFOOD,25/04/2022 00:00,29/05/2022 00:00,P02-2023
P&V,MYDDLETON HSE HERITAGE CENTRE,SUPPLIES AND SERVICES,NET CATERING PURCHASES,4777,P117365-SERVICE-food/drinl order w.e 27.03.22,04/05/2022 00:00,261602,-72.72,360001,BIDFOOD,25/04/2022 00:00,29/05/2022 00:00,P02-2023
P&V,MYDDLETON HSE HERITAGE CENTRE,SUPPLIES AND SERVICES,NET CATERING PURCHASES,4777,BIDFOOD,04/05/2022 00:00,261869,18.87,360001,BIDFOOD,25/04/2022 00:00,29/05/2022 00:00,P02-2023
P&V,MYDDLETON HSE HERITAGE CENTRE,SUPPLIES AND SERVICES,NET CATERING PURCHASES,4777,BIDFOOD,04/05/2022 00:00,261869,-204.49,360001,BIDFOOD,25/04/2022 00:00,29/05/2022 00:00,P02-2023
P&V,MYDDLETON HSE HERITAGE CENTRE,SUPPLIES AND SERVICES,NET CATERING PURCHASES,4777,BIDFOOD,04/05/2022 00:00,261869,185.62,360001,BIDFOOD,25/04/2022 00:00,29/05/2022 00:00,P02-2023
P&V,MYDDLETON HSE HERITAGE CENTRE,SUPPLIES AND SERVICES,NET CATERING PURCHASES,4777,P117525-SERVICE-Food/drink,04/05/2022 00:00,261869,204.49,360001,BIDFOOD,25/04/2022 00:00,29/05/2022 00:00,P02-2023
P&V,MYDDLETON HSE HERITAGE CENTRE,SUPPLIES AND SERVICES,NET CATERING PURCHASES,4777,BIDFOOD,28/04/2022 00:00,262158,-620.56,360001,BIDFOOD,25/04/2022 00:00,29/05/2022 00:00,P02-2023
P&V,MYDDLETON HSE HERITAGE CENTRE,SUPPLIES AND SERVICES,NET CATERING PURCHASES,4777,BIDFOOD,28/04/2022 00:00,262158,159.96,360001,BIDFOOD,25/04/2022 00:00,29/05/2022 00:00,P02-2023
P&V,MYDDLETON HSE HERITAGE CENTRE,SUPPLIES AND SERVICES,NET CATERING PURCHASES,4777,P117660-SERVICE-Food/Drink order w.e 17.04.22,28/04/2022 00:00,262158,620.56,360001,BIDFOOD,25/04/2022 00:00,29/05/2022 00:00,P02-2023
P&V,MYDDLETON HSE HERITAGE CENTRE,SUPPLIES AND SERVICES,NET CATERING PURCHASES,4777,BIDFOOD,28/04/2022 00:00,262158,460.6,360001,BIDFOOD,25/04/2022 00:00,29/05/2022 00:00,P02-2023
P&V,MYDDLETON HSE HERITAGE CENTRE,SUPPLIES AND SERVICES,NET CATERING PURCHASES,4777,P117660-SERVICE-Food/Drink order w.e 17.04.22,09/05/2022 00:00,262221,-33.65,360001,BIDFOOD,25/04/2022 00:00,29/05/2022 00:00,P02-2023
P&V,MYDDLETON HSE HERITAGE CENTRE,SUPPLIES AND SERVICES,NET CATERING PURCHASES,4777,BIDFOOD,04/05/2022 00:00,262365,-649.39,360001,BIDFOOD,25/04/2022 00:00,29/05/2022 00:00,P02-2023
P&V,MYDDLETON HSE HERITAGE CENTRE,SUPPLIES AND SERVICES,NET CATERING PURCHASES,4777,P117048-SERVICE-Food/Drink order w.e .06.02.22,04/05/2022 00:00,262365,649.39,360001,BIDFOOD,25/04/2022 00:00,29/05/2022 00:00,P02-2023
P&V,MYDDLETON HSE HERITAGE CENTRE,SUPPLIES AND SERVICES,NET CATERING PURCHASES,4777,BIDFOOD,04/05/2022 00:00,262365,39.54,360001,BIDFOOD,25/04/2022 00:00,29/05/2022 00:00,P02-2023
P&V,MYDDLETON HSE HERITAGE CENTRE,SUPPLIES AND SERVICES,NET CATERING PURCHASES,4777,BIDFOOD,04/05/2022 00:00,262365,609.85,360001,BIDFOOD,25/04/2022 00:00,29/05/2022 00:00,P02-2023
P&V,MYDDLETON HSE HERITAGE CENTRE,SUPPLIES AND SERVICES,NET CATERING PURCHASES,4777,BIDFOOD,10/05/2022 00:00,262399,168.77,360001,BIDFOOD,25/04/2022 00:00,29/05/2022 00:00,P02-2023
P&V,MYDDLETON HSE HERITAGE CENTRE,SUPPLIES AND SERVICES,NET CATERING PURCHASES,4777,P117737-SERVICE-Food drink order w.e 24.05.2022,10/05/2022 00:00,262399,308.34,360001,BIDFOOD,25/04/2022 00:00,29/05/2022 00:00,P02-2023
P&V,MYDDLETON HSE HERITAGE CENTRE,SUPPLIES AND SERVICES,NET CATERING PURCHASES,4777,BIDFOOD,10/05/2022 00:00,262399,139.57,360001,BIDFOOD,25/04/2022 00:00,29/05/2022 00:00,P02-2023
P&V,MYDDLETON HSE HERITAGE CENTRE,SUPPLIES AND SERVICES,NET CATERING PURCHASES,4777,BIDFOOD,10/05/2022 00:00,262399,-308.34,360001,BIDFOOD,25/04/2022 00:00,29/05/2022 00:00,P02-2023
P&V,MYDDLETON HSE HERITAGE CENTRE,SUPPLIES AND SERVICES,NET CATERING PURCHASES,4777,P117365-SERVICE-food/drinl order w.e 27.03.22,04/05/2022 00:00,262422,-58.15,360001,BIDFOOD,25/04/2022 00:00,29/05/2022 00:00,P02-2023
P&V,MYDDLETON HSE HERITAGE CENTRE,SUPPLIES AND SERVICES,NET CATERING PURCHASES,4777,BIDFOOD,04/05/2022 00:00,262458,38.62,360001,BIDFOOD,25/04/2022 00:00,29/05/2022 00:00,P02-2023
P&V,MYDDLETON HSE HERITAGE CENTRE,SUPPLIES AND SERVICES,NET CATERING PURCHASES,4777,BIDFOOD,04/05/2022 00:00,262458,305.56,360001,BIDFOOD,25/04/2022 00:00,29/05/2022 00:00,P02-2023
P&V,MYDDLETON HSE HERITAGE CENTRE,SUPPLIES AND SERVICES,NET CATERING PURCHASES,4777,P117680-SERVICE-Food/Drink order w.e 24/04/2022,04/05/2022 00:00,262458,344.18,360001,BIDFOOD,25/04/2022 00:00,29/05/2022 00:00,P02-2023
P&V,MYDDLETON HSE HERITAGE CENTRE,SUPPLIES AND SERVICES,NET CATERING PURCHASES,4777,BIDFOOD,04/05/2022 00:00,262458,-344.18,360001,BIDFOOD,25/04/2022 00:00,29/05/2022 00:00,P02-2023
P&V,MYDDLETON HSE HERITAGE CENTRE,SUPPLIES AND SERVICES,NET CATERING PURCHASES,4777,BIDFOOD,09/05/2022 00:00,262658,-447.44,360001,BIDFOOD,25/04/2022 00:00,29/05/2022 00:00,P02-2023
P&V,MYDDLETON HSE HERITAGE CENTRE,SUPPLIES AND SERVICES,NET CATERING PURCHASES,4777,P117863-SERVICE-Food/drink order w.e 08/05/2022,09/05/2022 00:00,262658,447.44,360001,BIDFOOD,25/04/2022 00:00,29/05/2022 00:00,P02-2023
P&V,MYDDLETON HSE HERITAGE CENTRE,SUPPLIES AND SERVICES,NET CATERING PURCHASES,4777,BIDFOOD,09/05/2022 00:00,262658,316.79,360001,BIDFOOD,25/04/2022 00:00,29/05/2022 00:00,P02-2023
P&V,MYDDLETON HSE HERITAGE CENTRE,SUPPLIES AND SERVICES,NET CATERING PURCHASES,4777,BIDFOOD,09/05/2022 00:00,262658,130.65,360001,BIDFOOD,25/04/2022 00:00,29/05/2022 00:00,P02-2023
P&V,MYDDLETON HSE HERITAGE CENTRE,SUPPLIES AND SERVICES,NET CATERING PURCHASES,4777,BIDFOOD,10/05/2022 00:00,262931,126,360001,BIDFOOD,25/04/2022 00:00,29/05/2022 00:00,P02-2023
P&V,MYDDLETON HSE HERITAGE CENTRE,SUPPLIES AND SERVICES,NET CATERING PURCHASES,4777,BIDFOOD,10/05/2022 00:00,262931,192.51,360001,BIDFOOD,25/04/2022 00:00,29/05/2022 00:00,P02-2023
P&V,MYDDLETON HSE HERITAGE CENTRE,SUPPLIES AND SERVICES,NET CATERING PURCHASES,4777,BIDFOOD,10/05/2022 00:00,262931,-318.51,360001,BIDFOOD,25/04/2022 00:00,29/05/2022 00:00,P02-2023
P&V,MYDDLETON HSE HERITAGE CENTRE,SUPPLIES AND SERVICES,NET CATERING PURCHASES,4777,P117878-SERVICE-food/drinks order for may 22,10/05/2022 00:00,262931,318.51,360001,BIDFOOD,25/04/2022 00:00,29/05/2022 00:00,P02-2023
P&V,MYDDLETON HSE HERITAGE CENTRE,SUPPLIES AND SERVICES,NET CATERING PURCHASES,4777,P117316-SERVICE-Drinks order w.e 27.03.22,09/05/2022 00:00,262949,69,TU0194,TUDOR TEA & COFFEE,25/04/2022 00:00,29/05/2022 00:00,P02-2023
P&V,MYDDLETON HSE HERITAGE CENTRE,SUPPLIES AND SERVICES,NET CATERING PURCHASES,4777,P117316-SERVICE-Drinks order w.e 27.03.22,09/05/2022 00:00,262950,138,TU0194,TUDOR TEA & COFFEE,25/04/2022 00:00,29/05/2022 00:00,P02-2023
P&V,MYDDLETON HSE HERITAGE CENTRE,SUPPLIES AND SERVICES,NET CATERING PURCHASES,4777,BIDFOOD,16/05/2022 00:00,263024,274.99,360001,BIDFOOD,25/04/2022 00:00,29/05/2022 00:00,P02-2023
P&V,MYDDLETON HSE HERITAGE CENTRE,SUPPLIES AND SERVICES,NET CATERING PURCHASES,4777,P117878-SERVICE-food/drinks order for may 22,16/05/2022 00:00,263024,357.81,360001,BIDFOOD,25/04/2022 00:00,29/05/2022 00:00,P02-2023
P&V,MYDDLETON HSE HERITAGE CENTRE,SUPPLIES AND SERVICES,NET CATERING PURCHASES,4777,BIDFOOD,16/05/2022 00:00,263024,82.82,360001,BIDFOOD,25/04/2022 00:00,29/05/2022 00:00,P02-2023
P&V,MYDDLETON HSE HERITAGE CENTRE,SUPPLIES AND SERVICES,NET CATERING PURCHASES,4777,BIDFOOD,16/05/2022 00:00,263024,-357.81,360001,BIDFOOD,25/04/2022 00:00,29/05/2022 00:00,P02-2023
P&V,MYDDLETON HSE HERITAGE CENTRE,SUPPLIES AND SERVICES,NET CATERING PURCHASES,4777,BIDFOOD,29/05/2022 00:00,263343,335.97,360001,BIDFOOD,25/04/2022 00:00,29/05/2022 00:00,P02-2023
P&V,MYDDLETON HSE HERITAGE CENTRE,SUPPLIES AND SERVICES,NET CATERING PURCHASES,4777,BIDFOOD,29/05/2022 00:00,263343,-820.4,360001,BIDFOOD,25/04/2022 00:00,29/05/2022 00:00,P02-2023
P&V,MYDDLETON HSE HERITAGE CENTRE,SUPPLIES AND SERVICES,NET CATERING PURCHASES,4777,P118202-SERVICE-food/drinks order 18.5.22,29/05/2022 00:00,263343,820.4,360001,BIDFOOD,25/04/2022 00:00,29/05/2022 00:00,P02-2023
P&V,MYDDLETON HSE HERITAGE CENTRE,SUPPLIES AND SERVICES,NET CATERING PURCHASES,4777,BIDFOOD,29/05/2022 00:00,263343,484.43,360001,BIDFOOD,25/04/2022 00:00,29/05/2022 00:00,P02-2023
P&V,MYDDLETON HSE HERITAGE CENTRE,SUPPLIES AND SERVICES,NET CATERING PURCHASES,4777,P118202-SERVICE-food/drinks order 18.5.22,29/05/2022 00:00,263500,-22,360001,BIDFOOD,25/04/2022 00:00,29/05/2022 00:00,P02-2023
,LEE VALLEY MARINA SPRINGFIELD,SUPPLIES AND SERVICES,TRADING AC - EXTERNAL PURCHASE,4875,P117501-SERVICE-Chandlery Stock,04/05/2022 00:00,261809,95.2,MI0200,MIDLAND CHANDLERS LIMITED,25/04/2022 00:00,29/05/2022 00:00,P02-2023
,LEE VALLEY MARINA SPRINGFIELD,SUPPLIES AND SERVICES,TRADING AC - EXTERNAL PURCHASE,4875,P117699-SERVICE-Chandlery Stock  94133,28/04/2022 00:00,262376,1.59,AQ0033,AQUAFAX LIMITED,25/04/2022 00:00,29/05/2022 00:00,P02-2023
,LEE VALLEY MARINA SPRINGFIELD,SUPPLIES AND SERVICES,TRADING AC - EXTERNAL PURCHASE,4875,P117704-SERVICE-Chandlery Stock,04/05/2022 00:00,262394,-365.76,MI0200,MIDLAND CHANDLERS LIMITED,25/04/2022 00:00,29/05/2022 00:00,P02-2023
,LEE VALLEY MARINA SPRINGFIELD,SUPPLIES AND SERVICES,TRADING AC - EXTERNAL PURCHASE,4875,P117637-SERVICE-Chandlery Stock  171091,28/04/2022 00:00,262401,363.56,AS0036,ASAP SUPPLIES,25/04/2022 00:00,29/05/2022 00:00,P02-2023
,LEE VALLEY MARINA SPRINGFIELD,SUPPLIES AND SERVICES,TRADING AC - EXTERNAL PURCHASE,4875,P117747-SERVICE-Chandlery Stock   837671,04/05/2022 00:00,262416,252.15,MI0200,MIDLAND CHANDLERS LIMITED,25/04/2022 00:00,29/05/2022 00:00,P02-2023
,LEE VALLEY MARINA SPRINGFIELD,SUPPLIES AND SERVICES,TRADING AC - EXTERNAL PURCHASE,4875,P117775-SERVICE-Chandlery Stock,04/05/2022 00:00,262480,1323.74,CR0651,CRAFTMASTER PAINTS,25/04/2022 00:00,29/05/2022 00:00,P02-2023
,LEE VALLEY MARINA SPRINGFIELD,SUPPLIES AND SERVICES,TRADING AC - EXTERNAL PURCHASE,4875,P117501-SERVICE-Chandlery Stock,04/05/2022 00:00,262485,-95.2,MI0200,MIDLAND CHANDLERS LIMITED,25/04/2022 00:00,29/05/2022 00:00,P02-2023
,LEE VALLEY MARINA SPRINGFIELD,SUPPLIES AND SERVICES,TRADING AC - EXTERNAL PURCHASE,4875,P117758-SERVICE-Chandlery Stock  838308,04/05/2022 00:00,262486,70.58,MI0200,MIDLAND CHANDLERS LIMITED,25/04/2022 00:00,29/05/2022 00:00,P02-2023
,LEE VALLEY MARINA SPRINGFIELD,SUPPLIES AND SERVICES,TRADING AC - EXTERNAL PURCHASE,4875,P117798-SERVICE-Chandlery Stock,04/05/2022 00:00,262628,621.35,MI0200,MIDLAND CHANDLERS LIMITED,25/04/2022 00:00,29/05/2022 00:00,P02-2023
,LEE VALLEY MARINA SPRINGFIELD,SUPPLIES AND SERVICES,TRADING AC - EXTERNAL PURCHASE,4875,P117798-SERVICE-Chandlery Stock,04/05/2022 00:00,262671,6.24,MI0200,MIDLAND CHANDLERS LIMITED,25/04/2022 00:00,29/05/2022 00:00,P02-2023
,LEE VALLEY MARINA SPRINGFIELD,SUPPLIES AND SERVICES,TRADING AC - EXTERNAL PURCHASE,4875,P117798-SERVICE-Chandlery Stock,04/05/2022 00:00,262672,-6.24,MI0200,MIDLAND CHANDLERS LIMITED,25/04/2022 00:00,29/05/2022 00:00,P02-2023
,LEE VALLEY MARINA SPRINGFIELD,SUPPLIES AND SERVICES,TRADING AC - EXTERNAL PURCHASE,4875,P117761-SERVICE-Chandlery Stock,04/05/2022 00:00,262673,53.3,DS0201,DSM GROUP,25/04/2022 00:00,29/05/2022 00:00,P02-2023
,LEE VALLEY MARINA SPRINGFIELD,SUPPLIES AND SERVICES,TRADING AC - EXTERNAL PURCHASE,4875,P117761-SERVICE-Chandlery Stock,04/05/2022 00:00,262673,1234.25,DS0201,DSM GROUP,25/04/2022 00:00,29/05/2022 00:00,P02-2023
,LEE VALLEY MARINA SPRINGFIELD,SUPPLIES AND SERVICES,TRADING AC - EXTERNAL PURCHASE,4875,P117699-SERVICE-Chandlery Stock  94133,04/05/2022 00:00,262699,4.77,AQ0033,AQUAFAX LIMITED,25/04/2022 00:00,29/05/2022 00:00,P02-2023
,LEE VALLEY MARINA SPRINGFIELD,SUPPLIES AND SERVICES,TRADING AC - EXTERNAL PURCHASE,4875,P115892-SERVICE-Chandlery Stock  794532,09/05/2022 00:00,262764,-48.45,MI0200,MIDLAND CHANDLERS LIMITED,25/04/2022 00:00,29/05/2022 00:00,P02-2023
,LEE VALLEY MARINA SPRINGFIELD,SUPPLIES AND SERVICES,TRADING AC - EXTERNAL PURCHASE,4875,P117885-SERVICE-Chandlery Stock  96221,09/05/2022 00:00,262916,404.5,AQ0033,AQUAFAX LIMITED,25/04/2022 00:00,29/05/2022 00:00,P02-2023
,LEE VALLEY MARINA SPRINGFIELD,SUPPLIES AND SERVICES,TRADING AC - EXTERNAL PURCHASE,4875,P117922-SERVICE-Chandlery Stock,16/05/2022 00:00,262978,392.64,CR0651,CRAFTMASTER PAINTS,25/04/2022 00:00,29/05/2022 00:00,P02-2023
,LEE VALLEY MARINA SPRINGFIELD,SUPPLIES AND SERVICES,TRADING AC - EXTERNAL PURCHASE,4875,P117940-SERVICE-Chandlery Stock,16/05/2022 00:00,262991,125.91,CR0651,CRAFTMASTER PAINTS,25/04/2022 00:00,29/05/2022 00:00,P02-2023
,LEE VALLEY MARINA SPRINGFIELD,SUPPLIES AND SERVICES,TRADING AC - EXTERNAL PURCHASE,4875,P117986-SERVICE-Chandlery Stock  97172,16/05/2022 00:00,263141,251.09,AQ0033,AQUAFAX LIMITED,25/04/2022 00:00,29/05/2022 00:00,P02-2023
,LEE VALLEY MARINA SPRINGFIELD,SUPPLIES AND SERVICES,TRADING AC - EXTERNAL PURCHASE,4875,P117946-SERVICE-Chandlery Stock  844556,18/05/2022 00:00,263255,578.43,MI0200,MIDLAND CHANDLERS LIMITED,25/04/2022 00:00,29/05/2022 00:00,P02-2023
,LEE VALLEY MARINA SPRINGFIELD,SUPPLIES AND SERVICES,TRADING AC - EXTERNAL PURCHASE,4875,P117862-SERVICE-Chandlery Stock,18/05/2022 00:00,263266,1025.75,SM0664,KG SMITH & SON,25/04/2022 00:00,29/05/2022 00:00,P02-2023
,LEE VALLEY MARINA SPRINGFIELD,SUPPLIES AND SERVICES,TRADING AC - EXTERNAL PURCHASE,4875,P118031-SERVICE-Chandlery Stock  (bitumen paint),23/05/2022 00:00,263281,3145.8,MA0008,AXALTA COATING SYSTEMS HUTHWAITE UK LTD,25/04/2022 00:00,29/05/2022 00:00,P02-2023
,LEE VALLEY MARINA SPRINGFIELD,SUPPLIES AND SERVICES,TRADING AC - EXTERNAL PURCHASE,4875,P118032-SERVICE-Chandlery Stock  847312,23/05/2022 00:00,263331,850.82,MI0200,MIDLAND CHANDLERS LIMITED,25/04/2022 00:00,29/05/2022 00:00,P02-2023
,LEE VALLEY MARINA SPRINGFIELD,SUPPLIES AND SERVICES,TRADING AC - EXTERNAL PURCHASE,4875,P118034-SERVICE-Chandlery Stock  179325,23/05/2022 00:00,263428,174.51,AS0036,ASAP SUPPLIES,25/04/2022 00:00,29/05/2022 00:00,P02-2023
,LEE VALLEY MARINA SPRINGFIELD,SUPPLIES AND SERVICES,TRADING AC - EXTERNAL PURCHASE,4875,P118061-SERVICE-Chandlery Stock 848516,23/05/2022 00:00,263434,509.51,MI0200,MIDLAND CHANDLERS LIMITED,25/04/2022 00:00,29/05/2022 00:00,P02-2023
,LEE VALLEY MARINA SPRINGFIELD,SUPPLIES AND SERVICES,TRADING AC - EXTERNAL PURCHASE,4875,P118050-SERVICE-Chandlery Stock,23/05/2022 00:00,263466,31.01,EN0259,L & S ENGINEERS LTD,25/04/2022 00:00,29/05/2022 00:00,P02-2023
,LEE VALLEY MARINA SPRINGFIELD,SUPPLIES AND SERVICES,TRADING AC - EXTERNAL PURCHASE,4875,P118038-SERVICE-Timber & Buffalo Board,23/05/2022 00:00,263479,202.94,RO0323,E ROBERT TIMBER LTD,25/04/2022 00:00,29/05/2022 00:00,P02-2023
,LEE VALLEY MARINA SPRINGFIELD,SUPPLIES AND SERVICES,TRADING AC - EXTERNAL PURCHASE,4875,P118078-SERVICE-Chandlery Stock  WSO0242393,29/05/2022 00:00,263509,283.19,CE0510,CENTURION EUROPE LIMITED,25/04/2022 00:00,29/05/2022 00:00,P02-2023
,LEE VALLEY MARINA SPRINGFIELD,SUPPLIES AND SERVICES,TRADING AC - EXTERNAL PURCHASE,4875,P118090-SERVICE-Chandlery Stock  850165,29/05/2022 00:00,263511,254.24,MI0200,MIDLAND CHANDLERS LIMITED,25/04/2022 00:00,29/05/2022 00:00,P02-2023
,LEE VALLEY MARINA SPRINGFIELD,SUPPLIES AND SERVICES,TRADING AC - EXTERNAL PURCHASE,4875,P117950-SERVICE-2 x 32mm Bright Bar,29/05/2022 00:00,263638,86,PA0011,PARKSIDE STEEL (STOCKHOLDERS) LTD,25/04/2022 00:00,29/05/2022 00:00,P02-2023
,LEE VALLEY MARINA SPRINGFIELD,SUPPLIES AND SERVICES,TRADING AC - EXTERNAL PURCHASE,4875,P117950-SERVICE-1 x Delivery,29/05/2022 00:00,263638,100,PA0011,PARKSIDE STEEL (STOCKHOLDERS) LTD,25/04/2022 00:00,29/05/2022 00:00,P02-2023
,LEE VALLEY MARINA SPRINGFIELD,SUPPLIES AND SERVICES,TRADING AC - EXTERNAL PURCHASE,4875,P118130-SERVICE-Chandlery Stock  851583,29/05/2022 00:00,263652,263.84,MI0200,MIDLAND CHANDLERS LIMITED,25/04/2022 00:00,29/05/2022 00:00,P02-2023
,LEE VALLEY MARINA SPRINGFIELD,SUPPLIES AND SERVICES,TRADING AC - EXTERNAL PURCHASE,4875,P118090-SERVICE-Chandlery Stock  850165,29/05/2022 00:00,263687,12.7,MI0200,MIDLAND CHANDLERS LIMITED,25/04/2022 00:00,29/05/2022 00:00,P02-2023
,LEE VALLEY MARINA SPRINGFIELD,SUPPLIES AND SERVICES,TRADING AC - EXTERNAL PURCHASE,4875,P118171-SERVICE-Chandlery Stock,29/05/2022 00:00,263696,581.41,CR0651,CRAFTMASTER PAINTS,25/04/2022 00:00,29/05/2022 00:00,P02-2023
,LEE VALLEY MARINA SPRINGFIELD,SUPPLIES AND SERVICES,TRADING AC - EXTERNAL PURCHASE,4875,P118185-SERVICE-Chandlery Stock,29/05/2022 00:00,263697,262.25,CR0651,CRAFTMASTER PAINTS,25/04/2022 00:00,29/05/2022 00:00,P02-2023
,STANSTEAD RECHARGEABLE WORKS,SUPPLIES AND SERVICES,TRADING AC - EXTERNAL PURCHASE,4875,P117465-SERVICE-coal and gas,09/05/2022 00:00,261642,333.3,SM0664,KG SMITH & SON,25/04/2022 00:00,29/05/2022 00:00,P02-2023
,STANSTEAD RECHARGEABLE WORKS,SUPPLIES AND SERVICES,TRADING AC - EXTERNAL PURCHASE,4875,P117465-SERVICE-coal and gas,09/05/2022 00:00,261806,-333.3,SM0664,KG SMITH & SON,25/04/2022 00:00,29/05/2022 00:00,P02-2023
,STANSTEAD RECHARGEABLE WORKS,SUPPLIES AND SERVICES,TRADING AC - EXTERNAL PURCHASE,4875,P117464-SERVICE-chandlery stock,04/05/2022 00:00,261867,5294.73,MI0200,MIDLAND CHANDLERS LIMITED,25/04/2022 00:00,29/05/2022 00:00,P02-2023
,STANSTEAD RECHARGEABLE WORKS,SUPPLIES AND SERVICES,TRADING AC - EXTERNAL PURCHASE,4875,P117464-SERVICE-chandlery stock,04/05/2022 00:00,261875,41.15,MI0200,MIDLAND CHANDLERS LIMITED,25/04/2022 00:00,29/05/2022 00:00,P02-2023
,STANSTEAD RECHARGEABLE WORKS,SUPPLIES AND SERVICES,TRADING AC - EXTERNAL PURCHASE,4875,P117464-SERVICE-chandlery stock,04/05/2022 00:00,261876,31.64,MI0200,MIDLAND CHANDLERS LIMITED,25/04/2022 00:00,29/05/2022 00:00,P02-2023
,STANSTEAD RECHARGEABLE WORKS,SUPPLIES AND SERVICES,TRADING AC - EXTERNAL PURCHASE,4875,P114446-SERVICE-chandlerystock,04/05/2022 00:00,261877,-20.9,MI0200,MIDLAND CHANDLERS LIMITED,25/04/2022 00:00,29/05/2022 00:00,P02-2023
,STANSTEAD RECHARGEABLE WORKS,SUPPLIES AND SERVICES,TRADING AC - EXTERNAL PURCHASE,4875,P117581-SERVICE-chandlery stock,09/05/2022 00:00,261892,598.45,CR0651,CRAFTMASTER PAINTS,25/04/2022 00:00,29/05/2022 00:00,P02-2023
,STANSTEAD RECHARGEABLE WORKS,SUPPLIES AND SERVICES,TRADING AC - EXTERNAL PURCHASE,4875,P117464-SERVICE-chandlery stock,04/05/2022 00:00,261895,5.86,MI0200,MIDLAND CHANDLERS LIMITED,25/04/2022 00:00,29/05/2022 00:00,P02-2023
,STANSTEAD RECHARGEABLE WORKS,SUPPLIES AND SERVICES,TRADING AC - EXTERNAL PURCHASE,4875,P117548-SERVICE-chandlery stock,04/05/2022 00:00,261896,645.12,AQ0033,AQUAFAX LIMITED,25/04/2022 00:00,29/05/2022 00:00,P02-2023
,STANSTEAD RECHARGEABLE WORKS,SUPPLIES AND SERVICES,TRADING AC - EXTERNAL PURCHASE,4875,P117548-SERVICE-chandlery stock,04/05/2022 00:00,261897,89.32,AQ0033,AQUAFAX LIMITED,25/04/2022 00:00,29/05/2022 00:00,P02-2023
,STANSTEAD RECHARGEABLE WORKS,SUPPLIES AND SERVICES,TRADING AC - EXTERNAL PURCHASE,4875,P117548-SERVICE-chandlery stock,04/05/2022 00:00,261898,16.83,AQ0033,AQUAFAX LIMITED,25/04/2022 00:00,29/05/2022 00:00,P02-2023
,STANSTEAD RECHARGEABLE WORKS,SUPPLIES AND SERVICES,TRADING AC - EXTERNAL PURCHASE,4875,P117584-SERVICE-chandlery stock,04/05/2022 00:00,261907,134.86,SC0057,SCREWFIX DIRECT LTD,25/04/2022 00:00,29/05/2022 00:00,P02-2023
,STANSTEAD RECHARGEABLE WORKS,SUPPLIES AND SERVICES,TRADING AC - EXTERNAL PURCHASE,4875,P117548-SERVICE-chandlery stock,04/05/2022 00:00,261957,2,AQ0033,AQUAFAX LIMITED,25/04/2022 00:00,29/05/2022 00:00,P02-2023
,STANSTEAD RECHARGEABLE WORKS,SUPPLIES AND SERVICES,TRADING AC - EXTERNAL PURCHASE,4875,P117582-SERVICE-chandlery stock,04/05/2022 00:00,261985,339.53,CE0510,CENTURION EUROPE LIMITED,25/04/2022 00:00,29/05/2022 00:00,P02-2023
,STANSTEAD RECHARGEABLE WORKS,SUPPLIES AND SERVICES,TRADING AC - EXTERNAL PURCHASE,4875,P117464-SERVICE-chandlery stock,04/05/2022 00:00,261996,66.62,MI0200,MIDLAND CHANDLERS LIMITED,25/04/2022 00:00,29/05/2022 00:00,P02-2023
,STANSTEAD RECHARGEABLE WORKS,SUPPLIES AND SERVICES,TRADING AC - EXTERNAL PURCHASE,4875,P117464-SERVICE-chandlery stock,04/05/2022 00:00,261997,56,MI0200,MIDLAND CHANDLERS LIMITED,25/04/2022 00:00,29/05/2022 00:00,P02-2023
,STANSTEAD RECHARGEABLE WORKS,SUPPLIES AND SERVICES,TRADING AC - EXTERNAL PURCHASE,4875,P117657-SERVICE-chandlery stock,04/05/2022 00:00,262141,222.24,AQ0033,AQUAFAX LIMITED,25/04/2022 00:00,29/05/2022 00:00,P02-2023
,STANSTEAD RECHARGEABLE WORKS,SUPPLIES AND SERVICES,TRADING AC - EXTERNAL PURCHASE,4875,P117657-SERVICE-chandlery stock,04/05/2022 00:00,262142,37.23,AQ0033,AQUAFAX LIMITED,25/04/2022 00:00,29/05/2022 00:00,P02-2023
,STANSTEAD RECHARGEABLE WORKS,SUPPLIES AND SERVICES,TRADING AC - EXTERNAL PURCHASE,4875,P117548-SERVICE-chandlery stock,04/05/2022 00:00,262143,32.04,AQ0033,AQUAFAX LIMITED,25/04/2022 00:00,29/05/2022 00:00,P02-2023
,STANSTEAD RECHARGEABLE WORKS,SUPPLIES AND SERVICES,TRADING AC - EXTERNAL PURCHASE,4875,P117648-SERVICE-refreshments,09/05/2022 00:00,262157,421.28,360001,BIDFOOD,25/04/2022 00:00,29/05/2022 00:00,P02-2023
,STANSTEAD RECHARGEABLE WORKS,SUPPLIES AND SERVICES,TRADING AC - EXTERNAL PURCHASE,4875,P117779-SERVICE-chandlery stock auditors (march/april 22),04/05/2022 00:00,262197,564,VE0038,VENNERS LTD,25/04/2022 00:00,29/05/2022 00:00,P02-2023
,STANSTEAD RECHARGEABLE WORKS,SUPPLIES AND SERVICES,TRADING AC - EXTERNAL PURCHASE,4875,P117682-SERVICE-logs and charcoal,04/05/2022 00:00,262206,225,HA0371,HARTS OF OAK,25/04/2022 00:00,29/05/2022 00:00,P02-2023
,STANSTEAD RECHARGEABLE WORKS,SUPPLIES AND SERVICES,TRADING AC - EXTERNAL PURCHASE,4875,P117548-SERVICE-chandlery stock,04/05/2022 00:00,262211,4.11,AQ0033,AQUAFAX LIMITED,25/04/2022 00:00,29/05/2022 00:00,P02-2023
,STANSTEAD RECHARGEABLE WORKS,SUPPLIES AND SERVICES,TRADING AC - EXTERNAL PURCHASE,4875,P117464-SERVICE-chandlery stock,04/05/2022 00:00,262212,152.77,MI0200,MIDLAND CHANDLERS LIMITED,25/04/2022 00:00,29/05/2022 00:00,P02-2023
,STANSTEAD RECHARGEABLE WORKS,SUPPLIES AND SERVICES,TRADING AC - EXTERNAL PURCHASE,4875,P117548-SERVICE-chandlery stock,04/05/2022 00:00,262357,9.22,AQ0033,AQUAFAX LIMITED,25/04/2022 00:00,29/05/2022 00:00,P02-2023
,STANSTEAD RECHARGEABLE WORKS,SUPPLIES AND SERVICES,TRADING AC - EXTERNAL PURCHASE,4875,P117706-SERVICE-chandlery stock,04/05/2022 00:00,262358,2.6,MI0200,MIDLAND CHANDLERS LIMITED,25/04/2022 00:00,29/05/2022 00:00,P02-2023
,STANSTEAD RECHARGEABLE WORKS,SUPPLIES AND SERVICES,TRADING AC - EXTERNAL PURCHASE,4875,P117711-SERVICE-chandlery stock,04/05/2022 00:00,262372,415.05,AQ0033,AQUAFAX LIMITED,25/04/2022 00:00,29/05/2022 00:00,P02-2023
,STANSTEAD RECHARGEABLE WORKS,SUPPLIES AND SERVICES,TRADING AC - EXTERNAL PURCHASE,4875,P117706-SERVICE-chandlery stock,04/05/2022 00:00,262373,1531.35,MI0200,MIDLAND CHANDLERS LIMITED,25/04/2022 00:00,29/05/2022 00:00,P02-2023
,STANSTEAD RECHARGEABLE WORKS,SUPPLIES AND SERVICES,TRADING AC - EXTERNAL PURCHASE,4875,P117711-SERVICE-chandlery stock,09/05/2022 00:00,262375,23.33,AQ0033,AQUAFAX LIMITED,25/04/2022 00:00,29/05/2022 00:00,P02-2023
,STANSTEAD RECHARGEABLE WORKS,SUPPLIES AND SERVICES,TRADING AC - EXTERNAL PURCHASE,4875,P117646-SERVICE-2200l red diesel @ 111.05ppl,09/05/2022 00:00,262377,2443.1,SP0543,SPEEDY FUELS LIMITED,25/04/2022 00:00,29/05/2022 00:00,P02-2023
,STANSTEAD RECHARGEABLE WORKS,SUPPLIES AND SERVICES,TRADING AC - EXTERNAL PURCHASE,4875,P117843-SERVICE-paul supplied 15 seals (replaces  PO P116777),29/05/2022 00:00,262380,75,EN0309,PRH ENGINEERING LIMITED,25/04/2022 00:00,29/05/2022 00:00,P02-2023
,STANSTEAD RECHARGEABLE WORKS,SUPPLIES AND SERVICES,TRADING AC - EXTERNAL PURCHASE,4875,P117755-SERVICE-chandlery stock,09/05/2022 00:00,262418,656.84,CR0651,CRAFTMASTER PAINTS,25/04/2022 00:00,29/05/2022 00:00,P02-2023
,STANSTEAD RECHARGEABLE WORKS,SUPPLIES AND SERVICES,TRADING AC - EXTERNAL PURCHASE,4875,P117580-SERVICE-chandlery stock,09/05/2022 00:00,262434,916.72,EC0394,MANBAT LTD T/AS,25/04/2022 00:00,29/05/2022 00:00,P02-2023
,STANSTEAD RECHARGEABLE WORKS,SUPPLIES AND SERVICES,TRADING AC - EXTERNAL PURCHASE,4875,P117716-SERVICE-chandlery stock,09/05/2022 00:00,262435,76.44,CA0660,CALFIRE SPARELINE LIMITED,25/04/2022 00:00,29/05/2022 00:00,P02-2023
,STANSTEAD RECHARGEABLE WORKS,SUPPLIES AND SERVICES,TRADING AC - EXTERNAL PURCHASE,4875,P117773-SERVICE-extend to meet invoice,09/05/2022 00:00,262487,4.53,MI0200,MIDLAND CHANDLERS LIMITED,25/04/2022 00:00,29/05/2022 00:00,P02-2023
,STANSTEAD RECHARGEABLE WORKS,SUPPLIES AND SERVICES,TRADING AC - EXTERNAL PURCHASE,4875,P117773-SERVICE-chandlery stock,09/05/2022 00:00,262487,16.95,MI0200,MIDLAND CHANDLERS LIMITED,25/04/2022 00:00,29/05/2022 00:00,P02-2023
,STANSTEAD RECHARGEABLE WORKS,SUPPLIES AND SERVICES,TRADING AC - EXTERNAL PURCHASE,4875,P117773-SERVICE-chandlery stock,09/05/2022 00:00,262488,587.05,MI0200,MIDLAND CHANDLERS LIMITED,25/04/2022 00:00,29/05/2022 00:00,P02-2023
,STANSTEAD RECHARGEABLE WORKS,SUPPLIES AND SERVICES,TRADING AC - EXTERNAL PURCHASE,4875,P117548-SERVICE-chandlery stock,09/05/2022 00:00,262489,2.3,AQ0033,AQUAFAX LIMITED,25/04/2022 00:00,29/05/2022 00:00,P02-2023
,STANSTEAD RECHARGEABLE WORKS,SUPPLIES AND SERVICES,TRADING AC - EXTERNAL PURCHASE,4875,P117932-SERVICE-calor gas cage rental,09/05/2022 00:00,262662,13,CA0006,CALOR GAS LIMITED,25/04/2022 00:00,29/05/2022 00:00,P02-2023
,STANSTEAD RECHARGEABLE WORKS,SUPPLIES AND SERVICES,TRADING AC - EXTERNAL PURCHASE,4875,P117706-SERVICE-chandlery stock,09/05/2022 00:00,262669,17.85,MI0200,MIDLAND CHANDLERS LIMITED,25/04/2022 00:00,29/05/2022 00:00,P02-2023
,STANSTEAD RECHARGEABLE WORKS,SUPPLIES AND SERVICES,TRADING AC - EXTERNAL PURCHASE,4875,P117464-SERVICE-chandlery stock,23/05/2022 00:00,262670,22.27,MI0200,MIDLAND CHANDLERS LIMITED,25/04/2022 00:00,29/05/2022 00:00,P02-2023
,STANSTEAD RECHARGEABLE WORKS,SUPPLIES AND SERVICES,TRADING AC - EXTERNAL PURCHASE,4875,P117834-SERVICE-chandlery stock,09/05/2022 00:00,262694,1310.15,MI0200,MIDLAND CHANDLERS LIMITED,25/04/2022 00:00,29/05/2022 00:00,P02-2023
,STANSTEAD RECHARGEABLE WORKS,SUPPLIES AND SERVICES,TRADING AC - EXTERNAL PURCHASE,4875,MIDLAND CHANDLERS LIMITED,09/05/2022 00:00,262694,-1310.15,MI0200,MIDLAND CHANDLERS LIMITED,25/04/2022 00:00,29/05/2022 00:00,P02-2023
,STANSTEAD RECHARGEABLE WORKS,SUPPLIES AND SERVICES,TRADING AC - EXTERNAL PURCHASE,4875,MIDLAND CHANDLERS LIMITED,09/05/2022 00:00,262694,1259.15,MI0200,MIDLAND CHANDLERS LIMITED,25/04/2022 00:00,29/05/2022 00:00,P02-2023
,STANSTEAD RECHARGEABLE WORKS,SUPPLIES AND SERVICES,TRADING AC - EXTERNAL PURCHASE,4875,MIDLAND CHANDLERS LIMITED,09/05/2022 00:00,262694,51,MI0200,MIDLAND CHANDLERS LIMITED,25/04/2022 00:00,29/05/2022 00:00,P02-2023
,STANSTEAD RECHARGEABLE WORKS,SUPPLIES AND SERVICES,TRADING AC - EXTERNAL PURCHASE,4875,P117834-SERVICE-chandlery stock,09/05/2022 00:00,262695,15.18,MI0200,MIDLAND CHANDLERS LIMITED,25/04/2022 00:00,29/05/2022 00:00,P02-2023
,STANSTEAD RECHARGEABLE WORKS,SUPPLIES AND SERVICES,TRADING AC - EXTERNAL PURCHASE,4875,P117842-SERVICE-parts and chandlery stock,09/05/2022 00:00,262696,43,MI0200,MIDLAND CHANDLERS LIMITED,25/04/2022 00:00,29/05/2022 00:00,P02-2023
,STANSTEAD RECHARGEABLE WORKS,SUPPLIES AND SERVICES,TRADING AC - EXTERNAL PURCHASE,4875,P117842-SERVICE-parts and chandlery stock,09/05/2022 00:00,262697,136.56,MI0200,MIDLAND CHANDLERS LIMITED,25/04/2022 00:00,29/05/2022 00:00,P02-2023
,STANSTEAD RECHARGEABLE WORKS,SUPPLIES AND SERVICES,TRADING AC - EXTERNAL PURCHASE,4875,P117834-SERVICE-chandlery stock,09/05/2022 00:00,262698,128.25,MI0200,MIDLAND CHANDLERS LIMITED,25/04/2022 00:00,29/05/2022 00:00,P02-2023
,STANSTEAD RECHARGEABLE WORKS,SUPPLIES AND SERVICES,TRADING AC - EXTERNAL PURCHASE,4875,P117548-SERVICE-chandlery stock,09/05/2022 00:00,262700,35.27,AQ0033,AQUAFAX LIMITED,25/04/2022 00:00,29/05/2022 00:00,P02-2023
,STANSTEAD RECHARGEABLE WORKS,SUPPLIES AND SERVICES,TRADING AC - EXTERNAL PURCHASE,4875,P117711-SERVICE-chandlery stock,09/05/2022 00:00,262701,35.27,AQ0033,AQUAFAX LIMITED,25/04/2022 00:00,29/05/2022 00:00,P02-2023
,STANSTEAD RECHARGEABLE WORKS,SUPPLIES AND SERVICES,TRADING AC - EXTERNAL PURCHASE,4875,P117864-SERVICE-chandlery stock,29/05/2022 00:00,262735,154.31,CR0651,CRAFTMASTER PAINTS,25/04/2022 00:00,29/05/2022 00:00,P02-2023
,STANSTEAD RECHARGEABLE WORKS,SUPPLIES AND SERVICES,TRADING AC - EXTERNAL PURCHASE,4875,P117864-SERVICE-chandlery stock,29/05/2022 00:00,262736,93.77,CR0651,CRAFTMASTER PAINTS,25/04/2022 00:00,29/05/2022 00:00,P02-2023
,STANSTEAD RECHARGEABLE WORKS,SUPPLIES AND SERVICES,TRADING AC - EXTERNAL PURCHASE,4875,P117834-SERVICE-chandlery stock,23/05/2022 00:00,262762,35.82,MI0200,MIDLAND CHANDLERS LIMITED,25/04/2022 00:00,29/05/2022 00:00,P02-2023
,STANSTEAD RECHARGEABLE WORKS,SUPPLIES AND SERVICES,TRADING AC - EXTERNAL PURCHASE,4875,P117834-SERVICE-chandlery stock,23/05/2022 00:00,262763,49.53,MI0200,MIDLAND CHANDLERS LIMITED,25/04/2022 00:00,29/05/2022 00:00,P02-2023
,STANSTEAD RECHARGEABLE WORKS,SUPPLIES AND SERVICES,TRADING AC - EXTERNAL PURCHASE,4875,P117855-SERVICE-CUSTOMER ORDER,23/05/2022 00:00,262866,40.22,BE0198,BETA MARINE LIMITED,25/04/2022 00:00,29/05/2022 00:00,P02-2023
,STANSTEAD RECHARGEABLE WORKS,SUPPLIES AND SERVICES,TRADING AC - EXTERNAL PURCHASE,4875,P117832-SERVICE-chandlery stock,23/05/2022 00:00,262872,782.43,DS0201,DSM GROUP,25/04/2022 00:00,29/05/2022 00:00,P02-2023
,STANSTEAD RECHARGEABLE WORKS,SUPPLIES AND SERVICES,TRADING AC - EXTERNAL PURCHASE,4875,P117832-SERVICE-chandlery stock,23/05/2022 00:00,262873,8.33,DS0201,DSM GROUP,25/04/2022 00:00,29/05/2022 00:00,P02-2023
,STANSTEAD RECHARGEABLE WORKS,SUPPLIES AND SERVICES,TRADING AC - EXTERNAL PURCHASE,4875,P117464-SERVICE-chandlery stock,23/05/2022 00:00,262882,10.04,MI0200,MIDLAND CHANDLERS LIMITED,25/04/2022 00:00,29/05/2022 00:00,P02-2023
,STANSTEAD RECHARGEABLE WORKS,SUPPLIES AND SERVICES,TRADING AC - EXTERNAL PURCHASE,4875,P117834-SERVICE-chandlery stock,23/05/2022 00:00,262883,39.3,MI0200,MIDLAND CHANDLERS LIMITED,25/04/2022 00:00,29/05/2022 00:00,P02-2023
,STANSTEAD RECHARGEABLE WORKS,SUPPLIES AND SERVICES,TRADING AC - EXTERNAL PURCHASE,4875,P117465-SERVICE-coal and gas,23/05/2022 00:00,262932,1018.65,SM0664,KG SMITH & SON,25/04/2022 00:00,29/05/2022 00:00,P02-2023
,STANSTEAD RECHARGEABLE WORKS,SUPPLIES AND SERVICES,TRADING AC - EXTERNAL PURCHASE,4875,P117707-SERVICE-gas order,29/05/2022 00:00,262933,1052.57,SM0664,KG SMITH & SON,25/04/2022 00:00,29/05/2022 00:00,P02-2023
,STANSTEAD RECHARGEABLE WORKS,SUPPLIES AND SERVICES,TRADING AC - EXTERNAL PURCHASE,4875,P117519-SERVICE-chandlery stock,29/05/2022 00:00,262944,2.83,AS0036,ASAP SUPPLIES,25/04/2022 00:00,29/05/2022 00:00,P02-2023
,STANSTEAD RECHARGEABLE WORKS,SUPPLIES AND SERVICES,TRADING AC - EXTERNAL PURCHASE,4875,P117519-SERVICE-chandlery stock,29/05/2022 00:00,262945,92.11,AS0036,ASAP SUPPLIES,25/04/2022 00:00,29/05/2022 00:00,P02-2023
,STANSTEAD RECHARGEABLE WORKS,SUPPLIES AND SERVICES,TRADING AC - EXTERNAL PURCHASE,4875,P117655-SERVICE-chandlery stock,23/05/2022 00:00,262946,104.66,AS0036,ASAP SUPPLIES,25/04/2022 00:00,29/05/2022 00:00,P02-2023
,STANSTEAD RECHARGEABLE WORKS,SUPPLIES AND SERVICES,TRADING AC - EXTERNAL PURCHASE,4875,P117700-SERVICE-chandlery stock,23/05/2022 00:00,262947,43.53,AS0036,ASAP SUPPLIES,25/04/2022 00:00,29/05/2022 00:00,P02-2023
,STANSTEAD RECHARGEABLE WORKS,SUPPLIES AND SERVICES,TRADING AC - EXTERNAL PURCHASE,4875,P117828-SERVICE-customer order,23/05/2022 00:00,262948,30.12,AS0036,ASAP SUPPLIES,25/04/2022 00:00,29/05/2022 00:00,P02-2023
,STANSTEAD RECHARGEABLE WORKS,SUPPLIES AND SERVICES,TRADING AC - EXTERNAL PURCHASE,4875,P117846-SERVICE-2200l red diesel @ 111.95ppl,23/05/2022 00:00,262952,2462.9,TE0052,TEAM FLITWICK,25/04/2022 00:00,29/05/2022 00:00,P02-2023
,STANSTEAD RECHARGEABLE WORKS,SUPPLIES AND SERVICES,TRADING AC - EXTERNAL PURCHASE,4875,P117899-SERVICE-customer order,29/05/2022 00:00,262961,153.73,EP0353,E P BARRUS LTD,25/04/2022 00:00,29/05/2022 00:00,P02-2023
,STANSTEAD RECHARGEABLE WORKS,SUPPLIES AND SERVICES,TRADING AC - EXTERNAL PURCHASE,4875,P117834-SERVICE-chandlery stock,23/05/2022 00:00,262966,66.04,MI0200,MIDLAND CHANDLERS LIMITED,25/04/2022 00:00,29/05/2022 00:00,P02-2023
,STANSTEAD RECHARGEABLE WORKS,SUPPLIES AND SERVICES,TRADING AC - EXTERNAL PURCHASE,4875,P117924-SERVICE-chandlery stock,23/05/2022 00:00,262990,311.14,AQ0033,AQUAFAX LIMITED,25/04/2022 00:00,29/05/2022 00:00,P02-2023
,STANSTEAD RECHARGEABLE WORKS,SUPPLIES AND SERVICES,TRADING AC - EXTERNAL PURCHASE,4875,P117464-SERVICE-chandlery stock,23/05/2022 00:00,263034,41.15,MI0200,MIDLAND CHANDLERS LIMITED,25/04/2022 00:00,29/05/2022 00:00,P02-2023
,STANSTEAD RECHARGEABLE WORKS,SUPPLIES AND SERVICES,TRADING AC - EXTERNAL PURCHASE,4875,P117464-SERVICE-chandlery stock,23/05/2022 00:00,263035,31.64,MI0200,MIDLAND CHANDLERS LIMITED,25/04/2022 00:00,29/05/2022 00:00,P02-2023
,STANSTEAD RECHARGEABLE WORKS,SUPPLIES AND SERVICES,TRADING AC - EXTERNAL PURCHASE,4875,P117830-SERVICE-chandlery stock,23/05/2022 00:00,263161,758.92,CE0510,CENTURION EUROPE LIMITED,25/04/2022 00:00,29/05/2022 00:00,P02-2023
,STANSTEAD RECHARGEABLE WORKS,SUPPLIES AND SERVICES,TRADING AC - EXTERNAL PURCHASE,4875,P117548-SERVICE-chandlery stock,23/05/2022 00:00,263167,9.77,AQ0033,AQUAFAX LIMITED,25/04/2022 00:00,29/05/2022 00:00,P02-2023
,STANSTEAD RECHARGEABLE WORKS,SUPPLIES AND SERVICES,TRADING AC - EXTERNAL PURCHASE,4875,P117971-SERVICE-Chandlery stock,29/05/2022 00:00,263236,66.55,CA0660,CALFIRE SPARELINE LIMITED,25/04/2022 00:00,29/05/2022 00:00,P02-2023
,STANSTEAD RECHARGEABLE WORKS,SUPPLIES AND SERVICES,TRADING AC - EXTERNAL PURCHASE,4875,P117971-SERVICE-delivery charge,29/05/2022 00:00,263236,12.5,CA0660,CALFIRE SPARELINE LIMITED,25/04/2022 00:00,29/05/2022 00:00,P02-2023
,STANSTEAD RECHARGEABLE WORKS,SUPPLIES AND SERVICES,TRADING AC - EXTERNAL PURCHASE,4875,P117464-SERVICE-chandlery stock,29/05/2022 00:00,263256,29.28,MI0200,MIDLAND CHANDLERS LIMITED,25/04/2022 00:00,29/05/2022 00:00,P02-2023
,STANSTEAD RECHARGEABLE WORKS,SUPPLIES AND SERVICES,TRADING AC - EXTERNAL PURCHASE,4875,P118019-SERVICE-CHANDLERY STOCK,23/05/2022 00:00,263257,2029.02,MI0200,MIDLAND CHANDLERS LIMITED,25/04/2022 00:00,29/05/2022 00:00,P02-2023
,STANSTEAD RECHARGEABLE WORKS,SUPPLIES AND SERVICES,TRADING AC - EXTERNAL PURCHASE,4875,P118021-SERVICE-CHANDLERY STOCK,23/05/2022 00:00,263264,268.27,AQ0033,AQUAFAX LIMITED,25/04/2022 00:00,29/05/2022 00:00,P02-2023
,STANSTEAD RECHARGEABLE WORKS,SUPPLIES AND SERVICES,TRADING AC - EXTERNAL PURCHASE,4875,P118025-SERVICE-craftmaster paints for chandlery,23/05/2022 00:00,263269,439.43,CR0651,CRAFTMASTER PAINTS,25/04/2022 00:00,29/05/2022 00:00,P02-2023
,STANSTEAD RECHARGEABLE WORKS,SUPPLIES AND SERVICES,TRADING AC - EXTERNAL PURCHASE,4875,P118019-SERVICE-CHANDLERY STOCK,23/05/2022 00:00,263323,93.36,MI0200,MIDLAND CHANDLERS LIMITED,25/04/2022 00:00,29/05/2022 00:00,P02-2023
,STANSTEAD RECHARGEABLE WORKS,SUPPLIES AND SERVICES,TRADING AC - EXTERNAL PURCHASE,4875,P118019-SERVICE-CHANDLERY STOCK,23/05/2022 00:00,263340,70.58,MI0200,MIDLAND CHANDLERS LIMITED,25/04/2022 00:00,29/05/2022 00:00,P02-2023
,STANSTEAD RECHARGEABLE WORKS,SUPPLIES AND SERVICES,TRADING AC - EXTERNAL PURCHASE,4875,P117464-SERVICE-chandlery stock,23/05/2022 00:00,263341,25.03,MI0200,MIDLAND CHANDLERS LIMITED,25/04/2022 00:00,29/05/2022 00:00,P02-2023
,STANSTEAD RECHARGEABLE WORKS,SUPPLIES AND SERVICES,TRADING AC - EXTERNAL PURCHASE,4875,P117711-SERVICE-chandlery stock,23/05/2022 00:00,263435,17.46,AQ0033,AQUAFAX LIMITED,25/04/2022 00:00,29/05/2022 00:00,P02-2023
,STANSTEAD RECHARGEABLE WORKS,SUPPLIES AND SERVICES,TRADING AC - EXTERNAL PURCHASE,4875,P118058-SERVICE-chandlery stock,29/05/2022 00:00,263436,593.55,AQ0033,AQUAFAX LIMITED,25/04/2022 00:00,29/05/2022 00:00,P02-2023
,STANSTEAD RECHARGEABLE WORKS,SUPPLIES AND SERVICES,TRADING AC - EXTERNAL PURCHASE,4875,P118058-SERVICE-chandlery stock,29/05/2022 00:00,263437,68.02,AQ0033,AQUAFAX LIMITED,25/04/2022 00:00,29/05/2022 00:00,P02-2023
,STANSTEAD RECHARGEABLE WORKS,SUPPLIES AND SERVICES,TRADING AC - EXTERNAL PURCHASE,4875,P118069-SERVICE-chandlery stock,23/05/2022 00:00,263463,415.74,MI0200,MIDLAND CHANDLERS LIMITED,25/04/2022 00:00,29/05/2022 00:00,P02-2023
,STANSTEAD RECHARGEABLE WORKS,SUPPLIES AND SERVICES,TRADING AC - EXTERNAL PURCHASE,4875,P118069-SERVICE-chandlery stock,23/05/2022 00:00,263464,34.26,MI0200,MIDLAND CHANDLERS LIMITED,25/04/2022 00:00,29/05/2022 00:00,P02-2023
,STANSTEAD RECHARGEABLE WORKS,SUPPLIES AND SERVICES,TRADING AC - EXTERNAL PURCHASE,4875,P117899-SERVICE-customer order,29/05/2022 00:00,263465,-41.34,EP0353,E P BARRUS LTD,25/04/2022 00:00,29/05/2022 00:00,P02-2023
,STANSTEAD RECHARGEABLE WORKS,SUPPLIES AND SERVICES,TRADING AC - EXTERNAL PURCHASE,4875,KG SMITH & SON,23/05/2022 00:00,263477,806,SM0664,KG SMITH & SON,25/04/2022 00:00,29/05/2022 00:00,P02-2023
,STANSTEAD RECHARGEABLE WORKS,SUPPLIES AND SERVICES,TRADING AC - EXTERNAL PURCHASE,4875,P118036-SERVICE-coal and gas,23/05/2022 00:00,263477,1171,SM0664,KG SMITH & SON,25/04/2022 00:00,29/05/2022 00:00,P02-2023
,STANSTEAD RECHARGEABLE WORKS,SUPPLIES AND SERVICES,TRADING AC - EXTERNAL PURCHASE,4875,KG SMITH & SON,23/05/2022 00:00,263477,-1171,SM0664,KG SMITH & SON,25/04/2022 00:00,29/05/2022 00:00,P02-2023
,STANSTEAD RECHARGEABLE WORKS,SUPPLIES AND SERVICES,TRADING AC - EXTERNAL PURCHASE,4875,KG SMITH & SON,23/05/2022 00:00,263477,365,SM0664,KG SMITH & SON,25/04/2022 00:00,29/05/2022 00:00,P02-2023
,STANSTEAD RECHARGEABLE WORKS,SUPPLIES AND SERVICES,TRADING AC - EXTERNAL PURCHASE,4875,P118036-SERVICE-coal and gas,29/05/2022 00:00,263478,-41.5,SM0664,KG SMITH & SON,25/04/2022 00:00,29/05/2022 00:00,P02-2023
,STANSTEAD RECHARGEABLE WORKS,SUPPLIES AND SERVICES,TRADING AC - EXTERNAL PURCHASE,4875,P118069-SERVICE-chandlery stock,29/05/2022 00:00,263488,40.09,MI0200,MIDLAND CHANDLERS LIMITED,25/04/2022 00:00,29/05/2022 00:00,P02-2023
,STANSTEAD RECHARGEABLE WORKS,SUPPLIES AND SERVICES,TRADING AC - EXTERNAL PURCHASE,4875,P118087-SERVICE-chandlery stock,29/05/2022 00:00,263510,1040.97,AQ0033,AQUAFAX LIMITED,25/04/2022 00:00,29/05/2022 00:00,P02-2023
,STANSTEAD RECHARGEABLE WORKS,SUPPLIES AND SERVICES,TRADING AC - EXTERNAL PURCHASE,4875,P117464-SERVICE-chandlery stock,29/05/2022 00:00,263513,9.57,MI0200,MIDLAND CHANDLERS LIMITED,25/04/2022 00:00,29/05/2022 00:00,P02-2023
,STANSTEAD RECHARGEABLE WORKS,SUPPLIES AND SERVICES,TRADING AC - EXTERNAL PURCHASE,4875,P118069-SERVICE-chandlery stock,29/05/2022 00:00,263513,19.71,MI0200,MIDLAND CHANDLERS LIMITED,25/04/2022 00:00,29/05/2022 00:00,P02-2023
,STANSTEAD RECHARGEABLE WORKS,SUPPLIES AND SERVICES,TRADING AC - EXTERNAL PURCHASE,4875,MIDLAND CHANDLERS LIMITED,29/05/2022 00:00,263527,14.16,MI0200,MIDLAND CHANDLERS LIMITED,25/04/2022 00:00,29/05/2022 00:00,P02-2023
,STANSTEAD RECHARGEABLE WORKS,SUPPLIES AND SERVICES,TRADING AC - EXTERNAL PURCHASE,4875,P118104-SERVICE-chandlery stock,29/05/2022 00:00,263527,331.09,MI0200,MIDLAND CHANDLERS LIMITED,25/04/2022 00:00,29/05/2022 00:00,P02-2023
,STANSTEAD RECHARGEABLE WORKS,SUPPLIES AND SERVICES,TRADING AC - EXTERNAL PURCHASE,4875,MIDLAND CHANDLERS LIMITED,29/05/2022 00:00,263527,-331.09,MI0200,MIDLAND CHANDLERS LIMITED,25/04/2022 00:00,29/05/2022 00:00,P02-2023
,STANSTEAD RECHARGEABLE WORKS,SUPPLIES AND SERVICES,TRADING AC - EXTERNAL PURCHASE,4875,MIDLAND CHANDLERS LIMITED,29/05/2022 00:00,263527,316.93,MI0200,MIDLAND CHANDLERS LIMITED,25/04/2022 00:00,29/05/2022 00:00,P02-2023
,STANSTEAD RECHARGEABLE WORKS,SUPPLIES AND SERVICES,TRADING AC - EXTERNAL PURCHASE,4875,P117464-SERVICE-chandlery stock,29/05/2022 00:00,263534,-29.28,MI0200,MIDLAND CHANDLERS LIMITED,25/04/2022 00:00,29/05/2022 00:00,P02-2023
,STANSTEAD RECHARGEABLE WORKS,SUPPLIES AND SERVICES,TRADING AC - EXTERNAL PURCHASE,4875,P118103-SERVICE-buffalo board,29/05/2022 00:00,263535,216,TI0068,A10 TIMBER COMPANY,25/04/2022 00:00,29/05/2022 00:00,P02-2023
,STANSTEAD RECHARGEABLE WORKS,SUPPLIES AND SERVICES,TRADING AC - EXTERNAL PURCHASE,4875,P118069-SERVICE-chandlery stock,29/05/2022 00:00,263651,15.88,MI0200,MIDLAND CHANDLERS LIMITED,25/04/2022 00:00,29/05/2022 00:00,P02-2023
,STANSTEAD RECHARGEABLE WORKS,SUPPLIES AND SERVICES,TRADING AC - EXTERNAL PURCHASE,4875,P118104-SERVICE-chandlery stock,29/05/2022 00:00,263651,10.28,MI0200,MIDLAND CHANDLERS LIMITED,25/04/2022 00:00,29/05/2022 00:00,P02-2023
,STANSTEAD RECHARGEABLE WORKS,SUPPLIES AND SERVICES,TRADING AC - EXTERNAL PURCHASE,4875,P118019-SERVICE-CHANDLERY STOCK,29/05/2022 00:00,263651,13.93,MI0200,MIDLAND CHANDLERS LIMITED,25/04/2022 00:00,29/05/2022 00:00,P02-2023
,STANSTEAD RECHARGEABLE WORKS,SUPPLIES AND SERVICES,TRADING AC - EXTERNAL PURCHASE,4875,P118087-SERVICE-chandlery stock,29/05/2022 00:00,263686,44.28,AQ0033,AQUAFAX LIMITED,25/04/2022 00:00,29/05/2022 00:00,P02-2023
,STANSTEAD RECHARGEABLE WORKS,SUPPLIES AND SERVICES,TRADING AC - EXTERNAL PURCHASE,4875,P118184-SERVICE-increase to meet invoice,29/05/2022 00:00,263695,0.58,CR0651,CRAFTMASTER PAINTS,25/04/2022 00:00,29/05/2022 00:00,P02-2023
,STANSTEAD RECHARGEABLE WORKS,SUPPLIES AND SERVICES,TRADING AC - EXTERNAL PURCHASE,4875,P118184-SERVICE-chandlery stock,29/05/2022 00:00,263695,469.42,CR0651,CRAFTMASTER PAINTS,25/04/2022 00:00,29/05/2022 00:00,P02-2023
,STANSTEAD RECHARGEABLE WORKS,SUPPLIES AND SERVICES,TRADING AC - EXTERNAL PURCHASE,4875,P118021-SERVICE-CHANDLERY STOCK,29/05/2022 00:00,263728,23.38,AQ0033,AQUAFAX LIMITED,25/04/2022 00:00,29/05/2022 00:00,P02-2023
,LEE VALLEY CAMPSITE,SUPPLIES AND SERVICES,TRADING AC - EXTERNAL PURCHASE,4875,P117796-SERVICE-10x 47 kg Stock,28/04/2022 00:00,262182,719.55,FL0147,FLOGAS BRITAIN LIMITED,25/04/2022 00:00,29/05/2022 00:00,P02-2023
,LV LEISURE CENTRE CAMPSITE,SUPPLIES AND SERVICES,TRADING AC - EXTERNAL PURCHASE,4875,P117999-SERVICE-Coffe supplies shop,18/05/2022 00:00,263011,362.69,RI0176,RIJO 42 INGREDIENTS LIMITED,25/04/2022 00:00,29/05/2022 00:00,P02-2023
,LV LEISURE CENTRE CAMPSITE,SUPPLIES AND SERVICES,TRADING AC - EXTERNAL PURCHASE,4875,RIJO 42 INGREDIENTS LIMITED,18/05/2022 00:00,263011,-362.69,RI0176,RIJO 42 INGREDIENTS LIMITED,25/04/2022 00:00,29/05/2022 00:00,P02-2023
,LV LEISURE CENTRE CAMPSITE,SUPPLIES AND SERVICES,TRADING AC - EXTERNAL PURCHASE,4875,RIJO 42 INGREDIENTS LIMITED,18/05/2022 00:00,263011,132.98,RI0176,RIJO 42 INGREDIENTS LIMITED,25/04/2022 00:00,29/05/2022 00:00,P02-2023
,LV LEISURE CENTRE CAMPSITE,SUPPLIES AND SERVICES,TRADING AC - EXTERNAL PURCHASE,4875,RIJO 42 INGREDIENTS LIMITED,18/05/2022 00:00,263011,229.71,RI0176,RIJO 42 INGREDIENTS LIMITED,25/04/2022 00:00,29/05/2022 00:00,P02-2023
,LV LEISURE CENTRE CAMPSITE,SUPPLIES AND SERVICES,TRADING AC - EXTERNAL PURCHASE,4875,P118004-SERVICE-Stationary,18/05/2022 00:00,263041,32.12,TH0008,JKL SOLUTIONS LTD,25/04/2022 00:00,29/05/2022 00:00,P02-2023
,LEE VALLEY CARAVAN PARK,SUPPLIES AND SERVICES,BOTTLED GAS,4877,P117868-SERVICE-7 x 47kg Gas Bottles,24/05/2022 00:00,263504,556.85,CA0006,CALOR GAS LIMITED,25/04/2022 00:00,29/05/2022 00:00,P02-2023
,LV LEISURE CENTRE CAMPSITE,SUPPLIES AND SERVICES,BOTTLED GAS,4877,P117994-SERVICE-8x 6kg gas bottles,24/05/2022 00:00,263503,161.23,CA0006,CALOR GAS LIMITED,25/04/2022 00:00,29/05/2022 00:00,P02-2023
CEO,CHIEF EXECUTIVE,SUPPLIES AND SERVICES,UNRECONCILED COMPANY CARD EXP,4880,P ANDREWS - MAY 2022 CREDIT CARD,06/05/2022 00:00,262850,161.84,NA0007,NATWEST CARD CENTRE,25/04/2022 00:00,29/05/2022 00:00,P02-2023
CEO,PR/COMMUNICATIONS,SUPPLIES AND SERVICES,UNRECONCILED COMPANY CARD EXP,4880,S BROMBERG  - MAY 2022 CREDIT CARD,06/05/2022 00:00,262850,235.69,NA0007,NATWEST CARD CENTRE,25/04/2022 00:00,29/05/2022 00:00,P02-2023
R&B,DEMOCRATIC REPRESENTATION & MA,SUPPLIES AND SERVICES,UNRECONCILED COMPANY CARD EXP,4880,S BERTSCHIN  - MAY 2022 CREDIT CARD,06/05/2022 00:00,262850,42,NA0007,NATWEST CARD CENTRE,25/04/2022 00:00,29/05/2022 00:00,P02-2023
R&B,FINANCE & RESOURCES MANAGEMENT,SUPPLIES AND SERVICES,UNRECONCILED COMPANY CARD EXP,4880,L READ  - MAY 2022 CREDIT CARD,06/05/2022 00:00,262850,590,NA0007,NATWEST CARD CENTRE,25/04/2022 00:00,29/05/2022 00:00,P02-2023
R&B,INFORMATION TECHNOLOGY,SUPPLIES AND SERVICES,UNRECONCILED COMPANY CARD EXP,4880,S CLARK  - MAY 2022 CREDIT CARD,06/05/2022 00:00,262850,879.27,NA0007,NATWEST CARD CENTRE,25/04/2022 00:00,29/05/2022 00:00,P02-2023
,LEE VALLEY MARINA SPRINGFIELD,SUPPLIES AND SERVICES,UNRECONCILED COMPANY CARD EXP,4880,T BEAN  - MAY 2022 CREDIT CARD,06/05/2022 00:00,262850,96.95,NA0007,NATWEST CARD CENTRE,25/04/2022 00:00,29/05/2022 00:00,P02-2023
,LEE VALLEY MARINA STANSTEAD,SUPPLIES AND SERVICES,UNRECONCILED COMPANY CARD EXP,4880,C BAKER  - MAY 2022 CREDIT CARD,06/05/2022 00:00,262850,75,NA0007,NATWEST CARD CENTRE,25/04/2022 00:00,29/05/2022 00:00,P02-2023
,LEE VALLEY CAMPSITE,SUPPLIES AND SERVICES,UNRECONCILED COMPANY CARD EXP,4880,C CARTER  - MAY 2022 CREDIT CARD,06/05/2022 00:00,262850,3098.38,NA0007,NATWEST CARD CENTRE,25/04/2022 00:00,29/05/2022 00:00,P02-2023
,LEE VALLEY CARAVAN PARK,SUPPLIES AND SERVICES,UNRECONCILED COMPANY CARD EXP,4880,I RUSSELL  - MAY 2022 CREDIT CARD,06/05/2022 00:00,262850,1376.24,NA0007,NATWEST CARD CENTRE,25/04/2022 00:00,29/05/2022 00:00,P02-2023
,LEE VALLEY CARAVAN PARK,SUPPLIES AND SERVICES,UNRECONCILED COMPANY CARD EXP,4880,J HETERINGTON  - MAY 2022 CREDIT CARD,06/05/2022 00:00,262850,1350.41,NA0007,NATWEST CARD CENTRE,25/04/2022 00:00,29/05/2022 00:00,P02-2023
P&V,MYDDELTON HOUSE GARDENS,SUPPLIES AND SERVICES,UNRECONCILED COMPANY CARD EXP,4880,R HARMES  - MAY 2022 CREDIT CARD,06/05/2022 00:00,262850,469.11,NA0007,NATWEST CARD CENTRE,25/04/2022 00:00,29/05/2022 00:00,P02-2023
P&V,OPERATIONAL MANAGEMENT (L&E),SUPPLIES AND SERVICES,UNRECONCILED COMPANY CARD EXP,4880,D HUTLEY  - MAY 2022 CREDIT CARD,06/05/2022 00:00,262850,137.26,NA0007,NATWEST CARD CENTRE,25/04/2022 00:00,29/05/2022 00:00,P02-2023
P&V,OPERATIONAL MANAGEMENT (L&E),SUPPLIES AND SERVICES,UNRECONCILED COMPANY CARD EXP,4880,J CARNEY  - MAY 2022 CREDIT CARD,06/05/2022 00:00,262850,252,NA0007,NATWEST CARD CENTRE,25/04/2022 00:00,29/05/2022 00:00,P02-2023
P&V,POLICY & PERFORMANCE (L&E),SUPPLIES AND SERVICES,UNRECONCILED COMPANY CARD EXP,4880,A SACKETT  - MAY 2022 CREDIT CARD,06/05/2022 00:00,262850,190.74,NA0007,NATWEST CARD CENTRE,25/04/2022 00:00,29/05/2022 00:00,P02-2023
,LEE VALLEY VELOPARK,SUPPLIES AND SERVICES,UNRECONCILED COMPANY CARD EXP,4880,J NORTHROP  - MAY 2022 CREDIT CARD,06/05/2022 00:00,262850,-31.64,NA0007,NATWEST CARD CENTRE,25/04/2022 00:00,29/05/2022 00:00,P02-2023
,LEE VALLEY WHITE WATER CENTRE,SUPPLIES AND SERVICES,UNRECONCILED COMPANY CARD EXP,4880,T RUTLAND  - MAY 2022 CREDIT CARD,06/05/2022 00:00,262850,-31.64,NA0007,NATWEST CARD CENTRE,25/04/2022 00:00,29/05/2022 00:00,P02-2023
,LV WHITE WATER CATERING,SUPPLIES AND SERVICES,UNRECONCILED COMPANY CARD EXP,4880,J MACMILLAN  - MAY 2022 CREDIT CARD,06/05/2022 00:00,262850,-31.64,NA0007,NATWEST CARD CENTRE,25/04/2022 00:00,29/05/2022 00:00,P02-2023
CEO,COMMERCIAL ACCOMMODATION,SUPPLIES AND SERVICES,OTHER EXPENSES,4899,P117468-SERVICE-Land Registry Fees,09/05/2022 00:00,262660,24,HM0032,HM LAND REGISTRY,25/04/2022 00:00,29/05/2022 00:00,P02-2023
CEO,COMMERCIAL ACCOMMODATION,SUPPLIES AND SERVICES,OTHER EXPENSES,4899,P117981-SERVICE-Certificate of Value for Rye House Moorings,16/05/2022 00:00,262724,375,CR0472,CROSTHWAITE LIMITED,25/04/2022 00:00,29/05/2022 00:00,P02-2023
CEO,COMMERCIAL ACCOMMODATION,SUPPLIES AND SERVICES,OTHER EXPENSES,4899,P117468-SERVICE-Land Registry Fees,09/05/2022 00:00,262936,3,HM0032,HM LAND REGISTRY,25/04/2022 00:00,29/05/2022 00:00,P02-2023
CEO,COMMERCIAL ACCOMMODATION,SUPPLIES AND SERVICES,OTHER EXPENSES,4899,P117468-SERVICE-Land Registry Fees,16/05/2022 00:00,263186,3,HM0032,HM LAND REGISTRY,25/04/2022 00:00,29/05/2022 00:00,P02-2023
,LEE VALLEY CAMPSITE,SUPPLIES AND SERVICES,OTHER EXPENSES,4899,P117805-SERVICE-Stocktake - 14/04/22,28/04/2022 00:00,262198,141,VE0038,VENNERS LTD,25/04/2022 00:00,29/05/2022 00:00,P02-2023
,LEE VALLEY CAMPSITE,SUPPLIES AND SERVICES,OTHER EXPENSES,4899,P117820-SERVICE-buiness membership  fee,04/05/2022 00:00,262369,83.33,AM0406,AMAZON PAYMENTS UK LIMITED,25/04/2022 00:00,29/05/2022 00:00,P02-2023
,LEE VALLEY CAMPSITE,SUPPLIES AND SERVICES,OTHER EXPENSES,4899,P117774-SERVICE-Master Lock Key Safe,04/05/2022 00:00,262465,104.86,AM0406,AMAZON PAYMENTS UK LIMITED,25/04/2022 00:00,29/05/2022 00:00,P02-2023
,LEE VALLEY CAMPSITE,SUPPLIES AND SERVICES,OTHER EXPENSES,4899,P117783-SERVICE-Lock Picking tool kit,04/05/2022 00:00,262627,3.32,AM0406,AMAZON PAYMENTS UK LIMITED,25/04/2022 00:00,29/05/2022 00:00,P02-2023
,LEE VALLEY CAMPSITE,SUPPLIES AND SERVICES,OTHER EXPENSES,4899,P117821-SERVICE-Hoselock 10m,04/05/2022 00:00,262659,52.46,AM0406,AMAZON PAYMENTS UK LIMITED,25/04/2022 00:00,29/05/2022 00:00,P02-2023
,LEE VALLEY CAMPSITE,SUPPLIES AND SERVICES,OTHER EXPENSES,4899,P118002-SERVICE-strimmer wire,24/05/2022 00:00,263250,37.07,AM0406,AMAZON PAYMENTS UK LIMITED,25/04/2022 00:00,29/05/2022 00:00,P02-2023
,LEE VALLEY CAMPSITE,SUPPLIES AND SERVICES,OTHER EXPENSES,4899,P118013-SERVICE-Fridge Thermometer,24/05/2022 00:00,263253,15.32,AM0406,AMAZON PAYMENTS UK LIMITED,25/04/2022 00:00,29/05/2022 00:00,P02-2023
,LEE VALLEY CAMPSITE,SUPPLIES AND SERVICES,OTHER EXPENSES,4899,P118017-SERVICE-fridge thermometer,24/05/2022 00:00,263254,7.66,AM0406,AMAZON PAYMENTS UK LIMITED,25/04/2022 00:00,29/05/2022 00:00,P02-2023
,LEE VALLEY CAMPSITE,SUPPLIES AND SERVICES,OTHER EXPENSES,4899,P118065-SERVICE-Toilet + fiitings,24/05/2022 00:00,263430,5.41,AM0406,AMAZON PAYMENTS UK LIMITED,25/04/2022 00:00,29/05/2022 00:00,P02-2023
,LEE VALLEY CAMPSITE,SUPPLIES AND SERVICES,OTHER EXPENSES,4899,P118059-SERVICE-Light bulbs,24/05/2022 00:00,263431,9.99,AM0406,AMAZON PAYMENTS UK LIMITED,25/04/2022 00:00,29/05/2022 00:00,P02-2023
,LEE VALLEY CAMPSITE,SUPPLIES AND SERVICES,OTHER EXPENSES,4899,P118065-SERVICE-Toilet + fiitings,24/05/2022 00:00,263432,36.68,AM0406,AMAZON PAYMENTS UK LIMITED,25/04/2022 00:00,29/05/2022 00:00,P02-2023
,LEE VALLEY CAMPSITE,SUPPLIES AND SERVICES,OTHER EXPENSES,4899,P118059-SERVICE-Light bulbs,24/05/2022 00:00,263433,7.91,AM0406,AMAZON PAYMENTS UK LIMITED,25/04/2022 00:00,29/05/2022 00:00,P02-2023
,LV CAMPSITE CARAVAN SALES,SUPPLIES AND SERVICES,OTHER EXPENSES,4899,P117778-SERVICE-Transport for Langford,04/05/2022 00:00,262473,1880,LO0459,LONDON LODGES UK,25/04/2022 00:00,29/05/2022 00:00,P02-2023
,LV CAMPSITE CARAVAN SALES,SUPPLIES AND SERVICES,OTHER EXPENSES,4899,GLADYS BEALE,11/05/2022 00:00,263014,5000,BE0647,GLADYS BEALE,25/04/2022 00:00,29/05/2022 00:00,P02-2023
,LEE VALLEY CARAVAN PARK,SUPPLIES AND SERVICES,OTHER EXPENSES,4899,P117414-SERVICE-Plants - Cap Ex Planting Scheme,04/05/2022 00:00,261830,1770.65,CL0093,CLOCKHOUSE NURSERY,25/04/2022 00:00,29/05/2022 00:00,P02-2023
,LEE VALLEY CARAVAN PARK,SUPPLIES AND SERVICES,OTHER EXPENSES,4899,P117414-SERVICE-Plant - Cap ex planting Scheme,04/05/2022 00:00,261830,165.58,CL0093,CLOCKHOUSE NURSERY,25/04/2022 00:00,29/05/2022 00:00,P02-2023
,LEE VALLEY CARAVAN PARK,SUPPLIES AND SERVICES,OTHER EXPENSES,4899,P117820-SERVICE-Buiness Membership Fee,04/05/2022 00:00,262369,83.34,AM0406,AMAZON PAYMENTS UK LIMITED,25/04/2022 00:00,29/05/2022 00:00,P02-2023
,LEE VALLEY CARAVAN PARK,SUPPLIES AND SERVICES,OTHER EXPENSES,4899,P117414-SERVICE-Plants - Cap Ex Planting Scheme,28/04/2022 00:00,262466,165.58,CL0093,CLOCKHOUSE NURSERY,25/04/2022 00:00,29/05/2022 00:00,P02-2023
,LEE VALLEY CARAVAN PARK,SUPPLIES AND SERVICES,OTHER EXPENSES,4899,P118015-SERVICE-fridge thermometer,24/05/2022 00:00,263251,38.3,AM0406,AMAZON PAYMENTS UK LIMITED,25/04/2022 00:00,29/05/2022 00:00,P02-2023
,LV CARAVAN PARK CARAVAN SALES,SUPPLIES AND SERVICES,OTHER EXPENSES,4899,P117780-SERVICE-Introduction fee Newman,04/05/2022 00:00,262474,2500,LO0459,LONDON LODGES UK,25/04/2022 00:00,29/05/2022 00:00,P02-2023
,LV CARAVAN PARK CARAVAN SALES,SUPPLIES AND SERVICES,OTHER EXPENSES,4899,P117781-SERVICE-Introduction fee for stokes,04/05/2022 00:00,262475,2500,LO0459,LONDON LODGES UK,25/04/2022 00:00,29/05/2022 00:00,P02-2023
,LV CARAVAN PARK CARAVAN SALES,SUPPLIES AND SERVICES,OTHER EXPENSES,4899,P117853-SERVICE-Introduction fee for plot 1 Dobbs,09/05/2022 00:00,262752,2500,LO0459,LONDON LODGES UK,25/04/2022 00:00,29/05/2022 00:00,P02-2023
P&V,MYDDELTON HOUSE GARDENS,SUPPLIES AND SERVICES,OTHER EXPENSES,4899,P117795-SERVICE-promotion order for bowles soc,09/05/2022 00:00,262657,127.42,SO0582,SOLOPRESS,25/04/2022 00:00,29/05/2022 00:00,P02-2023
